SERVICE_CODE,ORGANISATION_UNIT,EXPENDITURE_CATEGORY,EXPENDITURE_DESCRIPTION,EXPENDITURE_CODE,NARRATIVE,DATE,TRANSATION_CODE,NET_AMOUNT,SUPPLIER_CODE,SUPPLIER_NAME,FROM_DATE,TO_DATE,FINANCIAL_PERIOD_YEAR
P&V,WILDLIFE DISCOVERY CENTRE,EMPLOYEES,APPOINTMENT EXPENSES,1301,P124500-SERVICE-CSO WDC JOB ADVERT,08/01/2024 00:00,281216,415,SA0133,SOWERBY ADVERTISING AND COMMUNICATIONS,01/01/2024 00:00,28/01/2024 00:00,P10-2024
R&B,CORPORATE TRAINING,EMPLOYEES,TRAINING EXPENSES,1305,P124678-SERVICE-FAW REQUAL COURSE 14/15//03/2024,22/01/2024 00:00,281607,1490,RI0053,RIGHT DIRECTIONS (MANAGEMENT) LTD,01/01/2024 00:00,28/01/2024 00:00,P10-2024
R&B,CORPORATE TRAINING,EMPLOYEES,TRAINING EXPENSES,1305,P124679-SERVICE-DEVLEOPMENT OF ONLINE TRAINING DEC 23,22/01/2024 00:00,281608,500,RI0053,RIGHT DIRECTIONS (MANAGEMENT) LTD,01/01/2024 00:00,28/01/2024 00:00,P10-2024
CEO,PR/COMMUNICATIONS,EMPLOYEES,DRIVING LICENCE CHECKS,1335,L CLEMENTS DRIVING LICENCE DATA FEE,08/01/2024 00:00,281273,6.25,FI0288,FIRST ADVANTAGE EUROPE LTD,01/01/2024 00:00,28/01/2024 00:00,P10-2024
CEO,PR/COMMUNICATIONS,EMPLOYEES,DRIVING LICENCE CHECKS,1335,S BROMBERG DRIVING LICENCE DATA FEE,08/01/2024 00:00,281273,6.25,FI0288,FIRST ADVANTAGE EUROPE LTD,01/01/2024 00:00,28/01/2024 00:00,P10-2024
CEO,PR/COMMUNICATIONS,EMPLOYEES,DRIVING LICENCE CHECKS,1335,H CURTIS DRIVING LICENCE DATA FEE,08/01/2024 00:00,281273,6.25,FI0288,FIRST ADVANTAGE EUROPE LTD,01/01/2024 00:00,28/01/2024 00:00,P10-2024
P&V,PROJECT & FUNDING DELIVERY,EMPLOYEES,DRIVING LICENCE CHECKS,1335,P ROPER DRIVING LICENCE DATA FEE,08/01/2024 00:00,281273,6.25,FI0288,FIRST ADVANTAGE EUROPE LTD,01/01/2024 00:00,28/01/2024 00:00,P10-2024
R&B,FINANCE,EMPLOYEES,DRIVING LICENCE CHECKS,1335,M STERRY DRIVING LICENCE DATA FEE,08/01/2024 00:00,281273,6.25,FI0288,FIRST ADVANTAGE EUROPE LTD,01/01/2024 00:00,28/01/2024 00:00,P10-2024
P&V,SPORT AND LEISURE,EMPLOYEES,DRIVING LICENCE CHECKS,1335,L ROPER DRIVING LICENCE DATA FEE,08/01/2024 00:00,281273,6.25,FI0288,FIRST ADVANTAGE EUROPE LTD,01/01/2024 00:00,28/01/2024 00:00,P10-2024
P&V,SPORT AND LEISURE,EMPLOYEES,DRIVING LICENCE CHECKS,1335,J PRINGLE DRIVING LICENCE DATA FEE,08/01/2024 00:00,281273,6.25,FI0288,FIRST ADVANTAGE EUROPE LTD,01/01/2024 00:00,28/01/2024 00:00,P10-2024
P&V,EVENTS MANAGEMENT (PR),EMPLOYEES,DRIVING LICENCE CHECKS,1335,K TAYLOR DRIVING LICENCE DATA FEE,08/01/2024 00:00,281273,6.25,FI0288,FIRST ADVANTAGE EUROPE LTD,01/01/2024 00:00,28/01/2024 00:00,P10-2024
R&B,CORPORATE TRAINING,EMPLOYEES,APPRENTICE LEVY,1390,PAYE,15/01/2024 00:00,281400,991,HM0368,HMRC,01/01/2024 00:00,28/01/2024 00:00,P10-2024
,LEE VALLEY MARINA SPRINGFIELD,PREMISES RELATED EXPENDITURE,SCHEDULED GROUND MAINTENANCE,2111,P124683-SERVICE-De iceing salt 40 bags,28/01/2024 00:00,281823,259.99,SA0008,SAFETEC DIRECT LTD,01/01/2024 00:00,28/01/2024 00:00,P10-2024
,LEE VALLEY MARINA STANSTEAD,PREMISES RELATED EXPENDITURE,SCHEDULED GROUND MAINTENANCE,2111,P121961-SERVICE-annual bin pick ups for RH and SA TOP UP,10/01/2024 00:00,281224,263.31,CL0037,VEOLIA ES (UK) LTD,01/01/2024 00:00,28/01/2024 00:00,P10-2024
,LEE VALLEY MARINA STANSTEAD,PREMISES RELATED EXPENDITURE,SCHEDULED GROUND MAINTENANCE,2111,P121961-SERVICE-annual bin pick ups for RH and SA TOP UP,10/01/2024 00:00,281228,897.47,CL0037,VEOLIA ES (UK) LTD,01/01/2024 00:00,28/01/2024 00:00,P10-2024
CEO,LVLC SERVICE CHARGE,PREMISES RELATED EXPENDITURE,SCHEDULED GROUND MAINTENANCE,2111,P124448-SERVICE-Picketts Lock Frontage Sign Clearnace,10/01/2024 00:00,280998,605.71,GL0214,GLENDALE GROUNDS MANAGEMENT LIMITED,01/01/2024 00:00,28/01/2024 00:00,P10-2024
CEO,LVLC SERVICE CHARGE,PREMISES RELATED EXPENDITURE,SCHEDULED GROUND MAINTENANCE,2111,INCENTIVE Q3,15/01/2024 00:00,281198,182.69,GL0214,GLENDALE GROUNDS MANAGEMENT LIMITED,01/01/2024 00:00,28/01/2024 00:00,P10-2024
CEO,LVLC SERVICE CHARGE,PREMISES RELATED EXPENDITURE,SCHEDULED GROUND MAINTENANCE,2111,Dec-23,15/01/2024 00:00,281199,56.16,GL0214,GLENDALE GROUNDS MANAGEMENT LIMITED,01/01/2024 00:00,28/01/2024 00:00,P10-2024
CEO,LVLC SERVICE CHARGE,PREMISES RELATED EXPENDITURE,SCHEDULED GROUND MAINTENANCE,2111,Dec-23,15/01/2024 00:00,281199,1539.86,GL0214,GLENDALE GROUNDS MANAGEMENT LIMITED,01/01/2024 00:00,28/01/2024 00:00,P10-2024
P&V,MYDDELTON HOUSE,PREMISES RELATED EXPENDITURE,CONTRACT CLEANING,2120,P121875-SERVICE-Myddelton House Cleaning,15/01/2024 00:00,281533,1681.68,BR0632,BRITANNIA SERVICES GROUP LTD,01/01/2024 00:00,28/01/2024 00:00,P10-2024
,LEE VALLEY WATERWORKS CENTRE,PREMISES RELATED EXPENDITURE,CONTRACT CLEANING,2120,P124456-SERVICE-Cleaning WaterWorks Centre,15/01/2024 00:00,281535,776.16,BR0632,BRITANNIA SERVICES GROUP LTD,01/01/2024 00:00,28/01/2024 00:00,P10-2024
,LEE VALLEY CAMPSITE,PREMISES RELATED EXPENDITURE,CONTRACT CLEANING,2120,P123547-SERVICE-Site Cleaning Deccember 23,15/01/2024 00:00,281283,2993,LI0305,LIMPIAR CLEANING,01/01/2024 00:00,28/01/2024 00:00,P10-2024
,LEE VALLEY CAMPSITE,PREMISES RELATED EXPENDITURE,CONTRACT CLEANING,2120,P122615-SERVICE-Jan - Feb 24,15/01/2024 00:00,281529,93.56,IN0012,INITIAL WASHROOM HYGIENE,01/01/2024 00:00,28/01/2024 00:00,P10-2024
,LEE VALLEY CARAVAN PARK,PREMISES RELATED EXPENDITURE,CONTRACT CLEANING,2120,P124626-SERVICE-Contract Cleaning,15/01/2024 00:00,281282,3834,LI0305,LIMPIAR CLEANING,01/01/2024 00:00,28/01/2024 00:00,P10-2024
,LEE VALLEY CARAVAN PARK,PREMISES RELATED EXPENDITURE,CONTRACT CLEANING,2120,P124780-SERVICE-Hygiene Services,28/01/2024 00:00,281802,98.87,IN0012,INITIAL WASHROOM HYGIENE,01/01/2024 00:00,28/01/2024 00:00,P10-2024
P&V,WILDLIFE DISCOVERY CENTRE,PREMISES RELATED EXPENDITURE,CONTRACT CLEANING,2120,P123372-SERVICE-Cleaning at Wildlife Discovery Centre,17/01/2024 00:00,281532,388.08,BR0632,BRITANNIA SERVICES GROUP LTD,01/01/2024 00:00,28/01/2024 00:00,P10-2024
P&V,GUNPOWDER PARK,PREMISES RELATED EXPENDITURE,CONTRACT CLEANING,2120,Dec-23,15/01/2024 00:00,281199,281.26,GL0214,GLENDALE GROUNDS MANAGEMENT LIMITED,01/01/2024 00:00,28/01/2024 00:00,P10-2024
P&V,RIVER LEE COUNTRY PARK,PREMISES RELATED EXPENDITURE,CONTRACT CLEANING,2120,Dec-23,15/01/2024 00:00,281199,562.53,GL0214,GLENDALE GROUNDS MANAGEMENT LIMITED,01/01/2024 00:00,28/01/2024 00:00,P10-2024
P&V,MYDDLETON HSE HERITAGE CENTRE,PREMISES RELATED EXPENDITURE,CLEANING CONTRACT,2121,P121876-SERVICE-Tea Room Cleaning,15/01/2024 00:00,281534,840.84,BR0632,BRITANNIA SERVICES GROUP LTD,01/01/2024 00:00,28/01/2024 00:00,P10-2024
,LEE VALLEY CAMPSITE,PREMISES RELATED EXPENDITURE,LINEN SERVICE,2122,P123805-SERVICE-Site Laundry Nov- Mar 24,15/01/2024 00:00,281248,703.63,JO0168,JOHNSONS STALBRIDGE LINEN SERVICES,01/01/2024 00:00,28/01/2024 00:00,P10-2024
,LEE VALLEY CAMPSITE,PREMISES RELATED EXPENDITURE,LINEN SERVICE,2122,P123805-SERVICE-Increase value to cover invoices,15/01/2024 00:00,281248,358.56,JO0168,JOHNSONS STALBRIDGE LINEN SERVICES,01/01/2024 00:00,28/01/2024 00:00,P10-2024
,LEE VALLEY CARAVAN PARK,PREMISES RELATED EXPENDITURE,LINEN SERVICE,2122,P124562-SERVICE-Linen service,09/01/2024 00:00,281249,1231.58,JO0168,JOHNSONS STALBRIDGE LINEN SERVICES,01/01/2024 00:00,28/01/2024 00:00,P10-2024
,LEE VALLEY MARINA STANSTEAD,PREMISES RELATED EXPENDITURE,GM MAIN CONTRACT SCHEDULED,2141,INCENTIVE Q3,15/01/2024 00:00,281198,168.19,GL0214,GLENDALE GROUNDS MANAGEMENT LIMITED,01/01/2024 00:00,28/01/2024 00:00,P10-2024
,LEE VALLEY MARINA STANSTEAD,PREMISES RELATED EXPENDITURE,GM MAIN CONTRACT SCHEDULED,2141,Dec-23,15/01/2024 00:00,281199,328.59,GL0214,GLENDALE GROUNDS MANAGEMENT LIMITED,01/01/2024 00:00,28/01/2024 00:00,P10-2024
,LEE VALLEY WATERWORKS CENTRE,PREMISES RELATED EXPENDITURE,GM MAIN CONTRACT SCHEDULED,2141,INCENTIVE Q3,15/01/2024 00:00,281198,210.95,GL0214,GLENDALE GROUNDS MANAGEMENT LIMITED,01/01/2024 00:00,28/01/2024 00:00,P10-2024
,LEE VALLEY WATERWORKS CENTRE,PREMISES RELATED EXPENDITURE,GM MAIN CONTRACT SCHEDULED,2141,Dec-23,15/01/2024 00:00,281199,135.34,GL0214,GLENDALE GROUNDS MANAGEMENT LIMITED,01/01/2024 00:00,28/01/2024 00:00,P10-2024
,LEE VALLEY WATERWORKS CENTRE,PREMISES RELATED EXPENDITURE,GM MAIN CONTRACT SCHEDULED,2141,Dec-23,15/01/2024 00:00,281199,308.7,GL0214,GLENDALE GROUNDS MANAGEMENT LIMITED,01/01/2024 00:00,28/01/2024 00:00,P10-2024
P&V,LEE VALLEY FARM HOLYFIELDHALL,PREMISES RELATED EXPENDITURE,GM MAIN CONTRACT SCHEDULED,2141,INCENTIVE Q3,15/01/2024 00:00,281198,37.07,GL0214,GLENDALE GROUNDS MANAGEMENT LIMITED,01/01/2024 00:00,28/01/2024 00:00,P10-2024
P&V,LEE VALLEY FARM HOLYFIELDHALL,PREMISES RELATED EXPENDITURE,GM MAIN CONTRACT SCHEDULED,2141,Dec-23,15/01/2024 00:00,281199,76.23,GL0214,GLENDALE GROUNDS MANAGEMENT LIMITED,01/01/2024 00:00,28/01/2024 00:00,P10-2024
P&V,EAST INDIA DOCK AND BOW CREEK,PREMISES RELATED EXPENDITURE,GM MAIN CONTRACT SCHEDULED,2141,INCENTIVE Q3,15/01/2024 00:00,281198,443.13,GL0214,GLENDALE GROUNDS MANAGEMENT LIMITED,01/01/2024 00:00,28/01/2024 00:00,P10-2024
P&V,EAST INDIA DOCK AND BOW CREEK,PREMISES RELATED EXPENDITURE,GM MAIN CONTRACT SCHEDULED,2141,Dec-23,15/01/2024 00:00,281199,432.85,GL0214,GLENDALE GROUNDS MANAGEMENT LIMITED,01/01/2024 00:00,28/01/2024 00:00,P10-2024
P&V,EAST INDIA DOCK AND BOW CREEK,PREMISES RELATED EXPENDITURE,GM MAIN CONTRACT SCHEDULED,2141,Dec-23,15/01/2024 00:00,281199,483.37,GL0214,GLENDALE GROUNDS MANAGEMENT LIMITED,01/01/2024 00:00,28/01/2024 00:00,P10-2024
P&V,NORTH AREA RANGERS,PREMISES RELATED EXPENDITURE,GM MAIN CONTRACT SCHEDULED,2141,INCENTIVE Q3,15/01/2024 00:00,281198,851.07,GL0214,GLENDALE GROUNDS MANAGEMENT LIMITED,01/01/2024 00:00,28/01/2024 00:00,P10-2024
P&V,NORTH AREA RANGERS,PREMISES RELATED EXPENDITURE,GM MAIN CONTRACT SCHEDULED,2141,Dec-23,15/01/2024 00:00,281199,2886.54,GL0214,GLENDALE GROUNDS MANAGEMENT LIMITED,01/01/2024 00:00,28/01/2024 00:00,P10-2024
P&V,SOUTH AREA RANGERS,PREMISES RELATED EXPENDITURE,GM MAIN CONTRACT SCHEDULED,2141,INCENTIVE Q3,15/01/2024 00:00,281198,1367.35,GL0214,GLENDALE GROUNDS MANAGEMENT LIMITED,01/01/2024 00:00,28/01/2024 00:00,P10-2024
P&V,SOUTH AREA RANGERS,PREMISES RELATED EXPENDITURE,GM MAIN CONTRACT SCHEDULED,2141,Dec-23,15/01/2024 00:00,281199,3338.71,GL0214,GLENDALE GROUNDS MANAGEMENT LIMITED,01/01/2024 00:00,28/01/2024 00:00,P10-2024
P&V,SOUTH AREA RANGERS,PREMISES RELATED EXPENDITURE,GM MAIN CONTRACT SCHEDULED,2141,Dec-23,15/01/2024 00:00,281199,193.35,GL0214,GLENDALE GROUNDS MANAGEMENT LIMITED,01/01/2024 00:00,28/01/2024 00:00,P10-2024
P&V,ABBEY GARDENS,PREMISES RELATED EXPENDITURE,GM MAIN CONTRACT SCHEDULED,2141,INCENTIVE Q3,15/01/2024 00:00,281198,344.08,GL0214,GLENDALE GROUNDS MANAGEMENT LIMITED,01/01/2024 00:00,28/01/2024 00:00,P10-2024
P&V,ABBEY GARDENS,PREMISES RELATED EXPENDITURE,GM MAIN CONTRACT SCHEDULED,2141,Dec-23,15/01/2024 00:00,281199,1474.52,GL0214,GLENDALE GROUNDS MANAGEMENT LIMITED,01/01/2024 00:00,28/01/2024 00:00,P10-2024
P&V,GUNPOWDER PARK,PREMISES RELATED EXPENDITURE,GM MAIN CONTRACT SCHEDULED,2141,INCENTIVE Q3,15/01/2024 00:00,281198,687.05,GL0214,GLENDALE GROUNDS MANAGEMENT LIMITED,01/01/2024 00:00,28/01/2024 00:00,P10-2024
P&V,GUNPOWDER PARK,PREMISES RELATED EXPENDITURE,GM MAIN CONTRACT SCHEDULED,2141,Dec-23,15/01/2024 00:00,281199,1451.76,GL0214,GLENDALE GROUNDS MANAGEMENT LIMITED,01/01/2024 00:00,28/01/2024 00:00,P10-2024
P&V,RIVER LEE COUNTRY PARK,PREMISES RELATED EXPENDITURE,GM MAIN CONTRACT SCHEDULED,2141,INCENTIVE Q3,15/01/2024 00:00,281198,3665.81,GL0214,GLENDALE GROUNDS MANAGEMENT LIMITED,01/01/2024 00:00,28/01/2024 00:00,P10-2024
P&V,RIVER LEE COUNTRY PARK,PREMISES RELATED EXPENDITURE,GM MAIN CONTRACT SCHEDULED,2141,Dec-23,15/01/2024 00:00,281199,96.67,GL0214,GLENDALE GROUNDS MANAGEMENT LIMITED,01/01/2024 00:00,28/01/2024 00:00,P10-2024
P&V,RIVER LEE COUNTRY PARK,PREMISES RELATED EXPENDITURE,GM MAIN CONTRACT SCHEDULED,2141,Dec-23,15/01/2024 00:00,281199,8489.76,GL0214,GLENDALE GROUNDS MANAGEMENT LIMITED,01/01/2024 00:00,28/01/2024 00:00,P10-2024
,LEE VALLEY VELOPARK,PREMISES RELATED EXPENDITURE,GM MAIN CONTRACT SCHEDULED,2141,INCENTIVE Q3,15/01/2024 00:00,281198,272.06,GL0214,GLENDALE GROUNDS MANAGEMENT LIMITED,01/01/2024 00:00,28/01/2024 00:00,P10-2024
,LEE VALLEY VELOPARK,PREMISES RELATED EXPENDITURE,GM MAIN CONTRACT SCHEDULED,2141,Dec-23,15/01/2024 00:00,281199,3689.34,GL0214,GLENDALE GROUNDS MANAGEMENT LIMITED,01/01/2024 00:00,28/01/2024 00:00,P10-2024
,LV HOCKEY AND TENNIS CENTRE,PREMISES RELATED EXPENDITURE,GM MAIN CONTRACT SCHEDULED,2141,INCENTIVE Q3,15/01/2024 00:00,281198,117.08,GL0214,GLENDALE GROUNDS MANAGEMENT LIMITED,01/01/2024 00:00,28/01/2024 00:00,P10-2024
,LV HOCKEY AND TENNIS CENTRE,PREMISES RELATED EXPENDITURE,GM MAIN CONTRACT SCHEDULED,2141,Dec-23,15/01/2024 00:00,281199,2262.58,GL0214,GLENDALE GROUNDS MANAGEMENT LIMITED,01/01/2024 00:00,28/01/2024 00:00,P10-2024
P&V,THREE MILLS,PREMISES RELATED EXPENDITURE,GM MAIN CONTRACT SCHEDULED,2141,INCENTIVE Q3,15/01/2024 00:00,281198,292.76,GL0214,GLENDALE GROUNDS MANAGEMENT LIMITED,01/01/2024 00:00,28/01/2024 00:00,P10-2024
P&V,THREE MILLS,PREMISES RELATED EXPENDITURE,GM MAIN CONTRACT SCHEDULED,2141,Dec-23,15/01/2024 00:00,281199,826.92,GL0214,GLENDALE GROUNDS MANAGEMENT LIMITED,01/01/2024 00:00,28/01/2024 00:00,P10-2024
,LEE VALLEY RIDING CENTRE,PREMISES RELATED EXPENDITURE,GM MAIN CONTRACT SCHEDULED,2141,INCENTIVE Q3,15/01/2024 00:00,281198,96.94,GL0214,GLENDALE GROUNDS MANAGEMENT LIMITED,01/01/2024 00:00,28/01/2024 00:00,P10-2024
,LEE VALLEY RIDING CENTRE,PREMISES RELATED EXPENDITURE,GM MAIN CONTRACT SCHEDULED,2141,Dec-23,15/01/2024 00:00,281199,286.76,GL0214,GLENDALE GROUNDS MANAGEMENT LIMITED,01/01/2024 00:00,28/01/2024 00:00,P10-2024
,LEE VALLEY ICE CENTRE,PREMISES RELATED EXPENDITURE,GM MAIN CONTRACT SCHEDULED,2141,Dec-23,15/01/2024 00:00,281199,461.99,GL0214,GLENDALE GROUNDS MANAGEMENT LIMITED,01/01/2024 00:00,28/01/2024 00:00,P10-2024
P&V,FORMER LV LIDO SITE,PREMISES RELATED EXPENDITURE,GM MAIN CONTRACT SCHEDULED,2141,INCENTIVE Q3,15/01/2024 00:00,281198,201.99,GL0214,GLENDALE GROUNDS MANAGEMENT LIMITED,01/01/2024 00:00,28/01/2024 00:00,P10-2024
P&V,FORMER LV LIDO SITE,PREMISES RELATED EXPENDITURE,GM MAIN CONTRACT SCHEDULED,2141,Dec-23,15/01/2024 00:00,281199,566.45,GL0214,GLENDALE GROUNDS MANAGEMENT LIMITED,01/01/2024 00:00,28/01/2024 00:00,P10-2024
,LEE VALLEY ATHLETICS CENTRE,PREMISES RELATED EXPENDITURE,GM MAIN CONTRACT SCHEDULED,2141,INCENTIVE Q3,15/01/2024 00:00,281198,210.62,GL0214,GLENDALE GROUNDS MANAGEMENT LIMITED,01/01/2024 00:00,28/01/2024 00:00,P10-2024
,LEE VALLEY ATHLETICS CENTRE,PREMISES RELATED EXPENDITURE,GM MAIN CONTRACT SCHEDULED,2141,Dec-23,15/01/2024 00:00,281199,342.66,GL0214,GLENDALE GROUNDS MANAGEMENT LIMITED,01/01/2024 00:00,28/01/2024 00:00,P10-2024
,LEE VALLEY WHITE WATER CENTRE,PREMISES RELATED EXPENDITURE,GM MAIN CONTRACT SCHEDULED,2141,INCENTIVE Q3,15/01/2024 00:00,281198,717.46,GL0214,GLENDALE GROUNDS MANAGEMENT LIMITED,01/01/2024 00:00,28/01/2024 00:00,P10-2024
,LEE VALLEY WHITE WATER CENTRE,PREMISES RELATED EXPENDITURE,GM MAIN CONTRACT SCHEDULED,2141,Dec-23,15/01/2024 00:00,281199,1781.46,GL0214,GLENDALE GROUNDS MANAGEMENT LIMITED,01/01/2024 00:00,28/01/2024 00:00,P10-2024
P&V,NORTH AREA RANGERS,PREMISES RELATED EXPENDITURE,GM MAIN CONTRACT UNSCHEDULED,2142,Dec-23,15/01/2024 00:00,281199,1389.02,GL0214,GLENDALE GROUNDS MANAGEMENT LIMITED,01/01/2024 00:00,28/01/2024 00:00,P10-2024
P&V,NORTH AREA RANGERS,PREMISES RELATED EXPENDITURE,GM MAIN CONTRACT UNSCHEDULED,2142,P124738-SERVICE-Gritting Wildlife Discovery Centre & Fishers,24/01/2024 00:00,281819,320,GL0214,GLENDALE GROUNDS MANAGEMENT LIMITED,01/01/2024 00:00,28/01/2024 00:00,P10-2024
,LEE VALLEY WATERWORKS CENTRE,PREMISES RELATED EXPENDITURE,GM HORTICULTURE SCHEDULED,2143,Dec-23,15/01/2024 00:00,281199,86.55,GL0214,GLENDALE GROUNDS MANAGEMENT LIMITED,01/01/2024 00:00,28/01/2024 00:00,P10-2024
P&V,NORTH AREA RANGERS,PREMISES RELATED EXPENDITURE,GM HORTICULTURE SCHEDULED,2143,Dec-23,15/01/2024 00:00,281199,127.58,GL0214,GLENDALE GROUNDS MANAGEMENT LIMITED,01/01/2024 00:00,28/01/2024 00:00,P10-2024
P&V,SOUTH AREA RANGERS,PREMISES RELATED EXPENDITURE,GM HORTICULTURE SCHEDULED,2143,Dec-23,15/01/2024 00:00,281199,73.78,GL0214,GLENDALE GROUNDS MANAGEMENT LIMITED,01/01/2024 00:00,28/01/2024 00:00,P10-2024
P&V,ABBEY GARDENS,PREMISES RELATED EXPENDITURE,GM HORTICULTURE SCHEDULED,2143,Dec-23,15/01/2024 00:00,281199,1005.46,GL0214,GLENDALE GROUNDS MANAGEMENT LIMITED,01/01/2024 00:00,28/01/2024 00:00,P10-2024
P&V,GUNPOWDER PARK,PREMISES RELATED EXPENDITURE,GM HORTICULTURE SCHEDULED,2143,Dec-23,15/01/2024 00:00,281199,131.99,GL0214,GLENDALE GROUNDS MANAGEMENT LIMITED,01/01/2024 00:00,28/01/2024 00:00,P10-2024
P&V,RIVER LEE COUNTRY PARK,PREMISES RELATED EXPENDITURE,GM HORTICULTURE SCHEDULED,2143,Dec-23,15/01/2024 00:00,281199,68.49,GL0214,GLENDALE GROUNDS MANAGEMENT LIMITED,01/01/2024 00:00,28/01/2024 00:00,P10-2024
P&V,RIVER LEE COUNTRY PARK,PREMISES RELATED EXPENDITURE,GM HORTICULTURE SCHEDULED,2143,P123606-SERVICE-100 Hazel Whips,17/01/2024 00:00,281616,100,TH0649,THAMES CHASE TRUST LTD,01/01/2024 00:00,28/01/2024 00:00,P10-2024
P&V,RIVER LEE COUNTRY PARK,PREMISES RELATED EXPENDITURE,GM HORTICULTURE SCHEDULED,2143,P123606-SERVICE-Cane and Spiral Combo,17/01/2024 00:00,281616,100,TH0649,THAMES CHASE TRUST LTD,01/01/2024 00:00,28/01/2024 00:00,P10-2024
,LEE VALLEY VELOPARK,PREMISES RELATED EXPENDITURE,GM HORTICULTURE SCHEDULED,2143,Dec-23,15/01/2024 00:00,281199,587.09,GL0214,GLENDALE GROUNDS MANAGEMENT LIMITED,01/01/2024 00:00,28/01/2024 00:00,P10-2024
,LV HOCKEY AND TENNIS CENTRE,PREMISES RELATED EXPENDITURE,GM HORTICULTURE SCHEDULED,2143,Dec-23,15/01/2024 00:00,281199,845.45,GL0214,GLENDALE GROUNDS MANAGEMENT LIMITED,01/01/2024 00:00,28/01/2024 00:00,P10-2024
P&V,THREE MILLS,PREMISES RELATED EXPENDITURE,GM HORTICULTURE SCHEDULED,2143,Dec-23,15/01/2024 00:00,281199,27.44,GL0214,GLENDALE GROUNDS MANAGEMENT LIMITED,01/01/2024 00:00,28/01/2024 00:00,P10-2024
,LEE VALLEY RIDING CENTRE,PREMISES RELATED EXPENDITURE,GM HORTICULTURE SCHEDULED,2143,Dec-23,15/01/2024 00:00,281199,6.86,GL0214,GLENDALE GROUNDS MANAGEMENT LIMITED,01/01/2024 00:00,28/01/2024 00:00,P10-2024
P&V,FORMER LV LIDO SITE,PREMISES RELATED EXPENDITURE,GM HORTICULTURE SCHEDULED,2143,Dec-23,15/01/2024 00:00,281199,6.54,GL0214,GLENDALE GROUNDS MANAGEMENT LIMITED,01/01/2024 00:00,28/01/2024 00:00,P10-2024
,LEE VALLEY WHITE WATER CENTRE,PREMISES RELATED EXPENDITURE,GM HORTICULTURE SCHEDULED,2143,Dec-23,15/01/2024 00:00,281199,14.98,GL0214,GLENDALE GROUNDS MANAGEMENT LIMITED,01/01/2024 00:00,28/01/2024 00:00,P10-2024
P&V,SOUTH AREA RANGERS,PREMISES RELATED EXPENDITURE,GM ARBORICULTURE UNSCHEDULED,2146,P123715-SERVICE-Remove Budlia between Velo and Hockey & Tenni,17/01/2024 00:00,281353,100,JO0019,R G JOYCE,01/01/2024 00:00,28/01/2024 00:00,P10-2024
P&V,SOUTH AREA RANGERS,PREMISES RELATED EXPENDITURE,GM ARBORICULTURE UNSCHEDULED,2146,P124671-SERVICE-Tree Works at Lee Park Way,22/01/2024 00:00,281774,950,PA0222,PARKIN & PARKER TREE SPECIALISTS,01/01/2024 00:00,28/01/2024 00:00,P10-2024
P&V,ABBEY GARDENS,PREMISES RELATED EXPENDITURE,GM ARBORICULTURE UNSCHEDULED,2146,P123949-SERVICE-Tree Works at Cornmill Meadows Tree Park,24/01/2024 00:00,281813,700,VE0004,PRINCIPAL TREES LTD,01/01/2024 00:00,28/01/2024 00:00,P10-2024
P&V,ABBEY GARDENS,PREMISES RELATED EXPENDITURE,GM ARBORICULTURE UNSCHEDULED,2146,P123949-SERVICE-Tree Works at Cornmill Meadows Tree Park,24/01/2024 00:00,281813,440,VE0004,PRINCIPAL TREES LTD,01/01/2024 00:00,28/01/2024 00:00,P10-2024
P&V,ABBEY GARDENS,PREMISES RELATED EXPENDITURE,GM ARBORICULTURE UNSCHEDULED,2146,P123949-SERVICE-Tree Works at Cornmill Meadows Tree Park,24/01/2024 00:00,281813,1400,VE0004,PRINCIPAL TREES LTD,01/01/2024 00:00,28/01/2024 00:00,P10-2024
P&V,ABBEY GARDENS,PREMISES RELATED EXPENDITURE,GM ARBORICULTURE UNSCHEDULED,2146,P123949-SERVICE-Tree Works at Cornmill Meadows Tree Park,24/01/2024 00:00,281813,135,VE0004,PRINCIPAL TREES LTD,01/01/2024 00:00,28/01/2024 00:00,P10-2024
P&V,ABBEY GARDENS,PREMISES RELATED EXPENDITURE,GM ARBORICULTURE UNSCHEDULED,2146,P123949-SERVICE-Tree Works at Cornmill Meadows Tree Park,24/01/2024 00:00,281813,1640,VE0004,PRINCIPAL TREES LTD,01/01/2024 00:00,28/01/2024 00:00,P10-2024
P&V,ABBEY GARDENS,PREMISES RELATED EXPENDITURE,GM ARBORICULTURE UNSCHEDULED,2146,P123949-SERVICE-Tree Works at Cornmill Meadows Tree Park,24/01/2024 00:00,281813,675,VE0004,PRINCIPAL TREES LTD,01/01/2024 00:00,28/01/2024 00:00,P10-2024
P&V,ABBEY GARDENS,PREMISES RELATED EXPENDITURE,GM ARBORICULTURE UNSCHEDULED,2146,P123949-SERVICE-Tree Works at Cornmill Meadows Tree Park,24/01/2024 00:00,281813,440,VE0004,PRINCIPAL TREES LTD,01/01/2024 00:00,28/01/2024 00:00,P10-2024
P&V,ABBEY GARDENS,PREMISES RELATED EXPENDITURE,GM ARBORICULTURE UNSCHEDULED,2146,P123949-SERVICE-Tree Works at Cornmill Meadows Tree Park,24/01/2024 00:00,281813,875,VE0004,PRINCIPAL TREES LTD,01/01/2024 00:00,28/01/2024 00:00,P10-2024
P&V,GUNPOWDER PARK,PREMISES RELATED EXPENDITURE,GM ARBORICULTURE UNSCHEDULED,2146,P124362-SERVICE-Tree Works - Swan & Pike Pool,22/01/2024 00:00,281737,350,PA0222,PARKIN & PARKER TREE SPECIALISTS,01/01/2024 00:00,28/01/2024 00:00,P10-2024
P&V,GUNPOWDER PARK,PREMISES RELATED EXPENDITURE,GM ARBORICULTURE UNSCHEDULED,2146,P124744-SERVICE-Tree Works at Knights Pits,28/01/2024 00:00,281942,125,PA0222,PARKIN & PARKER TREE SPECIALISTS,01/01/2024 00:00,28/01/2024 00:00,P10-2024
P&V,RIVER LEE COUNTRY PARK,PREMISES RELATED EXPENDITURE,GM ARBORICULTURE UNSCHEDULED,2146,P123529-SERVICE-To crown lift 2 x Ash at entrance to Clayton,15/01/2024 00:00,281409,485,VE0004,PRINCIPAL TREES LTD,01/01/2024 00:00,28/01/2024 00:00,P10-2024
P&V,RIVER LEE COUNTRY PARK,PREMISES RELATED EXPENDITURE,GM ARBORICULTURE UNSCHEDULED,2146,P123775-SERVICE-Visual Tree Inspection at White Water Centre,15/01/2024 00:00,281411,420,VE0004,PRINCIPAL TREES LTD,01/01/2024 00:00,28/01/2024 00:00,P10-2024
P&V,RIVER LEE COUNTRY PARK,PREMISES RELATED EXPENDITURE,GM ARBORICULTURE UNSCHEDULED,2146,P124008-SERVICE-Tree Works at Old Mill &Meadows,28/01/2024 00:00,281667,3995,MU0030,P J MUSK TREES,01/01/2024 00:00,28/01/2024 00:00,P10-2024
P&V,RIVER LEE COUNTRY PARK,PREMISES RELATED EXPENDITURE,GM ARBORICULTURE UNSCHEDULED,2146,P124364-SERVICE-Ivy on Poplars - Pindar,28/01/2024 00:00,281917,180,MU0030,P J MUSK TREES,01/01/2024 00:00,28/01/2024 00:00,P10-2024
P&V,SOUTH AREA RANGERS,PREMISES RELATED EXPENDITURE,GM NON MAIN CONT UNSCHEDULED,2147,Springfield-move container,17/01/2024 00:00,281626,500,MO0041,CAPSER,01/01/2024 00:00,28/01/2024 00:00,P10-2024
P&V,SOUTH AREA RANGERS,PREMISES RELATED EXPENDITURE,GM NON MAIN CONT UNSCHEDULED,2147,Springfield-move container,17/01/2024 00:00,281626,1000,MO0041,CAPSER,01/01/2024 00:00,28/01/2024 00:00,P10-2024
P&V,SOUTH AREA RANGERS,PREMISES RELATED EXPENDITURE,GM NON MAIN CONT UNSCHEDULED,2147,Springfield-move container,17/01/2024 00:00,281626,-1500,MO0041,CAPSER,01/01/2024 00:00,28/01/2024 00:00,P10-2024
P&V,SOUTH AREA RANGERS,PREMISES RELATED EXPENDITURE,GM NON MAIN CONT UNSCHEDULED,2147,P124276-SERVICE-Move Containers from Waterworks to Springfiel,17/01/2024 00:00,281626,1500,MO0041,CAPSER,01/01/2024 00:00,28/01/2024 00:00,P10-2024
P&V,RIVER LEE COUNTRY PARK,PREMISES RELATED EXPENDITURE,GM NON MAIN CONT UNSCHEDULED,2147,P123485-SERVICE-Clarke 7320212 Tiger 3000B Petrol Jet Washer,28/01/2024 00:00,281749,405.95,PO0478,POWER TOOLS DIRECT ONLINE LTD,01/01/2024 00:00,28/01/2024 00:00,P10-2024
,LEE VALLEY MARINA SPRINGFIELD,PREMISES RELATED EXPENDITURE,GENERAL WASTE,2211,"P123966-SERVICE-General waste & recylng Oct,Nov,Dec",09/01/2024 00:00,281122,1124.8,CL0037,VEOLIA ES (UK) LTD,01/01/2024 00:00,28/01/2024 00:00,P10-2024
,LEE VALLEY CAMPSITE,PREMISES RELATED EXPENDITURE,GENERAL WASTE,2211,P122977-SERVICE-Skip Collections  Aug- Dec 23,15/01/2024 00:00,281227,381.36,CL0037,VEOLIA ES (UK) LTD,01/01/2024 00:00,28/01/2024 00:00,P10-2024
,LEE VALLEY CARAVAN PARK,PREMISES RELATED EXPENDITURE,GENERAL WASTE,2211,P124561-SERVICE-Waste collection,09/01/2024 00:00,281226,2718.73,CL0037,VEOLIA ES (UK) LTD,01/01/2024 00:00,28/01/2024 00:00,P10-2024
P&V,NORTH AREA RANGERS,PREMISES RELATED EXPENDITURE,GENERAL WASTE,2211,P124423-SERVICE-12yd General Rubbish Skip at Holyfield Hall F,08/01/2024 00:00,281124,323.4,GB0239,GBN SERVICES LTD,01/01/2024 00:00,28/01/2024 00:00,P10-2024
P&V,NORTH AREA RANGERS,PREMISES RELATED EXPENDITURE,GENERAL WASTE,2211,P124423-SERVICE-12yd General Rubbish Skip at Holyfield Hall F,09/01/2024 00:00,281310,323.4,GB0239,GBN SERVICES LTD,01/01/2024 00:00,28/01/2024 00:00,P10-2024
P&V,NORTH AREA RANGERS,PREMISES RELATED EXPENDITURE,GENERAL WASTE,2211,P124423-SERVICE-12yd General Rubbish Skip at Holyfield Hall F,28/01/2024 00:00,281992,323.4,GB0239,GBN SERVICES LTD,01/01/2024 00:00,28/01/2024 00:00,P10-2024
P&V,SOUTH AREA RANGERS,PREMISES RELATED EXPENDITURE,GENERAL WASTE,2211,P124571-SERVICE-Skip at WaterWorks Centre,15/01/2024 00:00,281311,323.4,GB0239,GBN SERVICES LTD,01/01/2024 00:00,28/01/2024 00:00,P10-2024
P&V,SOUTH AREA RANGERS,PREMISES RELATED EXPENDITURE,GENERAL WASTE,2211,P124571-SERVICE-Skip at WaterWorks Centre,22/01/2024 00:00,281734,299.39,GB0239,GBN SERVICES LTD,01/01/2024 00:00,28/01/2024 00:00,P10-2024
,LV LEISURE CENTRE CAMPSITE,PREMISES RELATED EXPENDITURE,GENERAL WASTE,2211,P124572-SERVICE-Compactor and bin,09/01/2024 00:00,281225,377.08,CL0037,VEOLIA ES (UK) LTD,01/01/2024 00:00,28/01/2024 00:00,P10-2024
,LV LEISURE CENTRE CAMPSITE,PREMISES RELATED EXPENDITURE,GENERAL WASTE,2211,"P124573-SERVICE-Site cleaning, cabin/cocoon",09/01/2024 00:00,281281,1980,LI0305,LIMPIAR CLEANING,01/01/2024 00:00,28/01/2024 00:00,P10-2024
,LV LEISURE CENTRE CAMPSITE,PREMISES RELATED EXPENDITURE,GENERAL WASTE,2211,P124574-SERVICE-Recycling collection,09/01/2024 00:00,281302,238.06,BY0049,BYWATERS (LEYTON) LTD,01/01/2024 00:00,28/01/2024 00:00,P10-2024
,LV LEISURE CENTRE CAMPSITE,PREMISES RELATED EXPENDITURE,GENERAL WASTE,2211,P124660-SERVICE-sanitary disposal,16/01/2024 00:00,281367,163.96,PE0015,PHS GROUP PLC,01/01/2024 00:00,28/01/2024 00:00,P10-2024
P&V,NORTH AREA RANGERS,PREMISES RELATED EXPENDITURE,FLYTIPPING/WHITE GOOD DISPOSAL,2213,"P124431-SERVICE-Flytip Removal at Meadgate Road, Nazeing",10/01/2024 00:00,281339,1150,MK0465,M K CLEANING & MAINTENANCE LTD,01/01/2024 00:00,28/01/2024 00:00,P10-2024
P&V,MYDDELTON HOUSE,PREMISES RELATED EXPENDITURE,RECYCLING,2214,P124582-SERVICE-Recycling,10/01/2024 00:00,281342,224.14,CA0341,F & R CAWLEY LTD,01/01/2024 00:00,28/01/2024 00:00,P10-2024
P&V,MYDDELTON HOUSE,PREMISES RELATED EXPENDITURE,BUILDING SERVICE AGREEMENTS,2220,P124620-SERVICE-12 Month Service,15/01/2024 00:00,281503,170,AB0435,ABSOLUTE DOOR SERVICES ESSEX LTD,01/01/2024 00:00,28/01/2024 00:00,P10-2024
P&V,MYDDELTON HOUSE,PREMISES RELATED EXPENDITURE,BUILDING SERVICE AGREEMENTS,2220,P124690-SERVICE-Alarm Fobs,22/01/2024 00:00,281517,28.5,AD0015,ADT FIRE & SECURITY PLC,01/01/2024 00:00,28/01/2024 00:00,P10-2024
P&V,MYDDELTON HOUSE,PREMISES RELATED EXPENDITURE,BUILDING SERVICE AGREEMENTS,2220,P124645-SERVICE-Sanitary Services,16/01/2024 00:00,281565,182.03,PE0015,PHS GROUP PLC,01/01/2024 00:00,28/01/2024 00:00,P10-2024
P&V,MYDDELTON HOUSE,PREMISES RELATED EXPENDITURE,BUILDING SERVICE AGREEMENTS,2220,P124374-SERVICE-Clean & Disinfect,22/01/2024 00:00,281601,325,JA0177,JASUN ENVIROCARE PLC,01/01/2024 00:00,28/01/2024 00:00,P10-2024
P&V,MYDDELTON HOUSE,PREMISES RELATED EXPENDITURE,BUILDING SERVICE AGREEMENTS,2220,P124698-SERVICE-Alarm Fobs,23/01/2024 00:00,281753,28.5,AD0015,ADT FIRE & SECURITY PLC,01/01/2024 00:00,28/01/2024 00:00,P10-2024
P&V,MYDDELTON HOUSE,PREMISES RELATED EXPENDITURE,BUILDING SERVICE AGREEMENTS,2220,P121870-SERVICE-Sanitary Services,28/01/2024 00:00,281928,10.09,PE0015,PHS GROUP PLC,01/01/2024 00:00,28/01/2024 00:00,P10-2024
P&V,MYDDELTON HOUSE,PREMISES RELATED EXPENDITURE,BUILDING SERVICE AGREEMENTS,2220,P124645-SERVICE-Sanitary Services,28/01/2024 00:00,281930,182.03,PE0015,PHS GROUP PLC,01/01/2024 00:00,28/01/2024 00:00,P10-2024
P&V,MYDDELTON HOUSE,PREMISES RELATED EXPENDITURE,BUILDING SERVICE AGREEMENTS,2220,P121870-SERVICE-Sanitary Services,28/01/2024 00:00,281931,24.15,PE0015,PHS GROUP PLC,01/01/2024 00:00,28/01/2024 00:00,P10-2024
P&V,MYDDELTON HOUSE,PREMISES RELATED EXPENDITURE,BUILDING SERVICE AGREEMENTS,2220,P124576-SERVICE-Reactive Biomas Maintenance,28/01/2024 00:00,281932,1527.94,MY0444,MYRIAD HEAT & POWER LTD T/A MYRIAD PLANTROOM,01/01/2024 00:00,28/01/2024 00:00,P10-2024
P&V,MYDDELTON HOUSE,PREMISES RELATED EXPENDITURE,BUILDING SERVICE AGREEMENTS,2220,P124576-SERVICE-Reactive Biomas Maintenance,28/01/2024 00:00,281933,-616.81,MY0444,MYRIAD HEAT & POWER LTD T/A MYRIAD PLANTROOM,01/01/2024 00:00,28/01/2024 00:00,P10-2024
P&V,MYDDELTON HOUSE,PREMISES RELATED EXPENDITURE,BUILDING SERVICE AGREEMENTS,2220,P124662-SERVICE-Sewage Pump Station Service Care Contract,28/01/2024 00:00,281988,1010.81,CL0039,XYLEM WATER SOLUTIONS UK  LIMITED,01/01/2024 00:00,28/01/2024 00:00,P10-2024
,LEE VALLEY MARINA SPRINGFIELD,PREMISES RELATED EXPENDITURE,BUILDING SERVICE AGREEMENTS,2220,"P121662-SERVICE-Sanitary Disposal,Dust Mats,Eco Shield",28/01/2024 00:00,281801,216.54,PE0015,PHS GROUP PLC,01/01/2024 00:00,28/01/2024 00:00,P10-2024
,LEE VALLEY WATERWORKS CENTRE,PREMISES RELATED EXPENDITURE,BUILDING SERVICE AGREEMENTS,2220,P124762-SERVICE-Waterworks Dec 2023 PPM,28/01/2024 00:00,281898,376.11,CO0199,EQUANS FM LIMITED (frmlyENGIE FM LIMITED),01/01/2024 00:00,28/01/2024 00:00,P10-2024
,LEE VALLEY WATERWORKS CENTRE,PREMISES RELATED EXPENDITURE,BUILDING SERVICE AGREEMENTS,2220,P124763-SERVICE-Fire Alarm Service - Dec 2023 -  WWK's,28/01/2024 00:00,281899,268.63,CO0199,EQUANS FM LIMITED (frmlyENGIE FM LIMITED),01/01/2024 00:00,28/01/2024 00:00,P10-2024
P&V,NORTH AREA RANGERS,PREMISES RELATED EXPENDITURE,BUILDING SERVICE AGREEMENTS,2220,P121023-SERVICE-Sanitary Disposal - Old Mill & Meadows Toilet,08/01/2024 00:00,281017,3.74,PE0015,PHS GROUP PLC,01/01/2024 00:00,28/01/2024 00:00,P10-2024
P&V,NORTH AREA RANGERS,PREMISES RELATED EXPENDITURE,BUILDING SERVICE AGREEMENTS,2220,P121023-SERVICE-Sanitary Disposal - Old Mill & Meadows Toilet,08/01/2024 00:00,281255,-3.74,PE0015,PHS GROUP PLC,01/01/2024 00:00,28/01/2024 00:00,P10-2024
P&V,NORTH AREA RANGERS,PREMISES RELATED EXPENDITURE,BUILDING SERVICE AGREEMENTS,2220,P121023-SERVICE-Sanitary Disposal - Old Mill & Meadows Toilet,28/01/2024 00:00,281800,3.74,PE0015,PHS GROUP PLC,01/01/2024 00:00,28/01/2024 00:00,P10-2024
P&V,WILDLIFE DISCOVERY CENTRE,PREMISES RELATED EXPENDITURE,BUILDING SERVICE AGREEMENTS,2220,P124490-SERVICE-Fire Extinghuisher Service at Wildlife Discov,23/01/2024 00:00,281600,27.9,TJ0009,T.J.FIRE & SECURITY,01/01/2024 00:00,28/01/2024 00:00,P10-2024
P&V,GUNPOWDER PARK,PREMISES RELATED EXPENDITURE,BUILDING SERVICE AGREEMENTS,2220,P121073-SERVICE-Sanitary Disposal - Gunpowder Park - Public T,15/01/2024 00:00,281555,14.3,PE0015,PHS GROUP PLC,01/01/2024 00:00,28/01/2024 00:00,P10-2024
P&V,RIVER LEE COUNTRY PARK,PREMISES RELATED EXPENDITURE,BUILDING SERVICE AGREEMENTS,2220,P121074-SERVICE-Sanitary Disposal - Fishers Green Toilets,23/01/2024 00:00,281554,10.72,PE0015,PHS GROUP PLC,01/01/2024 00:00,28/01/2024 00:00,P10-2024
P&V,RIVER LEE COUNTRY PARK,PREMISES RELATED EXPENDITURE,BUILDING SERVICE AGREEMENTS,2220,P121071-SERVICE-Sanitary Disposal - Ranger Base Office Holyfi,28/01/2024 00:00,281929,6.47,PE0015,PHS GROUP PLC,01/01/2024 00:00,28/01/2024 00:00,P10-2024
,LV LEISURE CENTRE CAMPSITE,PREMISES RELATED EXPENDITURE,BUILDING SERVICE AGREEMENTS,2220,P124575-SERVICE-sanitary  bin exchange,09/01/2024 00:00,280561,163.96,PE0015,PHS GROUP PLC,01/01/2024 00:00,28/01/2024 00:00,P10-2024
,LV LEISURE CENTRE CAMPSITE,PREMISES RELATED EXPENDITURE,BUILDING SERVICE AGREEMENTS,2220,P124607-SERVICE-Office/reception alarm reset,16/01/2024 00:00,281557,115,RV0035,RVTV SECURITY GROUP LTD,01/01/2024 00:00,28/01/2024 00:00,P10-2024
P&V,MYDDELTON HOUSE,PREMISES RELATED EXPENDITURE,BUILDING REPAIRS & MAINTENANCE,2222,P124552-SERVICE-Emergency Lighting Test,08/01/2024 00:00,280866,756,BR0018,BRADSHAW ELECTRICAL LIMITED,01/01/2024 00:00,28/01/2024 00:00,P10-2024
P&V,MYDDELTON HOUSE,PREMISES RELATED EXPENDITURE,BUILDING REPAIRS & MAINTENANCE,2222,P124551-SERVICE-Install New Wiring Harness,08/01/2024 00:00,281055,330.05,AS0039,ASTON GROUP,01/01/2024 00:00,28/01/2024 00:00,P10-2024
P&V,MYDDELTON HOUSE,PREMISES RELATED EXPENDITURE,BUILDING REPAIRS & MAINTENANCE,2222,P124756-SERVICE-Main House and Cafe Front Door Repairs,28/01/2024 00:00,281993,440,AB0435,ABSOLUTE DOOR SERVICES ESSEX LTD,01/01/2024 00:00,28/01/2024 00:00,P10-2024
CEO,RESIDENTIAL ACCOMMODATION,PREMISES RELATED EXPENDITURE,BUILDING REPAIRS & MAINTENANCE,2222,P124749-SERVICE-EICR - Gate Lodge,28/01/2024 00:00,281284,210,BR0018,BRADSHAW ELECTRICAL LIMITED,01/01/2024 00:00,28/01/2024 00:00,P10-2024
CEO,RESIDENTIAL ACCOMMODATION,PREMISES RELATED EXPENDITURE,BUILDING REPAIRS & MAINTENANCE,2222,P121557-SERVICE-Maintenance,10/01/2024 00:00,281313,175,CA0165,CASTLES,01/01/2024 00:00,28/01/2024 00:00,P10-2024
CEO,RESIDENTIAL ACCOMMODATION,PREMISES RELATED EXPENDITURE,BUILDING REPAIRS & MAINTENANCE,2222,P121557-SERVICE-Maintenance,10/01/2024 00:00,281314,1608.33,CA0165,CASTLES,01/01/2024 00:00,28/01/2024 00:00,P10-2024
CEO,RESIDENTIAL ACCOMMODATION,PREMISES RELATED EXPENDITURE,BUILDING REPAIRS & MAINTENANCE,2222,P124753-SERVICE-2 Bungalow Pest Control,28/01/2024 00:00,281621,325,WA0315,PAUL WALLACE ESTATE AGENTS,01/01/2024 00:00,28/01/2024 00:00,P10-2024
CEO,RESIDENTIAL ACCOMMODATION,PREMISES RELATED EXPENDITURE,BUILDING REPAIRS & MAINTENANCE,2222,P124105-SERVICE-Myd House - isolation and reconnection of the,28/01/2024 00:00,281792,780,RE0094,REACT 2 IT (BUILDING & REFURBISHMENT) LTD,01/01/2024 00:00,28/01/2024 00:00,P10-2024
CEO,COMMERCIAL ACCOMMODATION,PREMISES RELATED EXPENDITURE,BUILDING REPAIRS & MAINTENANCE,2222,P121780-SERVICE-Concrete blocks Wharf Road,28/01/2024 00:00,281982,62,NA0171,NAIVETTE SERVICES LTD,01/01/2024 00:00,28/01/2024 00:00,P10-2024
,LEE VALLEY MARINA SPRINGFIELD,PREMISES RELATED EXPENDITURE,BUILDING REPAIRS & MAINTENANCE,2222,P124565-SERVICE-To replace Rams on gate due to flood,16/01/2024 00:00,281553,1450,DE0013,DENNIS SECURITY CENTRE,01/01/2024 00:00,28/01/2024 00:00,P10-2024
,LEE VALLEY MARINA SPRINGFIELD,PREMISES RELATED EXPENDITURE,BUILDING REPAIRS & MAINTENANCE,2222,P124748-SERVICE-Replacement board for Main vehicle gate,28/01/2024 00:00,281925,695,DE0013,DENNIS SECURITY CENTRE,01/01/2024 00:00,28/01/2024 00:00,P10-2024
,LEE VALLEY MARINA STANSTEAD,PREMISES RELATED EXPENDITURE,BUILDING REPAIRS & MAINTENANCE,2222,P124636-SERVICE-rear shop door detector batteries replaced,22/01/2024 00:00,281558,212.31,CH0088,CHUBB FIRE & SECURITY,01/01/2024 00:00,28/01/2024 00:00,P10-2024
,LEE VALLEY WATERWORKS CENTRE,PREMISES RELATED EXPENDITURE,BUILDING REPAIRS & MAINTENANCE,2222,P124023-SERVICE-Emergency Light Repairs at Waterworks Centre,28/01/2024 00:00,281897,352.05,CO0199,EQUANS FM LIMITED (frmlyENGIE FM LIMITED),01/01/2024 00:00,28/01/2024 00:00,P10-2024
P&V,LEE VALLEY FARM HOLYFIELDHALL,PREMISES RELATED EXPENDITURE,BUILDING REPAIRS & MAINTENANCE,2222,P121497-SERVICE-Building Repairs,28/01/2024 00:00,281022,68.88,JE0011,SAINT-GOBAIN BUILDING DISTRIBUTION,01/01/2024 00:00,28/01/2024 00:00,P10-2024
P&V,LEE VALLEY FARM HOLYFIELDHALL,PREMISES RELATED EXPENDITURE,BUILDING REPAIRS & MAINTENANCE,2222,P124503-SERVICE-Extend Current Supply to New Static Hook Up,08/01/2024 00:00,281063,625,BR0018,BRADSHAW ELECTRICAL LIMITED,01/01/2024 00:00,28/01/2024 00:00,P10-2024
P&V,LEE VALLEY FARM HOLYFIELDHALL,PREMISES RELATED EXPENDITURE,BUILDING REPAIRS & MAINTENANCE,2222,P124504-SERVICE-Immersion Heater/RCBO & Isolator,08/01/2024 00:00,281064,380,BR0018,BRADSHAW ELECTRICAL LIMITED,01/01/2024 00:00,28/01/2024 00:00,P10-2024
P&V,LEE VALLEY FARM HOLYFIELDHALL,PREMISES RELATED EXPENDITURE,BUILDING REPAIRS & MAINTENANCE,2222,P124797-SERVICE-Building Sundries,28/01/2024 00:00,281773,190.54,JE0011,SAINT-GOBAIN BUILDING DISTRIBUTION,01/01/2024 00:00,28/01/2024 00:00,P10-2024
P&V,NORTH AREA RANGERS,PREMISES RELATED EXPENDITURE,BUILDING REPAIRS & MAINTENANCE,2222,P124588-SERVICE-Fire Extingusher Servise at Ryrehouse Gate Ho,17/01/2024 00:00,281599,32.11,TJ0009,T.J.FIRE & SECURITY,01/01/2024 00:00,28/01/2024 00:00,P10-2024
P&V,WILDLIFE DISCOVERY CENTRE,PREMISES RELATED EXPENDITURE,BUILDING REPAIRS & MAINTENANCE,2222,P123345-SERVICE-Shutter Servcie at Wildlife Discovery Centre,28/01/2024 00:00,281344,360,SS0703,S&S SECURITY SERVICES LTD,01/01/2024 00:00,28/01/2024 00:00,P10-2024
P&V,GUNPOWDER PARK,PREMISES RELATED EXPENDITURE,BUILDING REPAIRS & MAINTENANCE,2222,P124555-SERVICE-Call Out Inspection Roof Strcture Gunpowder P,17/01/2024 00:00,281615,90,RE0094,REACT 2 IT (BUILDING & REFURBISHMENT) LTD,01/01/2024 00:00,28/01/2024 00:00,P10-2024
P&V,GUNPOWDER PARK,PREMISES RELATED EXPENDITURE,BUILDING REPAIRS & MAINTENANCE,2222,P123821-SERVICE-PPM - Oct 2023 to Mar 2024 at Gunpowder Park,17/01/2024 00:00,281620,154.6,CO0199,EQUANS FM LIMITED (frmlyENGIE FM LIMITED),01/01/2024 00:00,28/01/2024 00:00,P10-2024
P&V,RIVER LEE COUNTRY PARK,PREMISES RELATED EXPENDITURE,BUILDING REPAIRS & MAINTENANCE,2222,Fishers Green-investogate blocked toilet,28/01/2024 00:00,281936,5,RE0094,REACT 2 IT (BUILDING & REFURBISHMENT) LTD,01/01/2024 00:00,28/01/2024 00:00,P10-2024
P&V,RIVER LEE COUNTRY PARK,PREMISES RELATED EXPENDITURE,BUILDING REPAIRS & MAINTENANCE,2222,Fishers Green-investogate blocked toilet,28/01/2024 00:00,281936,85,RE0094,REACT 2 IT (BUILDING & REFURBISHMENT) LTD,01/01/2024 00:00,28/01/2024 00:00,P10-2024
P&V,RIVER LEE COUNTRY PARK,PREMISES RELATED EXPENDITURE,BUILDING REPAIRS & MAINTENANCE,2222,Fishers Green-investogate blocked toilet,28/01/2024 00:00,281936,-90,RE0094,REACT 2 IT (BUILDING & REFURBISHMENT) LTD,01/01/2024 00:00,28/01/2024 00:00,P10-2024
P&V,RIVER LEE COUNTRY PARK,PREMISES RELATED EXPENDITURE,BUILDING REPAIRS & MAINTENANCE,2222,P124718-SERVICE-Unblock Ladies & Disabled Toilets at Fishers,28/01/2024 00:00,281936,90,RE0094,REACT 2 IT (BUILDING & REFURBISHMENT) LTD,01/01/2024 00:00,28/01/2024 00:00,P10-2024
P&V,RIVER LEE COUNTRY PARK,PREMISES RELATED EXPENDITURE,BUILDING REPAIRS & MAINTENANCE,2222,P124589-SERVICE-Ranger Base - Replace Fire Blanket,28/01/2024 00:00,281998,19.2,TJ0009,T.J.FIRE & SECURITY,01/01/2024 00:00,28/01/2024 00:00,P10-2024
P&V,RIVER LEE COUNTRY PARK,PREMISES RELATED EXPENDITURE,BUILDING REPAIRS & MAINTENANCE,2222,P124589-SERVICE-Fire Extingusher at Ranger Base,28/01/2024 00:00,281998,54.51,TJ0009,T.J.FIRE & SECURITY,01/01/2024 00:00,28/01/2024 00:00,P10-2024
P&V,RIVER LEE COUNTRY PARK,PREMISES RELATED EXPENDITURE,BUILDING REPAIRS & MAINTENANCE,2222,P124589-SERVICE-Ranger Base - Replace Powder Extinguisher,28/01/2024 00:00,281998,53.45,TJ0009,T.J.FIRE & SECURITY,01/01/2024 00:00,28/01/2024 00:00,P10-2024
P&V,RIVER LEE COUNTRY PARK,PREMISES RELATED EXPENDITURE,BUILDING REPAIRS & MAINTENANCE,2222,P124589-SERVICE-Disposal of Fire Equipment - Out of Date,28/01/2024 00:00,281998,5.93,TJ0009,T.J.FIRE & SECURITY,01/01/2024 00:00,28/01/2024 00:00,P10-2024
P&V,FORMER LV LIDO SITE,PREMISES RELATED EXPENDITURE,BUILDING REPAIRS & MAINTENANCE,2222,P123346-SERVICE-Shutter Service at Broxbourne Riverside,28/01/2024 00:00,281345,285,SS0703,S&S SECURITY SERVICES LTD,01/01/2024 00:00,28/01/2024 00:00,P10-2024
,LV LEISURE CENTRE CAMPSITE,PREMISES RELATED EXPENDITURE,BUILDING REPAIRS & MAINTENANCE,2222,P124782-SERVICE-Various plumbing issues complete,28/01/2024 00:00,281970,430,SO0400,SOUTHERN GREEN SERVICES LIMITED,01/01/2024 00:00,28/01/2024 00:00,P10-2024
,LV LEISURE CENTRE CAMPSITE,PREMISES RELATED EXPENDITURE,BUILDING REPAIRS & MAINTENANCE,2222,P124782-SERVICE-Various plumbing issues complete,28/01/2024 00:00,281971,680,SO0400,SOUTHERN GREEN SERVICES LIMITED,01/01/2024 00:00,28/01/2024 00:00,P10-2024
,LV LEISURE CENTRE CAMPSITE,PREMISES RELATED EXPENDITURE,BUILDING REPAIRS & MAINTENANCE,2222,P124782-SERVICE-Various plumbing issues complete,28/01/2024 00:00,281972,905,SO0400,SOUTHERN GREEN SERVICES LIMITED,01/01/2024 00:00,28/01/2024 00:00,P10-2024
,LV LEISURE CENTRE CAMPSITE,PREMISES RELATED EXPENDITURE,BUILDING REPAIRS & MAINTENANCE,2222,P124782-SERVICE-Various plumbing issues complete,28/01/2024 00:00,281973,905,SO0400,SOUTHERN GREEN SERVICES LIMITED,01/01/2024 00:00,28/01/2024 00:00,P10-2024
CEO,LVLC SERVICE CHARGE,PREMISES RELATED EXPENDITURE,BUILDING REPAIRS & MAINTENANCE,2222,P124597-SERVICE-Faulty Barrier Call Out at LVLC,16/01/2024 00:00,281312,117,PS0429,PSL AUTOMATION,01/01/2024 00:00,28/01/2024 00:00,P10-2024
CEO,LVLC SERVICE CHARGE,PREMISES RELATED EXPENDITURE,BUILDING REPAIRS & MAINTENANCE,2222,P121726-SERVICE-Contract Sweep,28/01/2024 00:00,281752,300,SE0374,SELECT SWEEPER HIRE LTD,01/01/2024 00:00,28/01/2024 00:00,P10-2024
P&V,NORTH AREA RANGERS,SUPPLIES AND SERVICES,FENCES/GATES ETC.,2231,P124445-SERVICE-Bench at Ashley Pit,15/01/2024 00:00,281252,230,JO0019,R G JOYCE,01/01/2024 00:00,28/01/2024 00:00,P10-2024
P&V,SOUTH AREA RANGERS,SUPPLIES AND SERVICES,FENCES/GATES ETC.,2231,P124424-SERVICE-Gate Repairs at Picketts Lock Lane,28/01/2024 00:00,281793,380,RE0094,REACT 2 IT (BUILDING & REFURBISHMENT) LTD,01/01/2024 00:00,28/01/2024 00:00,P10-2024
P&V,RIVER LEE COUNTRY PARK,SUPPLIES AND SERVICES,FENCES/GATES ETC.,2231,P124491-SERVICE-11 x 20mm Gravel bulk bag,15/01/2024 00:00,281525,495,TR0031,TRAVIS PERKINS TRADING CO LTD,01/01/2024 00:00,28/01/2024 00:00,P10-2024
P&V,RIVER LEE COUNTRY PARK,SUPPLIES AND SERVICES,FENCES/GATES ETC.,2231,P124661-SERVICE-Bowyers Causeway - Supply & Replace Fence,28/01/2024 00:00,281833,3300,JO0019,R G JOYCE,01/01/2024 00:00,28/01/2024 00:00,P10-2024
P&V,NORTH AREA RANGERS,SUPPLIES AND SERVICES,PARK SIGNS AND BOARDS,2236,P124383-SERVICE-4x 'No Unauthorised Access' Signs - CONPROH8,16/01/2024 00:00,281012,18.92,SE0018,BRADY CORPORATION LIMITED/SETON,01/01/2024 00:00,28/01/2024 00:00,P10-2024
P&V,NORTH AREA RANGERS,SUPPLIES AND SERVICES,PARK SIGNS AND BOARDS,2236,P124383-SERVICE-2X 'No Pedestrian Access' Signs - PR042ADRP,16/01/2024 00:00,281012,47.01,SE0018,BRADY CORPORATION LIMITED/SETON,01/01/2024 00:00,28/01/2024 00:00,P10-2024
CEO,RESIDENTIAL ACCOMMODATION,EXPENDITURE FROM REPAIRS FUND,EXPENDITURE FROM REPAIRS FUND,2240,P124754-SERVICE-2 Bungalow - Replace Doors & Windows,28/01/2024 00:00,281622,7800,WA0315,PAUL WALLACE ESTATE AGENTS,01/01/2024 00:00,28/01/2024 00:00,P10-2024
CEO,COMMERCIAL ACCOMMODATION,PREMISES RELATED EXPENDITURE,EAST HALE ALLOTMENTS,2261,P121887-SERVICE-Allotment Bins,10/01/2024 00:00,281121,249.38,CL0037,VEOLIA ES (UK) LTD,01/01/2024 00:00,28/01/2024 00:00,P10-2024
P&V,MYDDELTON HOUSE,PREMISES RELATED EXPENDITURE,ENERGY COSTS (ELECTRICITY),2332,Md House-Dec2023,17/01/2024 00:00,281582,3052.14,KE0007,KENT COUNTY COUNCIL (KCS),01/01/2024 00:00,28/01/2024 00:00,P10-2024
CEO,RESIDENTIAL ACCOMMODATION,PREMISES RELATED EXPENDITURE,ENERGY COSTS (ELECTRICITY),2332,Gate Lodge Bulls Cross - 150823-221123,28/01/2024 00:00,281051,138.65,EO0422,E-ON NEXT ENERGY LTD,01/01/2024 00:00,28/01/2024 00:00,P10-2024
CEO,RESIDENTIAL ACCOMMODATION,PREMISES RELATED EXPENDITURE,ENERGY COSTS (ELECTRICITY),2332,Gate Lodge Bulls Cross - 231123-301123,28/01/2024 00:00,281052,52.95,EO0422,E-ON NEXT ENERGY LTD,01/01/2024 00:00,28/01/2024 00:00,P10-2024
CEO,RESIDENTIAL ACCOMMODATION,PREMISES RELATED EXPENDITURE,ENERGY COSTS (ELECTRICITY),2332,GATE LODGE BULLS CROSS - 011223-311223,28/01/2024 00:00,281332,171.01,EO0422,E-ON NEXT ENERGY LTD,01/01/2024 00:00,28/01/2024 00:00,P10-2024
CEO,RESIDENTIAL ACCOMMODATION,PREMISES RELATED EXPENDITURE,ENERGY COSTS (ELECTRICITY),2332,01/12/23-31/12/23,10/01/2024 00:00,281334,31.13,EO0419,E-ON NEXT ENERGY LTD,01/01/2024 00:00,28/01/2024 00:00,P10-2024
CEO,RESIDENTIAL ACCOMMODATION,PREMISES RELATED EXPENDITURE,ENERGY COSTS (ELECTRICITY),2332,01/12/23-31/12/23,10/01/2024 00:00,281336,31,EO0398,E-ON NEXT ENERGY LTD,01/01/2024 00:00,28/01/2024 00:00,P10-2024
CEO,RESIDENTIAL ACCOMMODATION,PREMISES RELATED EXPENDITURE,ENERGY COSTS (ELECTRICITY),2332,02/12/23-31/12/23,10/01/2024 00:00,281340,110.26,EO0420,E-ON NEXT ENERGY LTD,01/01/2024 00:00,28/01/2024 00:00,P10-2024
CEO,RESIDENTIAL ACCOMMODATION,PREMISES RELATED EXPENDITURE,ENERGY COSTS (ELECTRICITY),2332,12/12/23-11/01/24-Electricity,28/01/2024 00:00,281652,15.69,EO0418,E-ON NEXT ENERGY LTD,01/01/2024 00:00,28/01/2024 00:00,P10-2024
CEO,RESIDENTIAL ACCOMMODATION,PREMISES RELATED EXPENDITURE,ENERGY COSTS (ELECTRICITY),2332,CREDIT TO CANCEL 278834 & 279310,28/01/2024 00:00,281778,-5.21,EO0422,E-ON NEXT ENERGY LTD,01/01/2024 00:00,28/01/2024 00:00,P10-2024
CEO,RESIDENTIAL ACCOMMODATION,PREMISES RELATED EXPENDITURE,ENERGY COSTS (ELECTRICITY),2332,refer to Comp Ref 281332 & 201052,28/01/2024 00:00,281920,-223.96,EO0422,E-ON NEXT ENERGY LTD,01/01/2024 00:00,28/01/2024 00:00,P10-2024
CEO,RESIDENTIAL ACCOMMODATION,PREMISES RELATED EXPENDITURE,ENERGY COSTS (ELECTRICITY),2332,GATE LODGE BULLS CROSS - 231123-240124,28/01/2024 00:00,281923,108.24,EO0422,E-ON NEXT ENERGY LTD,01/01/2024 00:00,28/01/2024 00:00,P10-2024
,LEE VALLEY MARINA SPRINGFIELD,PREMISES RELATED EXPENDITURE,ENERGY COSTS (ELECTRICITY),2332,Springfield- Dec2023,17/01/2024 00:00,281587,6211.01,KE0007,KENT COUNTY COUNCIL (KCS),01/01/2024 00:00,28/01/2024 00:00,P10-2024
,LEE VALLEY WATERWORKS CENTRE,PREMISES RELATED EXPENDITURE,ENERGY COSTS (ELECTRICITY),2332,Waterworks-electric-Dec23,17/01/2024 00:00,281603,1797.73,NP0123,NPOWER LIMITED,01/01/2024 00:00,28/01/2024 00:00,P10-2024
P&V,LEE VALLEY FARM HOLYFIELDHALL,PREMISES RELATED EXPENDITURE,ENERGY COSTS (ELECTRICITY),2332,Holyfield- Dec 23,17/01/2024 00:00,281638,39.58,KE0007,KENT COUNTY COUNCIL (KCS),01/01/2024 00:00,28/01/2024 00:00,P10-2024
,LEE VALLEY CAMPSITE,PREMISES RELATED EXPENDITURE,ENERGY COSTS (ELECTRICITY),2332,Sewardstone-Dec2023,22/01/2024 00:00,281585,5321.79,KE0007,KENT COUNTY COUNCIL (KCS),01/01/2024 00:00,28/01/2024 00:00,P10-2024
,LEE VALLEY CAMPSITE,PREMISES RELATED EXPENDITURE,ENERGY COSTS (ELECTRICITY),2332,Sewardstone-Dec2023,22/01/2024 00:00,281586,4664.97,KE0007,KENT COUNTY COUNCIL (KCS),01/01/2024 00:00,28/01/2024 00:00,P10-2024
,LEE VALLEY CARAVAN PARK,PREMISES RELATED EXPENDITURE,ENERGY COSTS (ELECTRICITY),2332,DW-electric Dec23,23/01/2024 00:00,281639,17384.15,KE0007,KENT COUNTY COUNCIL (KCS),01/01/2024 00:00,28/01/2024 00:00,P10-2024
P&V,GUNPOWDER PARK,PREMISES RELATED EXPENDITURE,ENERGY COSTS (ELECTRICITY),2332,Field Station - Dec2023,17/01/2024 00:00,281581,879.38,KE0007,KENT COUNTY COUNCIL (KCS),01/01/2024 00:00,28/01/2024 00:00,P10-2024
P&V,QUEEN ELIZABETH OLYMPIC PARK,PREMISES RELATED EXPENDITURE,ENERGY COSTS (ELECTRICITY),2332,Velo-Feeder Pillar-E13,17/01/2024 00:00,281583,349.6,KE0007,KENT COUNTY COUNCIL (KCS),01/01/2024 00:00,28/01/2024 00:00,P10-2024
P&V,QUEEN ELIZABETH OLYMPIC PARK,PREMISES RELATED EXPENDITURE,ENERGY COSTS (ELECTRICITY),2332,Velo-Feeder Pillar- L05 FPI-Dec2023,17/01/2024 00:00,281584,171.08,KE0007,KENT COUNTY COUNCIL (KCS),01/01/2024 00:00,28/01/2024 00:00,P10-2024
P&V,QUEEN ELIZABETH OLYMPIC PARK,PREMISES RELATED EXPENDITURE,ENERGY COSTS (ELECTRICITY),2332,Velo-Feeder Pillar- L05 FPI-Dec2023,17/01/2024 00:00,281584,1.02,KE0007,KENT COUNTY COUNCIL (KCS),01/01/2024 00:00,28/01/2024 00:00,P10-2024
P&V,QUEEN ELIZABETH OLYMPIC PARK,PREMISES RELATED EXPENDITURE,ENERGY COSTS (ELECTRICITY),2332,Velo-Feeder pillar- Velogromirrigation,17/01/2024 00:00,281634,124.63,KE0007,KENT COUNTY COUNCIL (KCS),01/01/2024 00:00,28/01/2024 00:00,P10-2024
P&V,CAR PARK INCOME,PREMISES RELATED EXPENDITURE,ENERGY COSTS (ELECTRICITY),2332,Cornmill Meadow-electric-Dec23,17/01/2024 00:00,281604,61.64,NP0123,NPOWER LIMITED,01/01/2024 00:00,28/01/2024 00:00,P10-2024
P&V,CAR PARK INCOME,PREMISES RELATED EXPENDITURE,ENERGY COSTS (ELECTRICITY),2332,Clayton Hill-electric- Dec2023,17/01/2024 00:00,281605,44.89,NP0123,NPOWER LIMITED,01/01/2024 00:00,28/01/2024 00:00,P10-2024
,LV LEISURE CENTRE CAMPSITE,PREMISES RELATED EXPENDITURE,ENERGY COSTS (ELECTRICITY),2332,EDM-electric- Dec23,17/01/2024 00:00,281602,12511.65,NP0123,NPOWER LIMITED,01/01/2024 00:00,28/01/2024 00:00,P10-2024
CEO,RESIDENTIAL ACCOMMODATION,PREMISES RELATED EXPENDITURE,ENERGY COSTS (GAS),2333,Gate Lodge Bulls Cross - 150823-221123,28/01/2024 00:00,281051,180.12,EO0422,E-ON NEXT ENERGY LTD,01/01/2024 00:00,28/01/2024 00:00,P10-2024
CEO,RESIDENTIAL ACCOMMODATION,PREMISES RELATED EXPENDITURE,ENERGY COSTS (GAS),2333,Gate Lodge Bulls Cross - 231123-301123,28/01/2024 00:00,281052,78.36,EO0422,E-ON NEXT ENERGY LTD,01/01/2024 00:00,28/01/2024 00:00,P10-2024
CEO,RESIDENTIAL ACCOMMODATION,PREMISES RELATED EXPENDITURE,ENERGY COSTS (GAS),2333,GATE LODGE BULLS CROSS - 011223-311223,28/01/2024 00:00,281332,301.16,EO0422,E-ON NEXT ENERGY LTD,01/01/2024 00:00,28/01/2024 00:00,P10-2024
CEO,RESIDENTIAL ACCOMMODATION,PREMISES RELATED EXPENDITURE,ENERGY COSTS (GAS),2333,CREDIT TO CANCEL 278834 & 279310,28/01/2024 00:00,281778,-408.75,EO0422,E-ON NEXT ENERGY LTD,01/01/2024 00:00,28/01/2024 00:00,P10-2024
CEO,RESIDENTIAL ACCOMMODATION,PREMISES RELATED EXPENDITURE,ENERGY COSTS (GAS),2333,refer to Comp Ref 281332 & 201052,28/01/2024 00:00,281920,-379.52,EO0422,E-ON NEXT ENERGY LTD,01/01/2024 00:00,28/01/2024 00:00,P10-2024
CEO,RESIDENTIAL ACCOMMODATION,PREMISES RELATED EXPENDITURE,ENERGY COSTS (GAS),2333,GATE LODGE BULLS CROSS - 231123-240124,28/01/2024 00:00,281923,247,EO0422,E-ON NEXT ENERGY LTD,01/01/2024 00:00,28/01/2024 00:00,P10-2024
CEO,RESIDENTIAL ACCOMMODATION,PREMISES RELATED EXPENDITURE,ENERGY COSTS (GAS),2333,Gate Lodge-gas- 22/01/24-23/01/24,28/01/2024 00:00,281943,1.56,EO0422,E-ON NEXT ENERGY LTD,01/01/2024 00:00,28/01/2024 00:00,P10-2024
,LEE VALLEY MARINA SPRINGFIELD,PREMISES RELATED EXPENDITURE,ENERGY COSTS (GAS),2333,Springfield-gas-Dec2023,22/01/2024 00:00,281645,2042.19,KE0007,KENT COUNTY COUNCIL (KCS),01/01/2024 00:00,28/01/2024 00:00,P10-2024
,LEE VALLEY MARINA STANSTEAD,PREMISES RELATED EXPENDITURE,ENERGY COSTS (GAS),2333,Stanstead- gas- Dec2023,22/01/2024 00:00,281646,792.99,KE0007,KENT COUNTY COUNCIL (KCS),01/01/2024 00:00,28/01/2024 00:00,P10-2024
,LEE VALLEY MARINA STANSTEAD,PREMISES RELATED EXPENDITURE,ENERGY COSTS (GAS),2333,Stanstead-gas- Dec2023,22/01/2024 00:00,281647,206.49,KE0007,KENT COUNTY COUNCIL (KCS),01/01/2024 00:00,28/01/2024 00:00,P10-2024
,LEE VALLEY WATERWORKS CENTRE,PREMISES RELATED EXPENDITURE,ENERGY COSTS (GAS),2333,Waterworks - gas - Dec2023,28/01/2024 00:00,281644,1056.08,KE0007,KENT COUNTY COUNCIL (KCS),01/01/2024 00:00,28/01/2024 00:00,P10-2024
,LEE VALLEY CAMPSITE,PREMISES RELATED EXPENDITURE,ENERGY COSTS (GAS),2333,15/12/23-15/01/24,22/01/2024 00:00,281564,10.77,BR0654,BRITISH GAS ENERGY,01/01/2024 00:00,28/01/2024 00:00,P10-2024
,LEE VALLEY CAMPSITE,PREMISES RELATED EXPENDITURE,ENERGY COSTS (GAS),2333,Sewardstone-gas Dec2023,22/01/2024 00:00,281649,1302.96,KE0007,KENT COUNTY COUNCIL (KCS),01/01/2024 00:00,28/01/2024 00:00,P10-2024
,LEE VALLEY CARAVAN PARK,PREMISES RELATED EXPENDITURE,ENERGY COSTS (GAS),2333,P124729-SERVICE-Gas delivery,23/01/2024 00:00,281598,5940.23,AV0327,AVANTI GAS LIMITED,01/01/2024 00:00,28/01/2024 00:00,P10-2024
,LEE VALLEY CARAVAN PARK,PREMISES RELATED EXPENDITURE,ENERGY COSTS (GAS),2333,P124725-SERVICE-Gas delivery,24/01/2024 00:00,281650,5940.23,AV0327,AVANTI GAS LIMITED,01/01/2024 00:00,28/01/2024 00:00,P10-2024
,LEE VALLEY CARAVAN PARK,PREMISES RELATED EXPENDITURE,ENERGY COSTS (GAS),2333,P124729-SERVICE-Gas delivery,24/01/2024 00:00,281650,399.34,AV0327,AVANTI GAS LIMITED,01/01/2024 00:00,28/01/2024 00:00,P10-2024
,LEE VALLEY CARAVAN PARK,PREMISES RELATED EXPENDITURE,ENERGY COSTS (GAS),2333,P124732-SERVICE-Gas delivery,24/01/2024 00:00,281651,493.97,AV0327,AVANTI GAS LIMITED,01/01/2024 00:00,28/01/2024 00:00,P10-2024
P&V,GUNPOWDER PARK,PREMISES RELATED EXPENDITURE,ENERGY COSTS (GAS),2333,Field Station-gas- Dec2023,22/01/2024 00:00,281642,79.37,KE0007,KENT COUNTY COUNCIL (KCS),01/01/2024 00:00,28/01/2024 00:00,P10-2024
,LV LEISURE CENTRE CAMPSITE,PREMISES RELATED EXPENDITURE,ENERGY COSTS (GAS),2333,EDM-gas-Dec2023,22/01/2024 00:00,281648,4053.09,KE0007,KENT COUNTY COUNCIL (KCS),01/01/2024 00:00,28/01/2024 00:00,P10-2024
CEO,RESIDENTIAL ACCOMMODATION,PREMISES RELATED EXPENDITURE,PROPERTY MANAGEMT/LETTING FEES,2447,P124750-SERVICE-Marshgate Cottage 6 Month Management Fee,28/01/2024 00:00,281408,600,WA0315,PAUL WALLACE ESTATE AGENTS,01/01/2024 00:00,28/01/2024 00:00,P10-2024
CEO,RESIDENTIAL ACCOMMODATION,PREMISES RELATED EXPENDITURE,PROPERTY MANAGEMT/LETTING FEES,2447,P124751-SERVICE-9 Picketts Lock Lane 6 Month Landlord Fees,28/01/2024 00:00,281617,780,CA0165,CASTLES,01/01/2024 00:00,28/01/2024 00:00,P10-2024
CEO,RESIDENTIAL ACCOMMODATION,PREMISES RELATED EXPENDITURE,PROPERTY MANAGEMT/LETTING FEES,2447,P124752-SERVICE-9 Picketts Lock Lane 6 Month Landlord Warrant,28/01/2024 00:00,281618,132.6,CA0165,CASTLES,01/01/2024 00:00,28/01/2024 00:00,P10-2024
P&V,MYDDELTON HOUSE,PREMISES RELATED EXPENDITURE,WATER,2555,Md Hse- water - Dec 2023,10/01/2024 00:00,281376,1815.08,CA0625,CASTLE WATER LIMITED,01/01/2024 00:00,28/01/2024 00:00,P10-2024
,LEE VALLEY MARINA SPRINGFIELD,PREMISES RELATED EXPENDITURE,WATER,2555,Springfield-water-Dec2023,09/01/2024 00:00,281265,1285.92,CA0625,CASTLE WATER LIMITED,01/01/2024 00:00,28/01/2024 00:00,P10-2024
,LEE VALLEY MARINA SPRINGFIELD,PREMISES RELATED EXPENDITURE,WATER,2555,Springfield-water-Dec2023,09/01/2024 00:00,281265,2080.53,CA0625,CASTLE WATER LIMITED,01/01/2024 00:00,28/01/2024 00:00,P10-2024
,LEE VALLEY MARINA SPRINGFIELD,PREMISES RELATED EXPENDITURE,WATER,2555,Springfield-adjustment(s) Oct23-Dec23,28/01/2024 00:00,281837,142.12,CA0625,CASTLE WATER LIMITED,01/01/2024 00:00,28/01/2024 00:00,P10-2024
,LEE VALLEY MARINA SPRINGFIELD,PREMISES RELATED EXPENDITURE,WATER,2555,Springfield-adjustment(s) Oct23-Dec23,28/01/2024 00:00,281837,246.48,CA0625,CASTLE WATER LIMITED,01/01/2024 00:00,28/01/2024 00:00,P10-2024
,LEE VALLEY MARINA STANSTEAD,PREMISES RELATED EXPENDITURE,WATER,2555,Stanstead - water- Dec 23,10/01/2024 00:00,281230,218.43,CA0625,CASTLE WATER LIMITED,01/01/2024 00:00,28/01/2024 00:00,P10-2024
,LEE VALLEY MARINA STANSTEAD,PREMISES RELATED EXPENDITURE,WATER,2555,Stanstead - water- Dec 23,10/01/2024 00:00,281230,224.65,CA0625,CASTLE WATER LIMITED,01/01/2024 00:00,28/01/2024 00:00,P10-2024
,LEE VALLEY WATERWORKS CENTRE,PREMISES RELATED EXPENDITURE,WATER,2555,Waterworks-water- Dec23,08/01/2024 00:00,281267,78.73,CA0625,CASTLE WATER LIMITED,01/01/2024 00:00,28/01/2024 00:00,P10-2024
,LEE VALLEY WATERWORKS CENTRE,PREMISES RELATED EXPENDITURE,WATER,2555,Waterworks-water- adjustments Sept23-Nov,24/01/2024 00:00,281790,5.84,CA0625,CASTLE WATER LIMITED,01/01/2024 00:00,28/01/2024 00:00,P10-2024
P&V,LEE VALLEY FARM HOLYFIELDHALL,PREMISES RELATED EXPENDITURE,WATER,2555,Holyfield-water-Dec2023,17/01/2024 00:00,281507,97.04,CA0625,CASTLE WATER LIMITED,01/01/2024 00:00,28/01/2024 00:00,P10-2024
,LEE VALLEY CAMPSITE,PREMISES RELATED EXPENDITURE,WATER,2555,Sewardstone- water- Dec 2023,15/01/2024 00:00,281229,2104.83,CA0625,CASTLE WATER LIMITED,01/01/2024 00:00,28/01/2024 00:00,P10-2024
,LEE VALLEY CAMPSITE,PREMISES RELATED EXPENDITURE,WATER,2555,Sewardstone-Adjustment-Sept23-Dec23,28/01/2024 00:00,281820,-973.05,CA0625,CASTLE WATER LIMITED,01/01/2024 00:00,28/01/2024 00:00,P10-2024
,LEE VALLEY CARAVAN PARK,PREMISES RELATED EXPENDITURE,WATER,2555,DW-water-Dec2023,09/01/2024 00:00,281266,1957.38,CA0625,CASTLE WATER LIMITED,01/01/2024 00:00,28/01/2024 00:00,P10-2024
,LEE VALLEY CARAVAN PARK,PREMISES RELATED EXPENDITURE,WATER,2555,DW-water-Dec2023,09/01/2024 00:00,281266,3245.02,CA0625,CASTLE WATER LIMITED,01/01/2024 00:00,28/01/2024 00:00,P10-2024
,LEE VALLEY CARAVAN PARK,PREMISES RELATED EXPENDITURE,WATER,2555,DW-water-adjustments-01/11-31/12/23,28/01/2024 00:00,281938,-320.23,CA0625,CASTLE WATER LIMITED,01/01/2024 00:00,28/01/2024 00:00,P10-2024
,LEE VALLEY CARAVAN PARK,PREMISES RELATED EXPENDITURE,WATER,2555,DW-water-adjustments-01/11-31/12/23,28/01/2024 00:00,281938,-184.65,CA0625,CASTLE WATER LIMITED,01/01/2024 00:00,28/01/2024 00:00,P10-2024
P&V,EAST INDIA DOCK AND BOW CREEK,PREMISES RELATED EXPENDITURE,WATER,2555,Orchard Pl - Nov23-Mar24,08/01/2024 00:00,281231,36.97,CA0625,CASTLE WATER LIMITED,01/01/2024 00:00,28/01/2024 00:00,P10-2024
P&V,RIVER LEE COUNTRY PARK,PREMISES RELATED EXPENDITURE,WATER,2555,Netherfield-water-Dec 2023,15/01/2024 00:00,281508,31.52,CA0625,CASTLE WATER LIMITED,01/01/2024 00:00,28/01/2024 00:00,P10-2024
P&V,RIVER LEE COUNTRY PARK,PREMISES RELATED EXPENDITURE,WATER,2555,Fishers Green-water Dec2023,15/01/2024 00:00,281547,31.41,CA0625,CASTLE WATER LIMITED,01/01/2024 00:00,28/01/2024 00:00,P10-2024
P&V,RIVER LEE COUNTRY PARK,PREMISES RELATED EXPENDITURE,WATER,2555,Showground-water-Nov 2023,28/01/2024 00:00,281945,38.81,CA0625,CASTLE WATER LIMITED,01/01/2024 00:00,28/01/2024 00:00,P10-2024
P&V,RIVER LEE COUNTRY PARK,PREMISES RELATED EXPENDITURE,WATER,2555,Showground-water-Dec2023,28/01/2024 00:00,281946,62.1,CA0625,CASTLE WATER LIMITED,01/01/2024 00:00,28/01/2024 00:00,P10-2024
P&V,FORMER LV LIDO SITE,PREMISES RELATED EXPENDITURE,WATER,2555,Brox Riverside- water- Dec2023,22/01/2024 00:00,281375,510.85,CA0625,CASTLE WATER LIMITED,01/01/2024 00:00,28/01/2024 00:00,P10-2024
P&V,FORMER LV LIDO SITE,PREMISES RELATED EXPENDITURE,WATER,2555,Brox Riverside- water- Dec2023,22/01/2024 00:00,281375,549.25,CA0625,CASTLE WATER LIMITED,01/01/2024 00:00,28/01/2024 00:00,P10-2024
,LV LEISURE CENTRE CAMPSITE,PREMISES RELATED EXPENDITURE,WATER,2555,EDM-water Dec 2023,09/01/2024 00:00,281263,37.99,CA0625,CASTLE WATER LIMITED,01/01/2024 00:00,28/01/2024 00:00,P10-2024
,LV LEISURE CENTRE CAMPSITE,PREMISES RELATED EXPENDITURE,WATER,2555,EDM-water Dec 2023,09/01/2024 00:00,281263,44.48,CA0625,CASTLE WATER LIMITED,01/01/2024 00:00,28/01/2024 00:00,P10-2024
,LV LEISURE CENTRE CAMPSITE,PREMISES RELATED EXPENDITURE,WATER,2555,EDM-water-Dec2023,09/01/2024 00:00,281264,576.87,CA0625,CASTLE WATER LIMITED,01/01/2024 00:00,28/01/2024 00:00,P10-2024
,LV LEISURE CENTRE CAMPSITE,PREMISES RELATED EXPENDITURE,WATER,2555,EDM-water-Dec2023,09/01/2024 00:00,281264,401.75,CA0625,CASTLE WATER LIMITED,01/01/2024 00:00,28/01/2024 00:00,P10-2024
,LV LEISURE CENTRE CAMPSITE,PREMISES RELATED EXPENDITURE,WATER,2555,EDM-water-adjustment(s) Nov 2023,28/01/2024 00:00,281836,-3.88,CA0625,CASTLE WATER LIMITED,01/01/2024 00:00,28/01/2024 00:00,P10-2024
,LV LEISURE CENTRE CAMPSITE,PREMISES RELATED EXPENDITURE,WATER,2555,EDM-water-adjustment(s) Nov 2023,28/01/2024 00:00,281836,-2.24,CA0625,CASTLE WATER LIMITED,01/01/2024 00:00,28/01/2024 00:00,P10-2024
,LEE VALLEY MARINA SPRINGFIELD,PREMISES RELATED EXPENDITURE,CLEANING & DOMESTIC SUPPLIES,2666,P124634-SERVICE-Site cleaning December to March,15/01/2024 00:00,281080,1070.52,MA0015,MAYFAIR CLEANING COMPANY LIMITED,01/01/2024 00:00,28/01/2024 00:00,P10-2024
,LEE VALLEY MARINA SPRINGFIELD,PREMISES RELATED EXPENDITURE,CLEANING & DOMESTIC SUPPLIES,2666,P124141-SERVICE-To supply items as requested,22/01/2024 00:00,281658,173.78,HY0043,HYGIENE SYSTEMS LTD,01/01/2024 00:00,28/01/2024 00:00,P10-2024
,LEE VALLEY CAMPSITE,PREMISES RELATED EXPENDITURE,CLEANING & DOMESTIC SUPPLIES,2666,P124279-SERVICE-Site cleaning  materials,28/01/2024 00:00,281767,108.22,HY0043,HYGIENE SYSTEMS LTD,01/01/2024 00:00,28/01/2024 00:00,P10-2024
,LEE VALLEY CARAVAN PARK,PREMISES RELATED EXPENDITURE,CLEANING & DOMESTIC SUPPLIES,2666,P124564-SERVICE-Cleaning supplies,15/01/2024 00:00,281526,319.76,HY0043,HYGIENE SYSTEMS LTD,01/01/2024 00:00,28/01/2024 00:00,P10-2024
,LV LEISURE CENTRE CAMPSITE,PREMISES RELATED EXPENDITURE,CLEANING & DOMESTIC SUPPLIES,2666,P124486-SERVICE-Cleaning supplies,09/01/2024 00:00,281271,185.04,HY0043,HYGIENE SYSTEMS LTD,01/01/2024 00:00,28/01/2024 00:00,P10-2024
,LV LEISURE CENTRE CAMPSITE,PREMISES RELATED EXPENDITURE,CLEANING & DOMESTIC SUPPLIES,2666,P124742-SERVICE-Cleaning supplies,28/01/2024 00:00,281986,202.56,HY0043,HYGIENE SYSTEMS LTD,01/01/2024 00:00,28/01/2024 00:00,P10-2024
P&V,LEE VALLEY FARM HOLYFIELDHALL,TRANSPORT RELATED EXPENDITURE,TRANSPORT RUNNING EXPENSES,3333,P121507-SERVICE-Machinery Spares,09/01/2024 00:00,281287,145,SP0034,SPALDINGS (UK) LIMITED,01/01/2024 00:00,28/01/2024 00:00,P10-2024
P&V,LEE VALLEY FARM HOLYFIELDHALL,TRANSPORT RELATED EXPENDITURE,TRANSPORT RUNNING EXPENSES,3333,P121509-SERVICE-Tractor Spares,09/01/2024 00:00,281324,76.25,RW0257,R. W. CRAWFORD AGRICULTURAL MACHINERY LTD,01/01/2024 00:00,28/01/2024 00:00,P10-2024
P&V,LEE VALLEY FARM HOLYFIELDHALL,TRANSPORT RELATED EXPENDITURE,TRANSPORT RUNNING EXPENSES,3333,P121509-SERVICE-Tractor Spares,28/01/2024 00:00,281806,33.04,RW0257,R. W. CRAWFORD AGRICULTURAL MACHINERY LTD,01/01/2024 00:00,28/01/2024 00:00,P10-2024
P&V,LEE VALLEY FARM HOLYFIELDHALL,TRANSPORT RELATED EXPENDITURE,TRANSPORT RUNNING EXPENSES,3333,P121496-SERVICE-Workshop Sundries,28/01/2024 00:00,281981,45,GR0022,GROUP COMPONENTS LIMITED,01/01/2024 00:00,28/01/2024 00:00,P10-2024
,LV LEISURE CENTRE CAMPSITE,TRANSPORT RELATED EXPENDITURE,TRANSPORT RUNNING EXPENSES,3333,P124569-SERVICE-DW Transport Golf Buggies,15/01/2024 00:00,281079,325,CL0760,CLARKS CARAVAN & BOAT HAULAGE LTD,01/01/2024 00:00,28/01/2024 00:00,P10-2024
,LV LEISURE CENTRE CAMPSITE,TRANSPORT RELATED EXPENDITURE,TRANSPORT RUNNING EXPENSES,3333,P124569-SERVICE-EC Transport Golf Buggies,15/01/2024 00:00,281079,325,CL0760,CLARKS CARAVAN & BOAT HAULAGE LTD,01/01/2024 00:00,28/01/2024 00:00,P10-2024
,LV LEISURE CENTRE GOLF COURSE,TRANSPORT RELATED EXPENDITURE,VEHICLE FUEL,3335,P124639-SERVICE-GOLF 1000 LITRES RED DIESEL,28/01/2024 00:00,281810,784.22,HA0400,WATSON FUELS,01/01/2024 00:00,28/01/2024 00:00,P10-2024
P&V,SOUTH AREA RANGERS,TRANSPORT RELATED EXPENDITURE,VEHICLE REPAIRS & MAINTENANCE,3338,P124082-SERVICE-Repair Boot Door - LT71 HPO,15/01/2024 00:00,281552,525,DR0326,DRIVING FORCE,01/01/2024 00:00,28/01/2024 00:00,P10-2024
P&V,MYDDELTON HOUSE,SUPPLIES AND SERVICES,EQUIPMENT & MATERIALS,4111,P124369-SERVICE-Materials,22/01/2024 00:00,281731,13.14,AM0406,AMAZON PAYMENTS UK LIMITED,01/01/2024 00:00,28/01/2024 00:00,P10-2024
P&V,MYDDELTON HOUSE,SUPPLIES AND SERVICES,EQUIPMENT & MATERIALS,4111,P124734-SERVICE-Padlock,23/01/2024 00:00,281762,20.83,SC0057,SCREWFIX DIRECT LTD,01/01/2024 00:00,28/01/2024 00:00,P10-2024
P&V,MYDDELTON HOUSE,SUPPLIES AND SERVICES,EQUIPMENT & MATERIALS,4111,P124369-SERVICE-Materials,23/01/2024 00:00,281763,21.99,AM0406,AMAZON PAYMENTS UK LIMITED,01/01/2024 00:00,28/01/2024 00:00,P10-2024
,LEE VALLEY MARINA SPRINGFIELD,SUPPLIES AND SERVICES,EQUIPMENT & MATERIALS,4111,P124274-SERVICE-Fire Signs & equipment,10/01/2024 00:00,281298,170.65,TJ0009,T.J.FIRE & SECURITY,01/01/2024 00:00,28/01/2024 00:00,P10-2024
,LEE VALLEY MARINA SPRINGFIELD,SUPPLIES AND SERVICES,EQUIPMENT & MATERIALS,4111,P124630-SERVICE-Karcher K3 Home pressure washer,17/01/2024 00:00,281611,119.99,IN0011,INDUSTRIAL TOOL SUPPLIES (LONDON) LTD,01/01/2024 00:00,28/01/2024 00:00,P10-2024
,LEE VALLEY MARINA SPRINGFIELD,SUPPLIES AND SERVICES,EQUIPMENT & MATERIALS,4111,"P124673-SERVICE-Trend Guided Trimmer 50mm cut -1/2"" shank",28/01/2024 00:00,281744,14.99,IN0011,INDUSTRIAL TOOL SUPPLIES (LONDON) LTD,01/01/2024 00:00,28/01/2024 00:00,P10-2024
,LEE VALLEY MARINA SPRINGFIELD,SUPPLIES AND SERVICES,EQUIPMENT & MATERIALS,4111,"P124673-SERVICE-Trend Guided Trimmer 50mm cut -1/2"" shank",28/01/2024 00:00,281745,35.01,IN0011,INDUSTRIAL TOOL SUPPLIES (LONDON) LTD,01/01/2024 00:00,28/01/2024 00:00,P10-2024
,LEE VALLEY MARINA SPRINGFIELD,SUPPLIES AND SERVICES,EQUIPMENT & MATERIALS,4111,P124673-SERVICE-Essentials garden rake code 996776,28/01/2024 00:00,281745,14.99,IN0011,INDUSTRIAL TOOL SUPPLIES (LONDON) LTD,01/01/2024 00:00,28/01/2024 00:00,P10-2024
,LEE VALLEY MARINA SPRINGFIELD,SUPPLIES AND SERVICES,EQUIPMENT & MATERIALS,4111,"P124673-SERVICE-Vaunt 150 piece 125mm ""3grit"" sanding discs",28/01/2024 00:00,281745,16.24,IN0011,INDUSTRIAL TOOL SUPPLIES (LONDON) LTD,01/01/2024 00:00,28/01/2024 00:00,P10-2024
,LEE VALLEY MARINA SPRINGFIELD,SUPPLIES AND SERVICES,EQUIPMENT & MATERIALS,4111,P124673-SERVICE-3 x Vaunt Heavy duty puncture proof wheelbarr,28/01/2024 00:00,281745,74.97,IN0011,INDUSTRIAL TOOL SUPPLIES (LONDON) LTD,01/01/2024 00:00,28/01/2024 00:00,P10-2024
,LEE VALLEY CAMPSITE,SUPPLIES AND SERVICES,EQUIPMENT & MATERIALS,4111,P124731-SERVICE-Litter Picker,28/01/2024 00:00,281588,15.18,AM0406,AMAZON PAYMENTS UK LIMITED,01/01/2024 00:00,28/01/2024 00:00,P10-2024
,LEE VALLEY CAMPSITE,SUPPLIES AND SERVICES,EQUIPMENT & MATERIALS,4111,P124731-SERVICE-Flash speedmop starterkit for house,28/01/2024 00:00,281589,19.16,AM0406,AMAZON PAYMENTS UK LIMITED,01/01/2024 00:00,28/01/2024 00:00,P10-2024
,LEE VALLEY CAMPSITE,SUPPLIES AND SERVICES,EQUIPMENT & MATERIALS,4111,P124731-SERVICE-Flash speedmop refill pack,28/01/2024 00:00,281589,11.66,AM0406,AMAZON PAYMENTS UK LIMITED,01/01/2024 00:00,28/01/2024 00:00,P10-2024
,LEE VALLEY CAMPSITE,SUPPLIES AND SERVICES,EQUIPMENT & MATERIALS,4111,P124731-SERVICE-Vielda turbo microfibre  mop,28/01/2024 00:00,281590,20.55,AM0406,AMAZON PAYMENTS UK LIMITED,01/01/2024 00:00,28/01/2024 00:00,P10-2024
,LEE VALLEY CAMPSITE,SUPPLIES AND SERVICES,EQUIPMENT & MATERIALS,4111,P124731-SERVICE-Litter Picker,28/01/2024 00:00,281591,14.57,AM0406,AMAZON PAYMENTS UK LIMITED,01/01/2024 00:00,28/01/2024 00:00,P10-2024
,LEE VALLEY CAMPSITE,SUPPLIES AND SERVICES,EQUIPMENT & MATERIALS,4111,P124731-SERVICE-Large mop and handle,28/01/2024 00:00,281788,12.74,AM0406,AMAZON PAYMENTS UK LIMITED,01/01/2024 00:00,28/01/2024 00:00,P10-2024
,LEE VALLEY CARAVAN PARK,SUPPLIES AND SERVICES,EQUIPMENT & MATERIALS,4111,P124449-SERVICE-Guttering for HH124 and 5 bags of Rock Salt,10/01/2024 00:00,281215,58.92,LE0012,LEASIDE TIMBER & BUILDERS MERCHANTS LTD,01/01/2024 00:00,28/01/2024 00:00,P10-2024
,LEE VALLEY CARAVAN PARK,SUPPLIES AND SERVICES,EQUIPMENT & MATERIALS,4111,P124584-SERVICE-Gresse for Hot tub and Security motion Camera,15/01/2024 00:00,281390,4.67,AM0406,AMAZON PAYMENTS UK LIMITED,01/01/2024 00:00,28/01/2024 00:00,P10-2024
,LEE VALLEY CARAVAN PARK,SUPPLIES AND SERVICES,EQUIPMENT & MATERIALS,4111,P124584-SERVICE-Gresse for Hot tub and Security motion Camera,15/01/2024 00:00,281391,48.34,AM0406,AMAZON PAYMENTS UK LIMITED,01/01/2024 00:00,28/01/2024 00:00,P10-2024
,LEE VALLEY CARAVAN PARK,SUPPLIES AND SERVICES,EQUIPMENT & MATERIALS,4111,P124584-SERVICE-Gresse for Hot tub and Security motion Camera,15/01/2024 00:00,281392,7.49,AM0406,AMAZON PAYMENTS UK LIMITED,01/01/2024 00:00,28/01/2024 00:00,P10-2024
,LEE VALLEY CARAVAN PARK,SUPPLIES AND SERVICES,EQUIPMENT & MATERIALS,4111,"P124629-SERVICE-Wire netting, paint",15/01/2024 00:00,281405,132.44,SC0057,SCREWFIX DIRECT LTD,01/01/2024 00:00,28/01/2024 00:00,P10-2024
,LEE VALLEY CARAVAN PARK,SUPPLIES AND SERVICES,EQUIPMENT & MATERIALS,4111,P124435-SERVICE-Replacement Door Glass for Amelia,15/01/2024 00:00,281524,420,WI0334,WINDOW REPAIR ENFIELD LTD,01/01/2024 00:00,28/01/2024 00:00,P10-2024
,LEE VALLEY CARAVAN PARK,SUPPLIES AND SERVICES,EQUIPMENT & MATERIALS,4111,P124727-SERVICE-Lever door handle,23/01/2024 00:00,281613,22.99,SC0057,SCREWFIX DIRECT LTD,01/01/2024 00:00,28/01/2024 00:00,P10-2024
,LEE VALLEY CARAVAN PARK,SUPPLIES AND SERVICES,EQUIPMENT & MATERIALS,4111,"P124633-SERVICE-8 Bags Post Create, 4 Hinges and 2 Locks",24/01/2024 00:00,281640,73,LE0012,LEASIDE TIMBER & BUILDERS MERCHANTS LTD,01/01/2024 00:00,28/01/2024 00:00,P10-2024
,LEE VALLEY CARAVAN PARK,SUPPLIES AND SERVICES,EQUIPMENT & MATERIALS,4111,P124642-SERVICE-Gas for Life Jackets,28/01/2024 00:00,281655,23.03,AM0406,AMAZON PAYMENTS UK LIMITED,01/01/2024 00:00,28/01/2024 00:00,P10-2024
,LEE VALLEY CARAVAN PARK,SUPPLIES AND SERVICES,EQUIPMENT & MATERIALS,4111,P124635-SERVICE-Replacement electrical goods Wigwam & Lodges,22/01/2024 00:00,281733,174.93,CU0759,CURRYS BUSINESS,01/01/2024 00:00,28/01/2024 00:00,P10-2024
,LEE VALLEY CARAVAN PARK,SUPPLIES AND SERVICES,EQUIPMENT & MATERIALS,4111,P124635-SERVICE-Replacement electrical goods Wigwam & Lodges,23/01/2024 00:00,281759,137.99,CU0759,CURRYS BUSINESS,01/01/2024 00:00,28/01/2024 00:00,P10-2024
,LEE VALLEY CARAVAN PARK,SUPPLIES AND SERVICES,EQUIPMENT & MATERIALS,4111,P124691-SERVICE-Grates for various ground works - Amelia,28/01/2024 00:00,281805,73.92,LE0012,LEASIDE TIMBER & BUILDERS MERCHANTS LTD,01/01/2024 00:00,28/01/2024 00:00,P10-2024
,LEE VALLEY CARAVAN PARK,SUPPLIES AND SERVICES,EQUIPMENT & MATERIALS,4111,P124781-SERVICE-Galvanised mesh,28/01/2024 00:00,281822,27.48,SC0057,SCREWFIX DIRECT LTD,01/01/2024 00:00,28/01/2024 00:00,P10-2024
,LEE VALLEY CARAVAN PARK,SUPPLIES AND SERVICES,EQUIPMENT & MATERIALS,4111,"P124789-SERVICE-Paint, gloves, lubricant",28/01/2024 00:00,281959,111.92,SC0057,SCREWFIX DIRECT LTD,01/01/2024 00:00,28/01/2024 00:00,P10-2024
P&V,MYDDELTON HOUSE GARDENS,SUPPLIES AND SERVICES,EQUIPMENT & MATERIALS,4111,P123923-SERVICE-amazon gardens supplies,17/01/2024 00:00,280747,11.5,AM0406,AMAZON PAYMENTS UK LIMITED,01/01/2024 00:00,28/01/2024 00:00,P10-2024
P&V,MYDDELTON HOUSE GARDENS,SUPPLIES AND SERVICES,EQUIPMENT & MATERIALS,4111,P123923-SERVICE-amazon gardens supplies,17/01/2024 00:00,280748,5.28,AM0406,AMAZON PAYMENTS UK LIMITED,01/01/2024 00:00,28/01/2024 00:00,P10-2024
P&V,MYDDELTON HOUSE GARDENS,SUPPLIES AND SERVICES,EQUIPMENT & MATERIALS,4111,P123923-SERVICE-amazon gardens supplies,17/01/2024 00:00,280828,11.66,AM0406,AMAZON PAYMENTS UK LIMITED,01/01/2024 00:00,28/01/2024 00:00,P10-2024
P&V,MYDDELTON HOUSE GARDENS,SUPPLIES AND SERVICES,EQUIPMENT & MATERIALS,4111,P123923-SERVICE-amazon gardens supplies,17/01/2024 00:00,281504,34.22,AM0406,AMAZON PAYMENTS UK LIMITED,01/01/2024 00:00,28/01/2024 00:00,P10-2024
P&V,EAST INDIA DOCK AND BOW CREEK,SUPPLIES AND SERVICES,EQUIPMENT & MATERIALS,4111,P124743-SERVICE-4x Gear Anvil Loppers - 206KK,28/01/2024 00:00,281960,66.64,SC0057,SCREWFIX DIRECT LTD,01/01/2024 00:00,28/01/2024 00:00,P10-2024
P&V,EAST INDIA DOCK AND BOW CREEK,SUPPLIES AND SERVICES,EQUIPMENT & MATERIALS,4111,P124743-SERVICE-4x Fencing Pliers - 8537P,28/01/2024 00:00,281960,69.96,SC0057,SCREWFIX DIRECT LTD,01/01/2024 00:00,28/01/2024 00:00,P10-2024
P&V,EAST INDIA DOCK AND BOW CREEK,SUPPLIES AND SERVICES,EQUIPMENT & MATERIALS,4111,P124743-SERVICE-10x Clear Lens Safety Specs - 8553G,28/01/2024 00:00,281960,20.76,SC0057,SCREWFIX DIRECT LTD,01/01/2024 00:00,28/01/2024 00:00,P10-2024
P&V,EAST INDIA DOCK AND BOW CREEK,SUPPLIES AND SERVICES,EQUIPMENT & MATERIALS,4111,P124743-SERVICE-5x Telescopic Loppers - 75976,28/01/2024 00:00,281960,187.45,SC0057,SCREWFIX DIRECT LTD,01/01/2024 00:00,28/01/2024 00:00,P10-2024
P&V,NORTH AREA RANGERS,SUPPLIES AND SERVICES,EQUIPMENT & MATERIALS,4111,P124343-SERVICE-1x STIHL ADVANCE X-Vent Helmet Set,11/01/2024 00:00,280835,70.58,SA0682,SAM TURNER & SONS LTD,01/01/2024 00:00,28/01/2024 00:00,P10-2024
P&V,NORTH AREA RANGERS,SUPPLIES AND SERVICES,EQUIPMENT & MATERIALS,4111,P124420-SERVICE-5x Ear Defenders - 778JH,09/01/2024 00:00,281037,62.46,SC0057,SCREWFIX DIRECT LTD,01/01/2024 00:00,28/01/2024 00:00,P10-2024
P&V,WILDLIFE DISCOVERY CENTRE,SUPPLIES AND SERVICES,EQUIPMENT & MATERIALS,4111,P124653-SERVICE-1x 1000 A6 Postcards,22/01/2024 00:00,281743,50.96,SO0582,SOLOPRESS,01/01/2024 00:00,28/01/2024 00:00,P10-2024
P&V,RIVER LEE COUNTRY PARK,SUPPLIES AND SERVICES,EQUIPMENT & MATERIALS,4111,P124385-SERVICE-25 Piece Shockwave Tic Tac Box,16/01/2024 00:00,281021,5.39,JE0011,SAINT-GOBAIN BUILDING DISTRIBUTION,01/01/2024 00:00,28/01/2024 00:00,P10-2024
P&V,RIVER LEE COUNTRY PARK,SUPPLIES AND SERVICES,EQUIPMENT & MATERIALS,4111,P124385-SERVICE-2x Timber Battens 4.8m (10 Pack),16/01/2024 00:00,281021,91.2,JE0011,SAINT-GOBAIN BUILDING DISTRIBUTION,01/01/2024 00:00,28/01/2024 00:00,P10-2024
P&V,RIVER LEE COUNTRY PARK,SUPPLIES AND SERVICES,EQUIPMENT & MATERIALS,4111,P124385-SERVICE-Gloves,16/01/2024 00:00,281021,15.12,JE0011,SAINT-GOBAIN BUILDING DISTRIBUTION,01/01/2024 00:00,28/01/2024 00:00,P10-2024
P&V,RIVER LEE COUNTRY PARK,SUPPLIES AND SERVICES,EQUIPMENT & MATERIALS,4111,"P123988-SERVICE-3x STIHL Guide Bar R 40cm/16"" 1.6mm/0.063"" .3",15/01/2024 00:00,281536,104.31,HO0221,HONEY BROTHERS LIMITED,01/01/2024 00:00,28/01/2024 00:00,P10-2024
P&V,RIVER LEE COUNTRY PARK,SUPPLIES AND SERVICES,EQUIPMENT & MATERIALS,4111,"P123988-SERVICE-2x STIHL Guide Bar Light 04 -18"" - 1.3mm/0.05",15/01/2024 00:00,281536,77.56,HO0221,HONEY BROTHERS LIMITED,01/01/2024 00:00,28/01/2024 00:00,P10-2024
P&V,RIVER LEE COUNTRY PARK,SUPPLIES AND SERVICES,EQUIPMENT & MATERIALS,4111,P123988-SERVICE-4x STIHL Filing Kits File size 4.8mm - .325,15/01/2024 00:00,281536,75.8,HO0221,HONEY BROTHERS LIMITED,01/01/2024 00:00,28/01/2024 00:00,P10-2024
P&V,RIVER LEE COUNTRY PARK,SUPPLIES AND SERVICES,EQUIPMENT & MATERIALS,4111,P123988-SERVICE-4x STIHL 23RS PRO Chain 74DL (Post 2020),15/01/2024 00:00,281536,110.48,HO0221,HONEY BROTHERS LIMITED,01/01/2024 00:00,28/01/2024 00:00,P10-2024
P&V,RIVER LEE COUNTRY PARK,SUPPLIES AND SERVICES,EQUIPMENT & MATERIALS,4111,"P123988-SERVICE-6x STIHL 16"" Rapid Micro 1.6mm 0.325"" 0.063 C",15/01/2024 00:00,281536,135.24,HO0221,HONEY BROTHERS LIMITED,01/01/2024 00:00,28/01/2024 00:00,P10-2024
P&V,RIVER LEE COUNTRY PARK,SUPPLIES AND SERVICES,EQUIPMENT & MATERIALS,4111,"P123988-SERVICE-2x STIHL 14"" PMM3 1.1mm 1/4"" 0.043"" Chain",15/01/2024 00:00,281536,32.24,HO0221,HONEY BROTHERS LIMITED,01/01/2024 00:00,28/01/2024 00:00,P10-2024
P&V,RIVER LEE COUNTRY PARK,SUPPLIES AND SERVICES,EQUIPMENT & MATERIALS,4111,P121655-SERVICE-Materials & Equipment as required,22/01/2024 00:00,281772,78.95,JE0011,SAINT-GOBAIN BUILDING DISTRIBUTION,01/01/2024 00:00,28/01/2024 00:00,P10-2024
P&V,EVENTS MANAGEMENT (PR),SUPPLIES AND SERVICES,EQUIPMENT & MATERIALS,4111,P124518-SERVICE-Electric standing desk,15/01/2024 00:00,281232,141.66,AM0406,AMAZON PAYMENTS UK LIMITED,01/01/2024 00:00,28/01/2024 00:00,P10-2024
,LV LEISURE CENTRE CAMPSITE,SUPPLIES AND SERVICES,EQUIPMENT & MATERIALS,4111,P124570-SERVICE-leather and ionised water,15/01/2024 00:00,281393,43.32,AM0406,AMAZON PAYMENTS UK LIMITED,01/01/2024 00:00,28/01/2024 00:00,P10-2024
,LV LEISURE CENTRE CAMPSITE,SUPPLIES AND SERVICES,EQUIPMENT & MATERIALS,4111,P124570-SERVICE-leather and ionised water,15/01/2024 00:00,281394,17.61,AM0406,AMAZON PAYMENTS UK LIMITED,01/01/2024 00:00,28/01/2024 00:00,P10-2024
,LV LEISURE CENTRE CAMPSITE,SUPPLIES AND SERVICES,EQUIPMENT & MATERIALS,4111,P124659-SERVICE-paint brushes and rollers,16/01/2024 00:00,281549,38.3,SC0057,SCREWFIX DIRECT LTD,01/01/2024 00:00,28/01/2024 00:00,P10-2024
,LV LEISURE CENTRE CAMPSITE,SUPPLIES AND SERVICES,EQUIPMENT & MATERIALS,4111,P124643-SERVICE-reflectors,22/01/2024 00:00,281596,10.82,AM0406,AMAZON PAYMENTS UK LIMITED,01/01/2024 00:00,28/01/2024 00:00,P10-2024
,LV LEISURE CENTRE CAMPSITE,SUPPLIES AND SERVICES,EQUIPMENT & MATERIALS,4111,EDM-miscellaneous materials,24/01/2024 00:00,281797,-221.48,SC0057,SCREWFIX DIRECT LTD,01/01/2024 00:00,28/01/2024 00:00,P10-2024
,LV LEISURE CENTRE CAMPSITE,SUPPLIES AND SERVICES,EQUIPMENT & MATERIALS,4111,EDM-miscellaneous materials,24/01/2024 00:00,281797,79.98,SC0057,SCREWFIX DIRECT LTD,01/01/2024 00:00,28/01/2024 00:00,P10-2024
,LV LEISURE CENTRE CAMPSITE,SUPPLIES AND SERVICES,EQUIPMENT & MATERIALS,4111,EDM-miscellaneous materials,24/01/2024 00:00,281797,141.5,SC0057,SCREWFIX DIRECT LTD,01/01/2024 00:00,28/01/2024 00:00,P10-2024
,LV LEISURE CENTRE CAMPSITE,SUPPLIES AND SERVICES,EQUIPMENT & MATERIALS,4111,P124739-SERVICE-Assorted maintenance equipment and tools,24/01/2024 00:00,281797,221.48,SC0057,SCREWFIX DIRECT LTD,01/01/2024 00:00,28/01/2024 00:00,P10-2024
,LV LEISURE CENTRE CAMPSITE,SUPPLIES AND SERVICES,EQUIPMENT & MATERIALS,4111,P124783-SERVICE-Sand cement torches batteries,28/01/2024 00:00,281954,87.36,BQ0164,TRADE UK ACCOUNT,01/01/2024 00:00,28/01/2024 00:00,P10-2024
,LV LEISURE CENTRE CAMPSITE,SUPPLIES AND SERVICES,EQUIPMENT & MATERIALS,4111,P124784-SERVICE-Paint,28/01/2024 00:00,281955,20.83,BQ0164,TRADE UK ACCOUNT,01/01/2024 00:00,28/01/2024 00:00,P10-2024
,LV LEISURE CENTRE CAMPSITE,SUPPLIES AND SERVICES,EQUIPMENT & MATERIALS,4111,P124801-SERVICE-Signage clips,28/01/2024 00:00,281983,3,FI0215,VALUE PRODUCTS LTD,01/01/2024 00:00,28/01/2024 00:00,P10-2024
,LEE VALLEY CAMPSITE,SUPPLIES AND SERVICES,EQUIPMENT MAINTENANCE,4112,P124177-SERVICE-new pump1 and clean,09/01/2024 00:00,280742,2710,CO0550,CONVERT WATER LTD,01/01/2024 00:00,28/01/2024 00:00,P10-2024
,LEE VALLEY CAMPSITE,SUPPLIES AND SERVICES,EQUIPMENT MAINTENANCE,4112,P124177-SERVICE-add cost,09/01/2024 00:00,280742,284,CO0550,CONVERT WATER LTD,01/01/2024 00:00,28/01/2024 00:00,P10-2024
,LEE VALLEY CAMPSITE,SUPPLIES AND SERVICES,EQUIPMENT MAINTENANCE,4112,P124616-SERVICE-disconnections,15/01/2024 00:00,281275,140,BR0018,BRADSHAW ELECTRICAL LIMITED,01/01/2024 00:00,28/01/2024 00:00,P10-2024
,LEE VALLEY CAMPSITE,SUPPLIES AND SERVICES,EQUIPMENT MAINTENANCE,4112,P124731-SERVICE-Spray & leave for Fencing,28/01/2024 00:00,281593,20.82,AM0406,AMAZON PAYMENTS UK LIMITED,01/01/2024 00:00,28/01/2024 00:00,P10-2024
,LEE VALLEY CARAVAN PARK,SUPPLIES AND SERVICES,EQUIPMENT MAINTENANCE,4112,P124563-SERVICE-HH123 faulty light fitting,09/01/2024 00:00,281270,65,BR0018,BRADSHAW ELECTRICAL LIMITED,01/01/2024 00:00,28/01/2024 00:00,P10-2024
,LEE VALLEY CARAVAN PARK,SUPPLIES AND SERVICES,EQUIPMENT MAINTENANCE,4112,P124628-SERVICE-Replace element and sael,15/01/2024 00:00,281292,475.81,AL0434,ALLSOP & FRANCIS,01/01/2024 00:00,28/01/2024 00:00,P10-2024
,LEE VALLEY CARAVAN PARK,SUPPLIES AND SERVICES,EQUIPMENT MAINTENANCE,4112,P124735-SERVICE-blocked pump,24/01/2024 00:00,281751,285,CO0550,CONVERT WATER LTD,01/01/2024 00:00,28/01/2024 00:00,P10-2024
,LEE VALLEY CARAVAN PARK,SUPPLIES AND SERVICES,EQUIPMENT MAINTENANCE,4112,P124740-SERVICE-Galvanised wire mesh,28/01/2024 00:00,281798,27.48,SC0057,SCREWFIX DIRECT LTD,01/01/2024 00:00,28/01/2024 00:00,P10-2024
,LEE VALLEY CARAVAN PARK,SUPPLIES AND SERVICES,EQUIPMENT MAINTENANCE,4112,P124740-SERVICE-Galvanised wire mesh,28/01/2024 00:00,281832,-27.48,SC0057,SCREWFIX DIRECT LTD,01/01/2024 00:00,28/01/2024 00:00,P10-2024
P&V,MYDDLETON HSE HERITAGE CENTRE,SUPPLIES AND SERVICES,EQUIPMENT MAINTENANCE,4112,P124530-SERVICE-call out for repair estimate,09/01/2024 00:00,281274,75,MA0417,MARSTAN FACILITIES LTD,01/01/2024 00:00,28/01/2024 00:00,P10-2024
,LV LEISURE CENTRE CAMPSITE,SUPPLIES AND SERVICES,EQUIPMENT MAINTENANCE,4112,P124473-SERVICE-washer dryer repair,08/01/2024 00:00,280219,391.93,AL0434,ALLSOP & FRANCIS,01/01/2024 00:00,28/01/2024 00:00,P10-2024
,LV LEISURE CENTRE CAMPSITE,SUPPLIES AND SERVICES,EQUIPMENT MAINTENANCE,4112,P123348-SERVICE-gas saftey inspection staff,10/01/2024 00:00,281354,140,SO0400,SOUTHERN GREEN SERVICES LIMITED,01/01/2024 00:00,28/01/2024 00:00,P10-2024
,LV LEISURE CENTRE CAMPSITE,SUPPLIES AND SERVICES,EQUIPMENT MAINTENANCE,4112,P123347-SERVICE-FIX FLUSH LARGE LADIES WC,10/01/2024 00:00,281355,185,SO0400,SOUTHERN GREEN SERVICES LIMITED,01/01/2024 00:00,28/01/2024 00:00,P10-2024
,LV LEISURE CENTRE CAMPSITE,SUPPLIES AND SERVICES,EQUIPMENT MAINTENANCE,4112,P123344-SERVICE-RE-FIX 2 W.C PANS,10/01/2024 00:00,281356,160,SO0400,SOUTHERN GREEN SERVICES LIMITED,01/01/2024 00:00,28/01/2024 00:00,P10-2024
,LV LEISURE CENTRE CAMPSITE,SUPPLIES AND SERVICES,EQUIPMENT MAINTENANCE,4112,P123343-SERVICE-LARGE gENTS REPLACE TMV'S,10/01/2024 00:00,281357,180,SO0400,SOUTHERN GREEN SERVICES LIMITED,01/01/2024 00:00,28/01/2024 00:00,P10-2024
,LV LEISURE CENTRE CAMPSITE,SUPPLIES AND SERVICES,EQUIPMENT MAINTENANCE,4112,P123342-SERVICE-SMALL LADIES REPLACE TMV,10/01/2024 00:00,281358,90,SO0400,SOUTHERN GREEN SERVICES LIMITED,01/01/2024 00:00,28/01/2024 00:00,P10-2024
,LV LEISURE CENTRE CAMPSITE,SUPPLIES AND SERVICES,EQUIPMENT MAINTENANCE,4112,P123341-SERVICE-REPLACE 10 TMV'S LADIES,10/01/2024 00:00,281359,830,SO0400,SOUTHERN GREEN SERVICES LIMITED,01/01/2024 00:00,28/01/2024 00:00,P10-2024
,LV LEISURE CENTRE CAMPSITE,SUPPLIES AND SERVICES,EQUIPMENT MAINTENANCE,4112,P123339-SERVICE-INSTALL TMV'S 6 IN LADIES,10/01/2024 00:00,281360,725,SO0400,SOUTHERN GREEN SERVICES LIMITED,01/01/2024 00:00,28/01/2024 00:00,P10-2024
,LV LEISURE CENTRE CAMPSITE,SUPPLIES AND SERVICES,EQUIPMENT MAINTENANCE,4112,P123338-SERVICE-INSTALL SELF SEALING  TRAP ST,10/01/2024 00:00,281361,110,SO0400,SOUTHERN GREEN SERVICES LIMITED,01/01/2024 00:00,28/01/2024 00:00,P10-2024
,LV LEISURE CENTRE CAMPSITE,SUPPLIES AND SERVICES,EQUIPMENT MAINTENANCE,4112,P123337-SERVICE-sunday call out no hot water,10/01/2024 00:00,281362,120,SO0400,SOUTHERN GREEN SERVICES LIMITED,01/01/2024 00:00,28/01/2024 00:00,P10-2024
,LV LEISURE CENTRE CAMPSITE,SUPPLIES AND SERVICES,EQUIPMENT MAINTENANCE,4112,P124658-SERVICE-water point tampered and leaks repaired etc,22/01/2024 00:00,281659,130,SO0400,SOUTHERN GREEN SERVICES LIMITED,01/01/2024 00:00,28/01/2024 00:00,P10-2024
,LV LEISURE CENTRE CAMPSITE,SUPPLIES AND SERVICES,EQUIPMENT MAINTENANCE,4112,P124657-SERVICE-Domical gratings and bottle traps,22/01/2024 00:00,281662,880,SO0400,SOUTHERN GREEN SERVICES LIMITED,01/01/2024 00:00,28/01/2024 00:00,P10-2024
,LV LEISURE CENTRE CAMPSITE,SUPPLIES AND SERVICES,EQUIPMENT MAINTENANCE,4112,P124703-SERVICE-Tyre for buggy,23/01/2024 00:00,281775,75,FA0294,FARM TYRE SERVICES,01/01/2024 00:00,28/01/2024 00:00,P10-2024
R&B,INFORMATION TECHNOLOGY,SUPPLIES AND SERVICES,IT CORE SYSTEMS,4113,"P121499-SERVICE-Efin monthly managed fees @ 1,466.82",16/01/2024 00:00,281404,1466.84,CE0021,ADVANCED BUSINESS SOLUTIONS,01/01/2024 00:00,28/01/2024 00:00,P10-2024
R&B,INFORMATION TECHNOLOGY,SUPPLIES AND SERVICES,IT CORE SYSTEMS,4113,P124736-SERVICE-PAYware Ocius pos Quarterly service fee for 8,28/01/2024 00:00,281760,118.32,CO0440,VERIFONE SERVICES UK & IRELAND LTD,01/01/2024 00:00,28/01/2024 00:00,P10-2024
R&B,INFORMATION TECHNOLOGY,SUPPLIES AND SERVICES,IT CORE SYSTEMS,4113,P124736-SERVICE-PAYware Ocius pos Quarterly service fee for 8,28/01/2024 00:00,281761,828.24,CO0440,VERIFONE SERVICES UK & IRELAND LTD,01/01/2024 00:00,28/01/2024 00:00,P10-2024
R&B,INFORMATION TECHNOLOGY,SUPPLIES AND SERVICES,IT NETWORK & TELECOMS COSTS,4114,P121559-SERVICE-Campsites Circuits 1GB for Public WiFi - Apri,08/01/2024 00:00,281245,835,PP0200,PPSNET LIMITED,01/01/2024 00:00,28/01/2024 00:00,P10-2024
R&B,INFORMATION TECHNOLOGY,SUPPLIES AND SERVICES,IT NETWORK & TELECOMS COSTS,4114,P123560-SERVICE-MPLS for all sites October 23 - March 24,08/01/2024 00:00,281246,10146.67,PP0200,PPSNET LIMITED,01/01/2024 00:00,28/01/2024 00:00,P10-2024
R&B,INFORMATION TECHNOLOGY,SUPPLIES AND SERVICES,IT NETWORK & TELECOMS COSTS,4114,IT-ZEN FIBRE PRO MONTHLY CHG,15/01/2024 00:00,281550,38,ZE0007,ZEN INTERNET LTD,01/01/2024 00:00,28/01/2024 00:00,P10-2024
R&B,INFORMATION TECHNOLOGY,SUPPLIES AND SERVICES,IT NETWORK & TELECOMS COSTS,4114,IT-Stanstead monthly serv charge,17/01/2024 00:00,281612,31.32,ZE0007,ZEN INTERNET LTD,01/01/2024 00:00,28/01/2024 00:00,P10-2024
R&B,INFORMATION TECHNOLOGY,SUPPLIES AND SERVICES,IT NETWORK & TELECOMS COSTS,4114,P124457-SERVICE-North Lodge/Bungalow Fibre Cable Works,22/01/2024 00:00,281746,1260,DE0318,DESIGN AND MANAGEMENT SYSTEMS LTD,01/01/2024 00:00,28/01/2024 00:00,P10-2024
R&B,INFORMATION TECHNOLOGY,SUPPLIES AND SERVICES,IT NETWORK & TELECOMS COSTS,4114,IT-MONTHLY UNLIMITED ZEN FIBRE,28/01/2024 00:00,281953,29.5,ZE0007,ZEN INTERNET LTD,01/01/2024 00:00,28/01/2024 00:00,P10-2024
R&B,INFORMATION TECHNOLOGY,SUPPLIES AND SERVICES,IT HARDWARE & SOFTWARE COSTS,4116,P124540-SERVICE-Ubiquiti NBE-5AC-Gen2 NanoBeam AC 5GHz Long R,10/01/2024 00:00,281300,74.16,BR0650,BROADBANDBUYER.COM,01/01/2024 00:00,28/01/2024 00:00,P10-2024
R&B,INFORMATION TECHNOLOGY,SUPPLIES AND SERVICES,IT HARDWARE & SOFTWARE COSTS,4116,P124540-SERVICE-Delivery,10/01/2024 00:00,281300,4,BR0650,BROADBANDBUYER.COM,01/01/2024 00:00,28/01/2024 00:00,P10-2024
R&B,INFORMATION TECHNOLOGY,SUPPLIES AND SERVICES,IT HARDWARE & SOFTWARE COSTS,4116,P121654-SERVICE-All instances,10/01/2024 00:00,281329,655.34,AS0501,ASSET TIGER,01/01/2024 00:00,28/01/2024 00:00,P10-2024
R&B,INFORMATION TECHNOLOGY,SUPPLIES AND SERVICES,IT HARDWARE & SOFTWARE COSTS,4116,P121654-SERVICE-All instances,10/01/2024 00:00,281330,104.68,AS0501,ASSET TIGER,01/01/2024 00:00,28/01/2024 00:00,P10-2024
R&B,INFORMATION TECHNOLOGY,SUPPLIES AND SERVICES,IT HARDWARE & SOFTWARE COSTS,4116,P121654-SERVICE-All instances,10/01/2024 00:00,281331,112.18,AS0501,ASSET TIGER,01/01/2024 00:00,28/01/2024 00:00,P10-2024
R&B,INFORMATION TECHNOLOGY,SUPPLIES AND SERVICES,IT HARDWARE & SOFTWARE COSTS,4116,"P123585-SERVICE-Dell 32 4K Monitor - SE3223Q - 80.01cm (31.5""",15/01/2024 00:00,281543,179.16,DE0011,DELL CORPORATION LIMITED,01/01/2024 00:00,28/01/2024 00:00,P10-2024
R&B,INFORMATION TECHNOLOGY,SUPPLIES AND SERVICES,IT HARDWARE & SOFTWARE COSTS,4116,P124003-SERVICE-Mimecast S1 remaining 6 months payment includ,17/01/2024 00:00,281619,983.33,IQ0022,IQUAL,01/01/2024 00:00,28/01/2024 00:00,P10-2024
R&B,INFORMATION TECHNOLOGY,SUPPLIES AND SERVICES,IT MAINTENANCE AGREEMENTS,4119,P121793-SERVICE-Digiticket monthly ticketing service,08/01/2024 00:00,281211,463,DI0304,DIGITAL TICKETING SYSTEMS LTD (DIGITICKETS),01/01/2024 00:00,28/01/2024 00:00,P10-2024
R&B,INFORMATION TECHNOLOGY,SUPPLIES AND SERVICES,IT MAINTENANCE AGREEMENTS,4119,P123928-SERVICE-Support & Data Oct 23 - Mar24,10/01/2024 00:00,281286,171.29,CY0653,CYBERTILL,01/01/2024 00:00,28/01/2024 00:00,P10-2024
R&B,INFORMATION TECHNOLOGY,SUPPLIES AND SERVICES,IT MAINTENANCE AGREEMENTS,4119,P124550-SERVICE-VolunteerKinetic License + SSL,10/01/2024 00:00,281305,1900,SM0485,TEAM KINETIC (PREVIOUSLY SMARTER IN DESIGN),01/01/2024 00:00,28/01/2024 00:00,P10-2024
R&B,INFORMATION TECHNOLOGY,SUPPLIES AND SERVICES,IT MAINTENANCE AGREEMENTS,4119,P124020-SERVICE-Gemaparks Gema parks Campsite monthly subs De,22/01/2024 00:00,281670,739.67,NE0218,NETGUIDES LIMITED,01/01/2024 00:00,28/01/2024 00:00,P10-2024
,LV LEISURE CENTRE CAMPSITE,EXPENDITURE FROM RENEWALS FUND,EXPENDITURE FROM RENEWALS FUND,4121,P124152-SERVICE-Repair compactor,08/01/2024 00:00,281201,3020.12,PD0171,PDE WASTE TECHNOLOGIES,01/01/2024 00:00,28/01/2024 00:00,P10-2024
P&V,MYDDELTON HOUSE GARDENS,SUPPLIES AND SERVICES,MATERIALS (COUNTERS),4123,P124596-SERVICE-sign for VC / museum,22/01/2024 00:00,281671,30,SI0024,SIGNS EXPRESS (HARLOW),01/01/2024 00:00,28/01/2024 00:00,P10-2024
P&V,SOUTH AREA RANGERS,SUPPLIES AND SERVICES,MATERIALS (LOCKS),4124,P124538-SERVICE-4x Combi Locks - 71434,09/01/2024 00:00,281307,98.63,SC0057,SCREWFIX DIRECT LTD,01/01/2024 00:00,28/01/2024 00:00,P10-2024
P&V,FISHERIES MANAGEMENT,SUPPLIES AND SERVICES,MATERIALS (GROUNDS MAINT),4125,P124649-SERVICE-Delivery to adderess below,23/01/2024 00:00,281736,145,LA0092,LAND & WATER SERVICES LTD,01/01/2024 00:00,28/01/2024 00:00,P10-2024
P&V,FISHERIES MANAGEMENT,SUPPLIES AND SERVICES,MATERIALS (GROUNDS MAINT),4125,P124649-SERVICE-9x Linear Coir Rolls,23/01/2024 00:00,281736,318,LA0092,LAND & WATER SERVICES LTD,01/01/2024 00:00,28/01/2024 00:00,P10-2024
,LEE VALLEY CARAVAN PARK,SUPPLIES AND SERVICES,MATERIALS (GROUNDS MAINT),4125,P124794-SERVICE-DW Tractor Repairs,28/01/2024 00:00,280583,118.54,LE0279,REESINK TURFCARE UK LIMITED,01/01/2024 00:00,28/01/2024 00:00,P10-2024
,LEE VALLEY CARAVAN PARK,SUPPLIES AND SERVICES,MATERIALS (GROUNDS MAINT),4125,P124794-SERVICE-DW Tractor Repairs,28/01/2024 00:00,280584,19.33,LE0279,REESINK TURFCARE UK LIMITED,01/01/2024 00:00,28/01/2024 00:00,P10-2024
,LEE VALLEY CARAVAN PARK,SUPPLIES AND SERVICES,MATERIALS (GROUNDS MAINT),4125,P124794-SERVICE-DW Tractor Repairs,28/01/2024 00:00,280816,27.92,LE0279,REESINK TURFCARE UK LIMITED,01/01/2024 00:00,28/01/2024 00:00,P10-2024
,LEE VALLEY CARAVAN PARK,SUPPLIES AND SERVICES,MATERIALS (GROUNDS MAINT),4125,P124794-SERVICE-DW Tractor Repairs,28/01/2024 00:00,281206,67.84,LE0279,REESINK TURFCARE UK LIMITED,01/01/2024 00:00,28/01/2024 00:00,P10-2024
,LEE VALLEY CARAVAN PARK,SUPPLIES AND SERVICES,MATERIALS (GROUNDS MAINT),4125,P124794-SERVICE-DW Tractor Repairs,28/01/2024 00:00,281207,15.03,LE0279,REESINK TURFCARE UK LIMITED,01/01/2024 00:00,28/01/2024 00:00,P10-2024
,LEE VALLEY CARAVAN PARK,SUPPLIES AND SERVICES,MATERIALS (GROUNDS MAINT),4125,P124794-SERVICE-DW Tractor Repairs,28/01/2024 00:00,281368,31.57,LE0279,REESINK TURFCARE UK LIMITED,01/01/2024 00:00,28/01/2024 00:00,P10-2024
,LEE VALLEY CARAVAN PARK,SUPPLIES AND SERVICES,MATERIALS (GROUNDS MAINT),4125,P124794-SERVICE-DW Tractor Repairs,28/01/2024 00:00,281748,11.33,LE0279,REESINK TURFCARE UK LIMITED,01/01/2024 00:00,28/01/2024 00:00,P10-2024
P&V,MYDDELTON HOUSE GARDENS,SUPPLIES AND SERVICES,MATERIALS (GROUNDS MAINT),4125,P124325-SERVICE-tree work 2023 backdated RH,17/01/2024 00:00,281410,1000,VE0004,PRINCIPAL TREES LTD,01/01/2024 00:00,28/01/2024 00:00,P10-2024
P&V,MYDDELTON HOUSE GARDENS,SUPPLIES AND SERVICES,MATERIALS (GROUNDS MAINT),4125,P124602-SERVICE-gardens equipment 2024,17/01/2024 00:00,281516,99.98,AM0406,AMAZON PAYMENTS UK LIMITED,01/01/2024 00:00,28/01/2024 00:00,P10-2024
P&V,MYDDELTON HOUSE GARDENS,SUPPLIES AND SERVICES,MATERIALS (GROUNDS MAINT),4125,P124602-SERVICE-gardens equipment 2024,17/01/2024 00:00,281518,17.49,AM0406,AMAZON PAYMENTS UK LIMITED,01/01/2024 00:00,28/01/2024 00:00,P10-2024
P&V,MYDDELTON HOUSE GARDENS,SUPPLIES AND SERVICES,MATERIALS (GROUNDS MAINT),4125,P124602-SERVICE-gardens equipment 2024,17/01/2024 00:00,281519,12.48,AM0406,AMAZON PAYMENTS UK LIMITED,01/01/2024 00:00,28/01/2024 00:00,P10-2024
P&V,MYDDELTON HOUSE GARDENS,SUPPLIES AND SERVICES,MATERIALS (GROUNDS MAINT),4125,P124602-SERVICE-gardens equipment 2024,17/01/2024 00:00,281520,6.04,AM0406,AMAZON PAYMENTS UK LIMITED,01/01/2024 00:00,28/01/2024 00:00,P10-2024
P&V,MYDDELTON HOUSE GARDENS,SUPPLIES AND SERVICES,MATERIALS (GROUNDS MAINT),4125,P124602-SERVICE-gardens equipment 2024,17/01/2024 00:00,281521,5.74,AM0406,AMAZON PAYMENTS UK LIMITED,01/01/2024 00:00,28/01/2024 00:00,P10-2024
P&V,MYDDELTON HOUSE GARDENS,SUPPLIES AND SERVICES,MATERIALS (GROUNDS MAINT),4125,P124602-SERVICE-gardens equipment 2024,17/01/2024 00:00,281522,31.67,AM0406,AMAZON PAYMENTS UK LIMITED,01/01/2024 00:00,28/01/2024 00:00,P10-2024
P&V,MYDDELTON HOUSE GARDENS,SUPPLIES AND SERVICES,MATERIALS (GROUNDS MAINT),4125,P124602-SERVICE-gardens equipment 2024,17/01/2024 00:00,281523,4.74,AM0406,AMAZON PAYMENTS UK LIMITED,01/01/2024 00:00,28/01/2024 00:00,P10-2024
P&V,MYDDELTON HOUSE GARDENS,SUPPLIES AND SERVICES,MATERIALS (GROUNDS MAINT),4125,P124602-SERVICE-gardens equipment 2024,17/01/2024 00:00,281594,16.65,AM0406,AMAZON PAYMENTS UK LIMITED,01/01/2024 00:00,28/01/2024 00:00,P10-2024
,LV LEISURE CENTRE GOLF COURSE,SUPPLIES AND SERVICES,MATERIALS (GROUNDS MAINT),4125,P124265-SERVICE-Cushman Tractor Parts,28/01/2024 00:00,281256,72.98,DO0027,ERNEST DOE & SONS LTD,01/01/2024 00:00,28/01/2024 00:00,P10-2024
,LV LEISURE CENTRE GOLF COURSE,SUPPLIES AND SERVICES,MATERIALS (GROUNDS MAINT),4125,P124334-SERVICE-Extra funds to repair Cushman,28/01/2024 00:00,281257,806.25,DO0027,ERNEST DOE & SONS LTD,01/01/2024 00:00,28/01/2024 00:00,P10-2024
,LV LEISURE CENTRE GOLF COURSE,SUPPLIES AND SERVICES,MATERIALS (GROUNDS MAINT),4125,P124334-SERVICE-Starter Swith cushman,28/01/2024 00:00,281258,59.81,DO0027,ERNEST DOE & SONS LTD,01/01/2024 00:00,28/01/2024 00:00,P10-2024
,LV LEISURE CENTRE GOLF COURSE,SUPPLIES AND SERVICES,MATERIALS (GROUNDS MAINT),4125,P124334-SERVICE-Extra funds to repair Cushman,28/01/2024 00:00,281259,10.15,DO0027,ERNEST DOE & SONS LTD,01/01/2024 00:00,28/01/2024 00:00,P10-2024
,LV LEISURE CENTRE GOLF COURSE,SUPPLIES AND SERVICES,MATERIALS (GROUNDS MAINT),4125,P124334-SERVICE-Starter Swith cushman,28/01/2024 00:00,281259,0.19,DO0027,ERNEST DOE & SONS LTD,01/01/2024 00:00,28/01/2024 00:00,P10-2024
,LV LEISURE CENTRE GOLF COURSE,SUPPLIES AND SERVICES,MATERIALS (GROUNDS MAINT),4125,P124334-SERVICE-Extra funds to repair Cushman,28/01/2024 00:00,281285,-126.79,DO0027,ERNEST DOE & SONS LTD,01/01/2024 00:00,28/01/2024 00:00,P10-2024
,LEE VALLEY MARINA SPRINGFIELD,SUPPLIES AND SERVICES,MATERIALS (TOOLS & PLANT),4127,P124593-SERVICE-Clarke CHT259 3-Legged Glaze Breaker,15/01/2024 00:00,281531,29.98,MA0004,MACHINE MART LIMITED,01/01/2024 00:00,28/01/2024 00:00,P10-2024
,STANSTEAD RECHARGEABLE WORKS,SUPPLIES AND SERVICES,MATERIALS (TOOLS & PLANT),4127,P124419-SERVICE-crane service,28/01/2024 00:00,281939,1989,CR0183,CROWLAND CRANES LTD,01/01/2024 00:00,28/01/2024 00:00,P10-2024
,STANSTEAD RECHARGEABLE WORKS,SUPPLIES AND SERVICES,MATERIALS (TOOLS & PLANT),4127,P124687-SERVICE-crane repairs zoomlion cable reel,28/01/2024 00:00,281940,4981.4,CR0183,CROWLAND CRANES LTD,01/01/2024 00:00,28/01/2024 00:00,P10-2024
,STANSTEAD RECHARGEABLE WORKS,SUPPLIES AND SERVICES,MATERIALS (ENG OTHER),4130,P124322-SERVICE-length of 80x40x3 cut + lasercut plates,15/01/2024 00:00,280410,75,BI0666,BIRCH ENGINEERING (CUFFLEY) LTD,01/01/2024 00:00,28/01/2024 00:00,P10-2024
,STANSTEAD RECHARGEABLE WORKS,SUPPLIES AND SERVICES,MATERIALS (ENG OTHER),4130,P124437-SERVICE-decking boards for MC  10 sheets,10/01/2024 00:00,281272,204,TI0068,A10 TIMBER COMPANY,01/01/2024 00:00,28/01/2024 00:00,P10-2024
,STANSTEAD RECHARGEABLE WORKS,SUPPLIES AND SERVICES,MATERIALS (ENG OTHER),4130,P124519-SERVICE-screws and door seal,10/01/2024 00:00,281297,74.15,SC0057,SCREWFIX DIRECT LTD,01/01/2024 00:00,28/01/2024 00:00,P10-2024
,STANSTEAD RECHARGEABLE WORKS,SUPPLIES AND SERVICES,MATERIALS (ENG OTHER),4130,P124527-SERVICE-30 welding dics,15/01/2024 00:00,281373,34.5,WE0257,PERFECT WELDING LTD,01/01/2024 00:00,28/01/2024 00:00,P10-2024
,STANSTEAD RECHARGEABLE WORKS,SUPPLIES AND SERVICES,MATERIALS (ENG OTHER),4130,"P124706-SERVICE-w/s items couplings, crane plugs etc",23/01/2024 00:00,281568,12.81,HO0349,HOMETREND SUPPLIES LTD,01/01/2024 00:00,28/01/2024 00:00,P10-2024
,STANSTEAD RECHARGEABLE WORKS,SUPPLIES AND SERVICES,MATERIALS (ENG OTHER),4130,P124701-SERVICE-long padlock for grit box,28/01/2024 00:00,281782,5.74,AM0406,AMAZON PAYMENTS UK LIMITED,01/01/2024 00:00,28/01/2024 00:00,P10-2024
,STANSTEAD RECHARGEABLE WORKS,SUPPLIES AND SERVICES,MATERIALS (ENG OTHER),4130,P124647-SERVICE-welding gas bottle,28/01/2024 00:00,281791,78.75,WE0257,PERFECT WELDING LTD,01/01/2024 00:00,28/01/2024 00:00,P10-2024
,STANSTEAD RECHARGEABLE WORKS,SUPPLIES AND SERVICES,MATERIALS (ENG OTHER),4130,P124702-SERVICE-welding wraparound glasses JS,28/01/2024 00:00,281796,10.85,SC0057,SCREWFIX DIRECT LTD,01/01/2024 00:00,28/01/2024 00:00,P10-2024
,STANSTEAD RECHARGEABLE WORKS,SUPPLIES AND SERVICES,MATERIALS (ENG OTHER),4130,P124702-SERVICE-additional items,28/01/2024 00:00,281796,208.97,SC0057,SCREWFIX DIRECT LTD,01/01/2024 00:00,28/01/2024 00:00,P10-2024
,STANSTEAD RECHARGEABLE WORKS,SUPPLIES AND SERVICES,MATERIALS (ENG OTHER),4130,P124774-SERVICE-antifoul,28/01/2024 00:00,281951,142.9,MI0200,MIDLAND CHANDLERS LIMITED,01/01/2024 00:00,28/01/2024 00:00,P10-2024
,LV LEISURE CENTRE GOLF COURSE,SUPPLIES AND SERVICES,MATERIALS (ENG OTHER),4130,P124350-SERVICE-Blade Cutter,28/01/2024 00:00,281035,255,MR0420,MR AMENITY LTD,01/01/2024 00:00,28/01/2024 00:00,P10-2024
P&V,YOUTH AND SCHOOLS,SUPPLIES AND SERVICES,MATERIALS (MEDICAL),4132,P124515-SERVICE-FL0773 Ice packs,16/01/2024 00:00,281293,15.7,FI0215,VALUE PRODUCTS LTD,01/01/2024 00:00,28/01/2024 00:00,P10-2024
P&V,YOUTH AND SCHOOLS,SUPPLIES AND SERVICES,MATERIALS (MEDICAL),4132,P124515-SERVICE-6 x FL2205 Micropore tape,16/01/2024 00:00,281293,23,FI0215,VALUE PRODUCTS LTD,01/01/2024 00:00,28/01/2024 00:00,P10-2024
P&V,YOUTH AND SCHOOLS,SUPPLIES AND SERVICES,MATERIALS (MEDICAL),4132,P124515-SERVICE-12 x FL0439 hand gel,16/01/2024 00:00,281293,22.8,FI0215,VALUE PRODUCTS LTD,01/01/2024 00:00,28/01/2024 00:00,P10-2024
P&V,YOUTH AND SCHOOLS,SUPPLIES AND SERVICES,MATERIALS (MEDICAL),4132,P124515-SERVICE-FL6755 finger dressings,16/01/2024 00:00,281293,8.5,FI0215,VALUE PRODUCTS LTD,01/01/2024 00:00,28/01/2024 00:00,P10-2024
P&V,YOUTH AND SCHOOLS,SUPPLIES AND SERVICES,MATERIALS (MEDICAL),4132,P124515-SERVICE-2 x FL0299 Alcohol free wipes,16/01/2024 00:00,281293,9.7,FI0215,VALUE PRODUCTS LTD,01/01/2024 00:00,28/01/2024 00:00,P10-2024
P&V,YOUTH AND SCHOOLS,SUPPLIES AND SERVICES,MATERIALS (MEDICAL),4132,P124515-SERVICE-FL6898 Tick remover,16/01/2024 00:00,281293,2.6,FI0215,VALUE PRODUCTS LTD,01/01/2024 00:00,28/01/2024 00:00,P10-2024
P&V,YOUTH AND SCHOOLS,SUPPLIES AND SERVICES,MATERIALS (MEDICAL),4132,P124515-SERVICE-2 x FL0004 assorted plasters,16/01/2024 00:00,281293,8.6,FI0215,VALUE PRODUCTS LTD,01/01/2024 00:00,28/01/2024 00:00,P10-2024
P&V,LEE VALLEY FARM HOLYFIELDHALL,SUPPLIES AND SERVICES,FEED,4133,P124669-SERVICE-Nutrimol,17/01/2024 00:00,281365,2585.66,BO0246,FOR FARMERS UK LTD,01/01/2024 00:00,28/01/2024 00:00,P10-2024
P&V,LEE VALLEY FARM HOLYFIELDHALL,SUPPLIES AND SERVICES,DAIRY SUNDRIES,4138,P124502-SERVICE-Byre Cleaner/Oillite Brush/Pin,08/01/2024 00:00,281042,79.76,PO0086,POLLOCK FARM EQUIPMENT,01/01/2024 00:00,28/01/2024 00:00,P10-2024
P&V,LEE VALLEY FARM HOLYFIELDHALL,SUPPLIES AND SERVICES,DAIRY SUNDRIES,4138,P124502-SERVICE-Byre Cleaner/Oillite Brush/Pin,09/01/2024 00:00,281280,-79.76,PO0086,POLLOCK FARM EQUIPMENT,01/01/2024 00:00,28/01/2024 00:00,P10-2024
P&V,LEE VALLEY FARM HOLYFIELDHALL,SUPPLIES AND SERVICES,DAIRY SUNDRIES,4138,P122011-SERVICE-Liquid Nitrogen,17/01/2024 00:00,281415,82,GE0005,GENUS BREEDING LTD,01/01/2024 00:00,28/01/2024 00:00,P10-2024
,LV CAMPSITE CARAVAN SALES,SUPPLIES AND SERVICES,CARAVAN PURCHASES,4171,DW -126 Delta Superior,28/01/2024 00:00,281668,10539.23,UK0086,THE UK CARAVAN CENTRE,01/01/2024 00:00,28/01/2024 00:00,P10-2024
,LV CAMPSITE CARAVAN SALES,SUPPLIES AND SERVICES,CARAVAN PURCHASES,4171,DW -126 Delta Superior,28/01/2024 00:00,281668,43633.96,UK0086,THE UK CARAVAN CENTRE,01/01/2024 00:00,28/01/2024 00:00,P10-2024
,LV CAMPSITE CARAVAN SALES,SUPPLIES AND SERVICES,CARAVAN PURCHASES,4171,P121562-SERVICE-DW 126 Delta Superior 40x14 2023,28/01/2024 00:00,281668,54173.19,UK0086,THE UK CARAVAN CENTRE,01/01/2024 00:00,28/01/2024 00:00,P10-2024
,LV CAMPSITE CARAVAN SALES,SUPPLIES AND SERVICES,CARAVAN PURCHASES,4171,DW -126 Delta Superior,28/01/2024 00:00,281668,-54173.19,UK0086,THE UK CARAVAN CENTRE,01/01/2024 00:00,28/01/2024 00:00,P10-2024
,LV CAMPSITE CARAVAN SALES,SUPPLIES AND SERVICES,MISCELLANEOUS CARAVAN COSTS,4174,DW- parking,08/01/2024 00:00,280728,8500,MO0041,CAPSER,01/01/2024 00:00,28/01/2024 00:00,P10-2024
,LV CAMPSITE CARAVAN SALES,SUPPLIES AND SERVICES,MISCELLANEOUS CARAVAN COSTS,4174,DW- parking,08/01/2024 00:00,280728,-10500,MO0041,CAPSER,01/01/2024 00:00,28/01/2024 00:00,P10-2024
,LV CAMPSITE CARAVAN SALES,SUPPLIES AND SERVICES,MISCELLANEOUS CARAVAN COSTS,4174,P124355-SERVICE-5 x Bases 1 x Parking,08/01/2024 00:00,280728,10500,MO0041,CAPSER,01/01/2024 00:00,28/01/2024 00:00,P10-2024
,LV CAMPSITE CARAVAN SALES,SUPPLIES AND SERVICES,MISCELLANEOUS CARAVAN COSTS,4174,DW- parking,08/01/2024 00:00,280728,2000,MO0041,CAPSER,01/01/2024 00:00,28/01/2024 00:00,P10-2024
,LV CAMPSITE CARAVAN SALES,SUPPLIES AND SERVICES,MISCELLANEOUS CARAVAN COSTS,4174,P124487-SERVICE-SC Development Master Plan,09/01/2024 00:00,281050,950,BE0656,BERZINS ARCHITECTS,01/01/2024 00:00,28/01/2024 00:00,P10-2024
,LEE VALLEY CARAVAN PARK,SUPPLIES AND SERVICES,MISCELLANEOUS CARAVAN COSTS,4174,P124367-SERVICE-Tiled front porchq,08/01/2024 00:00,281212,898,KE0023,KENDALL & SONS LIMITED,01/01/2024 00:00,28/01/2024 00:00,P10-2024
,LEE VALLEY CARAVAN PARK,SUPPLIES AND SERVICES,MISCELLANEOUS CARAVAN COSTS,4174,P124368-SERVICE-Grids on cottage,08/01/2024 00:00,281213,937,KE0023,KENDALL & SONS LIMITED,01/01/2024 00:00,28/01/2024 00:00,P10-2024
,LEE VALLEY MARINA STANSTEAD,SUPPLIES AND SERVICES,CLOTHING & UNIFORMS,4225,P124514-SERVICE-JJ waterproof suit (trousers+jacket),10/01/2024 00:00,281250,19.95,DI0017,DIRECT BOOT & SHOE SUPPLIES,01/01/2024 00:00,28/01/2024 00:00,P10-2024
P&V,NORTH AREA RANGERS,SUPPLIES AND SERVICES,CLOTHING & UNIFORMS,4225,P124284-SERVICE-ATV Helmets,17/01/2024 00:00,281623,455.14,LI0320,LINGS HONDA,01/01/2024 00:00,28/01/2024 00:00,P10-2024
P&V,SOUTH AREA RANGERS,SUPPLIES AND SERVICES,CLOTHING & UNIFORMS,4225,P124284-SERVICE-16X ATV Helmets,17/01/2024 00:00,281623,197.84,LI0320,LINGS HONDA,01/01/2024 00:00,28/01/2024 00:00,P10-2024
P&V,SOUTH AREA RANGERS,SUPPLIES AND SERVICES,CLOTHING & UNIFORMS,4225,LINGS HONDA,22/01/2024 00:00,281771,-98.92,LI0320,LINGS HONDA,01/01/2024 00:00,28/01/2024 00:00,P10-2024
P&V,SOUTH AREA RANGERS,SUPPLIES AND SERVICES,CLOTHING & UNIFORMS,4225,LINGS HONDA,22/01/2024 00:00,281771,0,LI0320,LINGS HONDA,01/01/2024 00:00,28/01/2024 00:00,P10-2024
P&V,SOUTH AREA RANGERS,SUPPLIES AND SERVICES,CLOTHING & UNIFORMS,4225,LINGS HONDA,22/01/2024 00:00,281771,98.92,LI0320,LINGS HONDA,01/01/2024 00:00,28/01/2024 00:00,P10-2024
P&V,SOUTH AREA RANGERS,SUPPLIES AND SERVICES,CLOTHING & UNIFORMS,4225,P124284-SERVICE-16X ATV Helmets,22/01/2024 00:00,281771,98.92,LI0320,LINGS HONDA,01/01/2024 00:00,28/01/2024 00:00,P10-2024
P&V,RIVER LEE COUNTRY PARK,SUPPLIES AND SERVICES,CLOTHING & UNIFORMS,4225,P123973-SERVICE-2x Chainsaw Wellies,08/01/2024 00:00,281089,168.05,TU0006,P TUCKWELL LTD,01/01/2024 00:00,28/01/2024 00:00,P10-2024
P&V,RIVER LEE COUNTRY PARK,SUPPLIES AND SERVICES,CLOTHING & UNIFORMS,4225,P123973-SERVICE-2x Chainsaw Wellies,08/01/2024 00:00,281127,-168.05,TU0006,P TUCKWELL LTD,01/01/2024 00:00,28/01/2024 00:00,P10-2024
,LV LEISURE CENTRE CAMPSITE,SUPPLIES AND SERVICES,CLOTHING & UNIFORMS,4225,EDM-Bolster boots (2),28/01/2024 00:00,281958,79.98,SC0057,SCREWFIX DIRECT LTD,01/01/2024 00:00,28/01/2024 00:00,P10-2024
,LV LEISURE CENTRE CAMPSITE,SUPPLIES AND SERVICES,CLOTHING & UNIFORMS,4225,EDM-Bolster boots (2),28/01/2024 00:00,281958,4.17,SC0057,SCREWFIX DIRECT LTD,01/01/2024 00:00,28/01/2024 00:00,P10-2024
,LV LEISURE CENTRE CAMPSITE,SUPPLIES AND SERVICES,CLOTHING & UNIFORMS,4225,EDM-Bolster boots (2),28/01/2024 00:00,281958,-84.15,SC0057,SCREWFIX DIRECT LTD,01/01/2024 00:00,28/01/2024 00:00,P10-2024
,LV LEISURE CENTRE CAMPSITE,SUPPLIES AND SERVICES,CLOTHING & UNIFORMS,4225,P124785-SERVICE-Safety boots,28/01/2024 00:00,281958,84.15,SC0057,SCREWFIX DIRECT LTD,01/01/2024 00:00,28/01/2024 00:00,P10-2024
,LV LEISURE CENTRE GOLF COURSE,SUPPLIES AND SERVICES,CLOTHING & UNIFORMS,4225,P124350-SERVICE-Uniform,28/01/2024 00:00,281035,580,MR0420,MR AMENITY LTD,01/01/2024 00:00,28/01/2024 00:00,P10-2024
,LV LEISURE CENTRE GOLF COURSE,SUPPLIES AND SERVICES,CLOTHING & UNIFORMS,4225,P124350-SERVICE-Extra funds uniform,28/01/2024 00:00,281035,155.5,MR0420,MR AMENITY LTD,01/01/2024 00:00,28/01/2024 00:00,P10-2024
P&V,MYDDELTON HOUSE,SUPPLIES AND SERVICES,OFFICE EXPENSES,4311,P124641-SERVICE-paper order,17/01/2024 00:00,281595,544.92,AM0406,AMAZON PAYMENTS UK LIMITED,01/01/2024 00:00,28/01/2024 00:00,P10-2024
,LEE VALLEY MARINA STANSTEAD,SUPPLIES AND SERVICES,OFFICE EXPENSES,4311,P124526-SERVICE-A3 snap frames for laundry,10/01/2024 00:00,281276,25.83,AM0406,AMAZON PAYMENTS UK LIMITED,01/01/2024 00:00,28/01/2024 00:00,P10-2024
,LEE VALLEY MARINA STANSTEAD,SUPPLIES AND SERVICES,OFFICE EXPENSES,4311,"P124525-SERVICE-stationery (bics, sharpies & punched pockets)",10/01/2024 00:00,281323,33.03,TH0008,JKL SOLUTIONS LTD,01/01/2024 00:00,28/01/2024 00:00,P10-2024
,LEE VALLEY MARINA STANSTEAD,SUPPLIES AND SERVICES,OFFICE EXPENSES,4311,"P124581-SERVICE-Laundry Pods, Bags, Frames",15/01/2024 00:00,281387,25.83,AM0406,AMAZON PAYMENTS UK LIMITED,01/01/2024 00:00,28/01/2024 00:00,P10-2024
,LEE VALLEY MARINA STANSTEAD,SUPPLIES AND SERVICES,OFFICE EXPENSES,4311,"P124581-SERVICE-Laundry Pods, Bags, Frames",15/01/2024 00:00,281388,7.91,AM0406,AMAZON PAYMENTS UK LIMITED,01/01/2024 00:00,28/01/2024 00:00,P10-2024
,LEE VALLEY MARINA STANSTEAD,SUPPLIES AND SERVICES,OFFICE EXPENSES,4311,"P124581-SERVICE-Laundry Pods, Bags, Frames",15/01/2024 00:00,281389,42.12,AM0406,AMAZON PAYMENTS UK LIMITED,01/01/2024 00:00,28/01/2024 00:00,P10-2024
,LEE VALLEY MARINA STANSTEAD,SUPPLIES AND SERVICES,OFFICE EXPENSES,4311,P124595-SERVICE-Laundry Bin and Liners (50L),15/01/2024 00:00,281512,11.04,AM0406,AMAZON PAYMENTS UK LIMITED,01/01/2024 00:00,28/01/2024 00:00,P10-2024
,LEE VALLEY MARINA STANSTEAD,SUPPLIES AND SERVICES,OFFICE EXPENSES,4311,P124595-SERVICE-Laundry Bin and Liners (50L),15/01/2024 00:00,281513,6.57,AM0406,AMAZON PAYMENTS UK LIMITED,01/01/2024 00:00,28/01/2024 00:00,P10-2024
,LEE VALLEY MARINA STANSTEAD,SUPPLIES AND SERVICES,OFFICE EXPENSES,4311,P124707-SERVICE-4 x laundry baskets,28/01/2024 00:00,281781,27.48,AM0406,AMAZON PAYMENTS UK LIMITED,01/01/2024 00:00,28/01/2024 00:00,P10-2024
,STANSTEAD RECHARGEABLE WORKS,SUPPLIES AND SERVICES,OFFICE EXPENSES,4311,"P124720-SERVICE-doormats (office, chand & laundry + gas sign",28/01/2024 00:00,281783,5.28,AM0406,AMAZON PAYMENTS UK LIMITED,01/01/2024 00:00,28/01/2024 00:00,P10-2024
,STANSTEAD RECHARGEABLE WORKS,SUPPLIES AND SERVICES,OFFICE EXPENSES,4311,"P124720-SERVICE-doormats (office, chand & laundry + gas sign",28/01/2024 00:00,281907,84.95,AM0406,AMAZON PAYMENTS UK LIMITED,01/01/2024 00:00,28/01/2024 00:00,P10-2024
,LV LEISURE CENTRE CAMPSITE,SUPPLIES AND SERVICES,OFFICE EXPENSES,4311,Edm- paper cups/milk/beans/etc,17/01/2024 00:00,281606,67.5,RI0176,RIJO 42 INGREDIENTS LIMITED,01/01/2024 00:00,28/01/2024 00:00,P10-2024
,LV LEISURE CENTRE CAMPSITE,SUPPLIES AND SERVICES,OFFICE EXPENSES,4311,Edm- paper cups/milk/beans/etc,17/01/2024 00:00,281606,-263.14,RI0176,RIJO 42 INGREDIENTS LIMITED,01/01/2024 00:00,28/01/2024 00:00,P10-2024
,LV LEISURE CENTRE CAMPSITE,SUPPLIES AND SERVICES,OFFICE EXPENSES,4311,P124599-SERVICE-Coffee machine supplies,17/01/2024 00:00,281606,263.14,RI0176,RIJO 42 INGREDIENTS LIMITED,01/01/2024 00:00,28/01/2024 00:00,P10-2024
,LV LEISURE CENTRE CAMPSITE,SUPPLIES AND SERVICES,OFFICE EXPENSES,4311,Edm- paper cups/milk/beans/etc,17/01/2024 00:00,281606,195.64,RI0176,RIJO 42 INGREDIENTS LIMITED,01/01/2024 00:00,28/01/2024 00:00,P10-2024
P&V,AWARDS AND ACCREDITATIONS,SUPPLIES AND SERVICES,OFFICE EXPENSES,4311,P124521-SERVICE-White hologuard labels - Type 1 - Quote numbe,15/01/2024 00:00,281530,500,SE0429,SEAREACH,01/01/2024 00:00,28/01/2024 00:00,P10-2024
R&B,INFORMATION TECHNOLOGY,SUPPLIES AND SERVICES,PHOTOCOPYING,4314,IT-quarterly charge - 14/10-13/01/24,15/01/2024 00:00,281395,263.87,KO0071,KONICA MINOLTA BUSINESS SOLUTIONS ( UK) LTD,01/01/2024 00:00,28/01/2024 00:00,P10-2024
R&B,INFORMATION TECHNOLOGY,SUPPLIES AND SERVICES,PHOTOCOPYING,4314,IT-quarterly charge - 14/01-13/04/24,15/01/2024 00:00,281396,459.6,KO0071,KONICA MINOLTA BUSINESS SOLUTIONS ( UK) LTD,01/01/2024 00:00,28/01/2024 00:00,P10-2024
CEO,LEGAL SERVICES,SUPPLIES AND SERVICES,SUBSCRIPTIONS,4334,"P124484-SERVICE-Searchs on Land East Railway, Mollison Ave",08/01/2024 00:00,281014,673.7,SE0705,SEARCHFLOW LIMITED,01/01/2024 00:00,28/01/2024 00:00,P10-2024
CEO,LEGAL SERVICES,SUPPLIES AND SERVICES,SUBSCRIPTIONS,4334,SEARCHFLOW LIMITED,08/01/2024 00:00,281014,-673.7,SE0705,SEARCHFLOW LIMITED,01/01/2024 00:00,28/01/2024 00:00,P10-2024
CEO,LEGAL SERVICES,SUPPLIES AND SERVICES,SUBSCRIPTIONS,4334,SEARCHFLOW LIMITED,08/01/2024 00:00,281014,15,SE0705,SEARCHFLOW LIMITED,01/01/2024 00:00,28/01/2024 00:00,P10-2024
CEO,LEGAL SERVICES,SUPPLIES AND SERVICES,SUBSCRIPTIONS,4334,SEARCHFLOW LIMITED,08/01/2024 00:00,281014,658.7,SE0705,SEARCHFLOW LIMITED,01/01/2024 00:00,28/01/2024 00:00,P10-2024
CEO,LEGAL SERVICES,SUPPLIES AND SERVICES,SUBSCRIPTIONS,4334,Refer to Comp Ref 281014,08/01/2024 00:00,281040,-15,SE0705,SEARCHFLOW LIMITED,01/01/2024 00:00,28/01/2024 00:00,P10-2024
CEO,LEGAL SERVICES,SUPPLIES AND SERVICES,SUBSCRIPTIONS,4334,Refer to Comp Ref 281014,08/01/2024 00:00,281040,395.11,SE0705,SEARCHFLOW LIMITED,01/01/2024 00:00,28/01/2024 00:00,P10-2024
CEO,LEGAL SERVICES,SUPPLIES AND SERVICES,SUBSCRIPTIONS,4334,Refer to Comp Ref 281014,08/01/2024 00:00,281040,-380.11,SE0705,SEARCHFLOW LIMITED,01/01/2024 00:00,28/01/2024 00:00,P10-2024
CEO,LEGAL SERVICES,SUPPLIES AND SERVICES,SUBSCRIPTIONS,4334,"P124484-SERVICE-Searchs on Land East Railway, Mollison Ave",08/01/2024 00:00,281040,-395.11,SE0705,SEARCHFLOW LIMITED,01/01/2024 00:00,28/01/2024 00:00,P10-2024
CEO,LEGAL SERVICES,SUPPLIES AND SERVICES,SUBSCRIPTIONS,4334,Legal-official Local Auth search,08/01/2024 00:00,281041,470.92,SE0705,SEARCHFLOW LIMITED,01/01/2024 00:00,28/01/2024 00:00,P10-2024
CEO,LEGAL SERVICES,SUPPLIES AND SERVICES,SUBSCRIPTIONS,4334,Legal-official Local Auth search,08/01/2024 00:00,281041,15,SE0705,SEARCHFLOW LIMITED,01/01/2024 00:00,28/01/2024 00:00,P10-2024
CEO,LEGAL SERVICES,SUPPLIES AND SERVICES,SUBSCRIPTIONS,4334,"P124484-SERVICE-Searchs on Land East Railway, Mollison Ave",08/01/2024 00:00,281041,485.92,SE0705,SEARCHFLOW LIMITED,01/01/2024 00:00,28/01/2024 00:00,P10-2024
CEO,LEGAL SERVICES,SUPPLIES AND SERVICES,SUBSCRIPTIONS,4334,Legal-official Local Auth search,08/01/2024 00:00,281041,-485.92,SE0705,SEARCHFLOW LIMITED,01/01/2024 00:00,28/01/2024 00:00,P10-2024
CEO,LEGAL SERVICES,SUPPLIES AND SERVICES,SUBSCRIPTIONS,4334,"P124484-SERVICE-Searchs on Land East Railway, Mollison Ave",08/01/2024 00:00,281253,426.16,SE0705,SEARCHFLOW LIMITED,01/01/2024 00:00,28/01/2024 00:00,P10-2024
CEO,LEGAL SERVICES,SUPPLIES AND SERVICES,SUBSCRIPTIONS,4334,"P124484-SERVICE-Searchs on Land East Railway, Mollison Ave",09/01/2024 00:00,281254,-99.72,SE0705,SEARCHFLOW LIMITED,01/01/2024 00:00,28/01/2024 00:00,P10-2024
CEO,LEGAL SERVICES,SUPPLIES AND SERVICES,SUBSCRIPTIONS,4334,SEARCHFLOW LIMITED,15/01/2024 00:00,281416,6,SE0705,SEARCHFLOW LIMITED,01/01/2024 00:00,28/01/2024 00:00,P10-2024
CEO,LEGAL SERVICES,SUPPLIES AND SERVICES,SUBSCRIPTIONS,4334,SEARCHFLOW LIMITED,15/01/2024 00:00,281416,-8.2,SE0705,SEARCHFLOW LIMITED,01/01/2024 00:00,28/01/2024 00:00,P10-2024
CEO,LEGAL SERVICES,SUPPLIES AND SERVICES,SUBSCRIPTIONS,4334,P123984-SERVICE-Conveyancing Searches,15/01/2024 00:00,281416,8.2,SE0705,SEARCHFLOW LIMITED,01/01/2024 00:00,28/01/2024 00:00,P10-2024
CEO,LEGAL SERVICES,SUPPLIES AND SERVICES,SUBSCRIPTIONS,4334,SEARCHFLOW LIMITED,15/01/2024 00:00,281416,2.24,SE0705,SEARCHFLOW LIMITED,01/01/2024 00:00,28/01/2024 00:00,P10-2024
R&B,INFORMATION TECHNOLOGY,SUPPLIES AND SERVICES,TELEPHONES (OFFICE),4481,P123882-SERVICE-Monthly SIP - Oct 23 - Mar 24,08/01/2024 00:00,281203,192.2,FR0131,VOICEFLEX LTD,01/01/2024 00:00,28/01/2024 00:00,P10-2024
R&B,INFORMATION TECHNOLOGY,SUPPLIES AND SERVICES,TELEPHONES (OFFICE),4481,DAISY COMMUNICATIONS LTD,10/01/2024 00:00,281301,1072.26,ID0002,DAISY COMMUNICATIONS LTD,01/01/2024 00:00,28/01/2024 00:00,P10-2024
R&B,INFORMATION TECHNOLOGY,SUPPLIES AND SERVICES,TELEPHONES (OFFICE),4481,P124539-SERVICE-CallSwitch Licence & Calls Nov 2023,10/01/2024 00:00,281341,846.65,IQ0022,IQUAL,01/01/2024 00:00,28/01/2024 00:00,P10-2024
R&B,INFORMATION TECHNOLOGY,SUPPLIES AND SERVICES,TELEPHONES (MOBILE),4484,IT-MONTHLY MOBILE CHARGES,28/01/2024 00:00,281915,975.5,VO0010,VODAFONE  LIMITED (CORPORATE),01/01/2024 00:00,28/01/2024 00:00,P10-2024
R&B,INFORMATION TECHNOLOGY,SUPPLIES AND SERVICES,TELEPHONES (MOBILE),4484,IT-MONTHLY MOBILE CHARGES,28/01/2024 00:00,281915,35,VO0010,VODAFONE  LIMITED (CORPORATE),01/01/2024 00:00,28/01/2024 00:00,P10-2024
R&B,DEMOCRATIC REPRESENTATION & MA,SUPPLIES AND SERVICES,MEMBERS EXPENSES,4502,P124722-SERVICE-Catering on 18/01/24,24/01/2024 00:00,281809,536.4,GR0097,GREENWICH LEISURE LTD,01/01/2024 00:00,28/01/2024 00:00,P10-2024
CEO,PR/COMMUNICATIONS,SUPPLIES AND SERVICES,HOSPITALITY,4505,P124290-SERVICE-UCI Track Championships - F&B vouchers,28/01/2024 00:00,281829,157.5,FI0193,FIVE STAR CATERING LTD,01/01/2024 00:00,28/01/2024 00:00,P10-2024
P&V,SPORT AND LEISURE,SUPPLIES AND SERVICES,HOSPITALITY,4505,P124040-SERVICE-Lunch for away day 24/11/23,16/01/2024 00:00,281571,390,GR0097,GREENWICH LEISURE LTD,01/01/2024 00:00,28/01/2024 00:00,P10-2024
P&V,EVENTS MANAGEMENT (PR),SUPPLIES AND SERVICES,HOSPITALITY,4505,P124622-SERVICE-Additional nights hotel accomodation,22/01/2024 00:00,281738,225,NA0054,BRITISH CYCLING EVENTS LTD,01/01/2024 00:00,28/01/2024 00:00,P10-2024
,LEE VALLEY MARINA STANSTEAD,INTERNAL HOSPITALITY,INTERNAL HOSPITALITY,4507,P123533-SERVICE-milk covering oct23-apr 24,10/01/2024 00:00,281268,42.4,HA0259,STUART BARTON-HAGGER LIMITED,01/01/2024 00:00,28/01/2024 00:00,P10-2024
,LEE VALLEY MARINA STANSTEAD,SUPPLIES AND SERVICES,MARKETING,4603,P123687-SERVICE-marina signs oct 23,22/01/2024 00:00,281755,280,SI0024,SIGNS EXPRESS (HARLOW),01/01/2024 00:00,28/01/2024 00:00,P10-2024
,LEE VALLEY CAMPSITE,SUPPLIES AND SERVICES,MARKETING,4603,P122607-SERVICE-Site Signage,22/01/2024 00:00,278296,60,SL0528,SLAM SIGNS LTD,01/01/2024 00:00,28/01/2024 00:00,P10-2024
,LEE VALLEY MARINA SPRINGFIELD,SUPPLIES AND SERVICES,MERCHANT PROCESSING CHARGES,4641,Monthly Fee,28/01/2024 00:00,282016,30,WO0338,WORLDPAY,01/01/2024 00:00,28/01/2024 00:00,P10-2024
,LEE VALLEY MARINA STANSTEAD,SUPPLIES AND SERVICES,MERCHANT PROCESSING CHARGES,4641,Monthly Fee,28/01/2024 00:00,282016,30,WO0338,WORLDPAY,01/01/2024 00:00,28/01/2024 00:00,P10-2024
P&V,MYDDELTON HOUSE,SUPPLIES AND SERVICES,CASH COLLECTIONS,4642,CASH COLLECTION-Nov 23,08/01/2024 00:00,280621,-12.43,SE0692,SECURITY PLUS LTD,01/01/2024 00:00,28/01/2024 00:00,P10-2024
P&V,MYDDELTON HOUSE,SUPPLIES AND SERVICES,CASH COLLECTIONS,4642,P124512-SERVICE-Cash Collections Myd House,08/01/2024 00:00,280621,12.43,SE0692,SECURITY PLUS LTD,01/01/2024 00:00,28/01/2024 00:00,P10-2024
,LEE VALLEY MARINA SPRINGFIELD,SUPPLIES AND SERVICES,CASH COLLECTIONS,4642,CASH COLLECTION-Nov 23,08/01/2024 00:00,280621,-24.86,SE0692,SECURITY PLUS LTD,01/01/2024 00:00,28/01/2024 00:00,P10-2024
,LEE VALLEY MARINA SPRINGFIELD,SUPPLIES AND SERVICES,CASH COLLECTIONS,4642,P124512-SERVICE-Cash Collection Stanstead Marina,08/01/2024 00:00,280621,24.86,SE0692,SECURITY PLUS LTD,01/01/2024 00:00,28/01/2024 00:00,P10-2024
,LEE VALLEY MARINA SPRINGFIELD,SUPPLIES AND SERVICES,CASH COLLECTIONS,4642,CASH COLLECTION-Nov 23,08/01/2024 00:00,280621,12.43,SE0692,SECURITY PLUS LTD,01/01/2024 00:00,28/01/2024 00:00,P10-2024
,LEE VALLEY MARINA STANSTEAD,SUPPLIES AND SERVICES,CASH COLLECTIONS,4642,CASH COLLECTION-Nov 23,08/01/2024 00:00,280621,-12.43,SE0692,SECURITY PLUS LTD,01/01/2024 00:00,28/01/2024 00:00,P10-2024
,LEE VALLEY MARINA STANSTEAD,SUPPLIES AND SERVICES,CASH COLLECTIONS,4642,P124512-SERVICE-Cash Collection Springfield Marina,08/01/2024 00:00,280621,12.43,SE0692,SECURITY PLUS LTD,01/01/2024 00:00,28/01/2024 00:00,P10-2024
,LEE VALLEY MARINA STANSTEAD,SUPPLIES AND SERVICES,CASH COLLECTIONS,4642,CASH COLLECTION-Nov 23,08/01/2024 00:00,280621,24.86,SE0692,SECURITY PLUS LTD,01/01/2024 00:00,28/01/2024 00:00,P10-2024
,LEE VALLEY CAMPSITE,SUPPLIES AND SERVICES,CASH COLLECTIONS,4642,P124512-SERVICE-Cash Collection Sewardstone campsite,08/01/2024 00:00,280621,62.15,SE0692,SECURITY PLUS LTD,01/01/2024 00:00,28/01/2024 00:00,P10-2024
,LEE VALLEY CARAVAN PARK,SUPPLIES AND SERVICES,CASH COLLECTIONS,4642,P124512-SERVICE-Cash Collection Dobbs Weir campsite,08/01/2024 00:00,280621,62.15,SE0692,SECURITY PLUS LTD,01/01/2024 00:00,28/01/2024 00:00,P10-2024
P&V,MYDDELTON HOUSE GARDENS,SUPPLIES AND SERVICES,CASH COLLECTIONS,4642,CASH COLLECTION-Nov 23,08/01/2024 00:00,280621,6.21,SE0692,SECURITY PLUS LTD,01/01/2024 00:00,28/01/2024 00:00,P10-2024
P&V,MYDDLETON HSE HERITAGE CENTRE,SUPPLIES AND SERVICES,CASH COLLECTIONS,4642,CASH COLLECTION-Nov 23,08/01/2024 00:00,280621,6.22,SE0692,SECURITY PLUS LTD,01/01/2024 00:00,28/01/2024 00:00,P10-2024
,LV LEISURE CENTRE CAMPSITE,SUPPLIES AND SERVICES,CASH COLLECTIONS,4642,P124512-SERVICE-Cash Collection Edmonton,08/01/2024 00:00,280621,62.15,SE0692,SECURITY PLUS LTD,01/01/2024 00:00,28/01/2024 00:00,P10-2024
R&B,FINANCE & RESOURCES MANAGEMENT,SUPPLIES AND SERVICES,DEBT RECOVERY FEES,4646,P121343-SERVICE-DEBT RECOVERY FEES 2023/2024,24/01/2024 00:00,281812,164.1,LE0069,LEGAL RECOVERIES AND COLLECTIONS LIMITED,01/01/2024 00:00,28/01/2024 00:00,P10-2024
P&V,MYDDELTON HOUSE,SUPPLIES AND SERVICES,SECURITY,4650,P124708-SERVICE-External Lighting - Security Lighting at Mydd,28/01/2024 00:00,281978,980,BR0018,BRADSHAW ELECTRICAL LIMITED,01/01/2024 00:00,28/01/2024 00:00,P10-2024
,LEE VALLEY CARAVAN PARK,SUPPLIES AND SERVICES,SECURITY,4650,P124238-SERVICE-1 year service contract,15/01/2024 00:00,281419,-324,HA0466,HARLING SECURITY SOLUTIONS LTD,01/01/2024 00:00,28/01/2024 00:00,P10-2024
P&V,NORTH AREA RANGERS,SUPPLIES AND SERVICES,SECURITY,4650,P124148-SERVICE-Security - North of Park,08/01/2024 00:00,281007,6184.26,PA0059,PARKGUARD LTD,01/01/2024 00:00,28/01/2024 00:00,P10-2024
P&V,SOUTH AREA RANGERS,SUPPLIES AND SERVICES,SECURITY,4650,P124149-SERVICE-Security - South of Park,08/01/2024 00:00,281008,9000,PA0059,PARKGUARD LTD,01/01/2024 00:00,28/01/2024 00:00,P10-2024
P&V,SOUTH AREA RANGERS,SUPPLIES AND SERVICES,SECURITY,4650,P124149-SERVICE-Security - South of Park,08/01/2024 00:00,281008,1443.12,PA0059,PARKGUARD LTD,01/01/2024 00:00,28/01/2024 00:00,P10-2024
P&V,RIVER LEE COUNTRY PARK,SUPPLIES AND SERVICES,SECURITY,4650,P124592-SERVICE-OOH call service 1/1/24 - 31/3/24,15/01/2024 00:00,281338,327.81,TE0585,TENDRING DISTRICT COUNCIL,01/01/2024 00:00,28/01/2024 00:00,P10-2024
CEO,PR/COMMUNICATIONS,SUPPLIES AND SERVICES,SPECIAL MARKETING PROJECTS,4652,P124446-SERVICE-Your Perfect Location - Staycation Guide 2024,22/01/2024 00:00,281209,200,WA0063,WARNERS GROUP PUBLICATIONS PLC,01/01/2024 00:00,28/01/2024 00:00,P10-2024
CEO,LEGAL SERVICES,SUPPLIES AND SERVICES,OFFSITE ARCHIVED STORAGE,4667,P124587-SERVICE-Off site storage Dec 2023,15/01/2024 00:00,281325,389.15,DA0154,RESTORE PLC,01/01/2024 00:00,28/01/2024 00:00,P10-2024
P&V,YOUTH AND SCHOOLS,SUPPLIES AND SERVICES,ACTIVITIES (SCHOOLS),4725,P124529-SERVICE-4 x Chickwin Tablecloths Wipeable PVC,10/01/2024 00:00,281322,33.28,AM0406,AMAZON PAYMENTS UK LIMITED,01/01/2024 00:00,28/01/2024 00:00,P10-2024
P&V,YOUTH AND SCHOOLS,SUPPLIES AND SERVICES,ACTIVITIES (SCHOOLS),4725,P124637-SERVICE-Memebrship for outdoor learning 2024,22/01/2024 00:00,281614,320,IN0090,INSTITUTE FOR OUTDOOR LEARNING,01/01/2024 00:00,28/01/2024 00:00,P10-2024
P&V,YOUTH AND SCHOOLS,SUPPLIES AND SERVICES,ACTIVITIES (SCHOOLS),4725,P124664-SERVICE-Biface Stone Age Tool (Reproduction),28/01/2024 00:00,281653,49.94,AM0406,AMAZON PAYMENTS UK LIMITED,01/01/2024 00:00,28/01/2024 00:00,P10-2024
P&V,YOUTH AND SCHOOLS,SUPPLIES AND SERVICES,ACTIVITIES (SCHOOLS),4725,P124664-SERVICE-Flameless tealights Pk 50,22/01/2024 00:00,281732,11.99,AM0406,AMAZON PAYMENTS UK LIMITED,01/01/2024 00:00,28/01/2024 00:00,P10-2024
P&V,MYDDLETON HSE HERITAGE CENTRE,SUPPLIES AND SERVICES,NET CATERING PURCHASES,4777,BTR- FOOD/DRINKS,08/01/2024 00:00,281033,-272.07,360001,BIDFOOD,01/01/2024 00:00,28/01/2024 00:00,P10-2024
P&V,MYDDLETON HSE HERITAGE CENTRE,SUPPLIES AND SERVICES,NET CATERING PURCHASES,4777,P124269-SERVICE-food and drinks,08/01/2024 00:00,281033,272.07,360001,BIDFOOD,01/01/2024 00:00,28/01/2024 00:00,P10-2024
P&V,MYDDLETON HSE HERITAGE CENTRE,SUPPLIES AND SERVICES,NET CATERING PURCHASES,4777,BTR- FOOD/DRINKS,08/01/2024 00:00,281033,70.14,360001,BIDFOOD,01/01/2024 00:00,28/01/2024 00:00,P10-2024
P&V,MYDDLETON HSE HERITAGE CENTRE,SUPPLIES AND SERVICES,NET CATERING PURCHASES,4777,BTR- FOOD/DRINKS,08/01/2024 00:00,281033,201.93,360001,BIDFOOD,01/01/2024 00:00,28/01/2024 00:00,P10-2024
P&V,MYDDLETON HSE HERITAGE CENTRE,SUPPLIES AND SERVICES,NET CATERING PURCHASES,4777,P123945-SERVICE-FOOD,08/01/2024 00:00,281125,195.66,JJ0188,JJ FOOD SERVICE LIMITED,01/01/2024 00:00,28/01/2024 00:00,P10-2024
P&V,MYDDLETON HSE HERITAGE CENTRE,SUPPLIES AND SERVICES,NET CATERING PURCHASES,4777,BTR-food/drinks,08/01/2024 00:00,281125,-195.66,JJ0188,JJ FOOD SERVICE LIMITED,01/01/2024 00:00,28/01/2024 00:00,P10-2024
P&V,MYDDLETON HSE HERITAGE CENTRE,SUPPLIES AND SERVICES,NET CATERING PURCHASES,4777,BTR-food/drinks,08/01/2024 00:00,281125,63.05,JJ0188,JJ FOOD SERVICE LIMITED,01/01/2024 00:00,28/01/2024 00:00,P10-2024
P&V,MYDDLETON HSE HERITAGE CENTRE,SUPPLIES AND SERVICES,NET CATERING PURCHASES,4777,BTR-food/drinks,08/01/2024 00:00,281125,132.61,JJ0188,JJ FOOD SERVICE LIMITED,01/01/2024 00:00,28/01/2024 00:00,P10-2024
P&V,MYDDLETON HSE HERITAGE CENTRE,SUPPLIES AND SERVICES,NET CATERING PURCHASES,4777,BTR-food/drinks,08/01/2024 00:00,281126,-183.14,JJ0188,JJ FOOD SERVICE LIMITED,01/01/2024 00:00,28/01/2024 00:00,P10-2024
P&V,MYDDLETON HSE HERITAGE CENTRE,SUPPLIES AND SERVICES,NET CATERING PURCHASES,4777,P124241-SERVICE-food and drinks,08/01/2024 00:00,281126,183.14,JJ0188,JJ FOOD SERVICE LIMITED,01/01/2024 00:00,28/01/2024 00:00,P10-2024
P&V,MYDDLETON HSE HERITAGE CENTRE,SUPPLIES AND SERVICES,NET CATERING PURCHASES,4777,BTR-food/drinks,08/01/2024 00:00,281126,82.34,JJ0188,JJ FOOD SERVICE LIMITED,01/01/2024 00:00,28/01/2024 00:00,P10-2024
P&V,MYDDLETON HSE HERITAGE CENTRE,SUPPLIES AND SERVICES,NET CATERING PURCHASES,4777,BTR-food/drinks,08/01/2024 00:00,281126,100.8,JJ0188,JJ FOOD SERVICE LIMITED,01/01/2024 00:00,28/01/2024 00:00,P10-2024
P&V,MYDDLETON HSE HERITAGE CENTRE,SUPPLIES AND SERVICES,NET CATERING PURCHASES,4777,BTR-food/drinks,09/01/2024 00:00,281279,245.19,360001,BIDFOOD,01/01/2024 00:00,28/01/2024 00:00,P10-2024
P&V,MYDDLETON HSE HERITAGE CENTRE,SUPPLIES AND SERVICES,NET CATERING PURCHASES,4777,BTR-food/drinks,09/01/2024 00:00,281279,-439.86,360001,BIDFOOD,01/01/2024 00:00,28/01/2024 00:00,P10-2024
P&V,MYDDLETON HSE HERITAGE CENTRE,SUPPLIES AND SERVICES,NET CATERING PURCHASES,4777,BTR-food/drinks,09/01/2024 00:00,281279,194.67,360001,BIDFOOD,01/01/2024 00:00,28/01/2024 00:00,P10-2024
P&V,MYDDLETON HSE HERITAGE CENTRE,SUPPLIES AND SERVICES,NET CATERING PURCHASES,4777,P124269-SERVICE-food and drinks,09/01/2024 00:00,281279,439.86,360001,BIDFOOD,01/01/2024 00:00,28/01/2024 00:00,P10-2024
P&V,MYDDLETON HSE HERITAGE CENTRE,SUPPLIES AND SERVICES,NET CATERING PURCHASES,4777,P124611-SERVICE-coffee,15/01/2024 00:00,281335,84.95,TU0194,TUDOR TEA & COFFEE,01/01/2024 00:00,28/01/2024 00:00,P10-2024
P&V,MYDDLETON HSE HERITAGE CENTRE,SUPPLIES AND SERVICES,NET CATERING PURCHASES,4777,P124612-SERVICE-catering goods,15/01/2024 00:00,281366,76.36,360001,BIDFOOD,01/01/2024 00:00,28/01/2024 00:00,P10-2024
P&V,MYDDLETON HSE HERITAGE CENTRE,SUPPLIES AND SERVICES,NET CATERING PURCHASES,4777,BTR-food/drinks,15/01/2024 00:00,281366,-76.36,360001,BIDFOOD,01/01/2024 00:00,28/01/2024 00:00,P10-2024
P&V,MYDDLETON HSE HERITAGE CENTRE,SUPPLIES AND SERVICES,NET CATERING PURCHASES,4777,BTR-food/drinks,15/01/2024 00:00,281366,70.17,360001,BIDFOOD,01/01/2024 00:00,28/01/2024 00:00,P10-2024
P&V,MYDDLETON HSE HERITAGE CENTRE,SUPPLIES AND SERVICES,NET CATERING PURCHASES,4777,P124269-SERVICE-food and drinks,15/01/2024 00:00,281366,105.98,360001,BIDFOOD,01/01/2024 00:00,28/01/2024 00:00,P10-2024
P&V,MYDDLETON HSE HERITAGE CENTRE,SUPPLIES AND SERVICES,NET CATERING PURCHASES,4777,BTR-food/drinks,15/01/2024 00:00,281366,6.19,360001,BIDFOOD,01/01/2024 00:00,28/01/2024 00:00,P10-2024
P&V,MYDDLETON HSE HERITAGE CENTRE,SUPPLIES AND SERVICES,NET CATERING PURCHASES,4777,BULLS MOOR EXPRESS - TOMATOES(NOT VAT INV),15/01/2024 00:00,281385,2.57,FI0001,DIRECTOR OF FINANCE - CASH,01/01/2024 00:00,28/01/2024 00:00,P10-2024
P&V,MYDDLETON HSE HERITAGE CENTRE,SUPPLIES AND SERVICES,NET CATERING PURCHASES,4777,"TESCO-MILK, CUCUMBER, TOMATOES,ETC",15/01/2024 00:00,281385,10.55,FI0001,DIRECTOR OF FINANCE - CASH,01/01/2024 00:00,28/01/2024 00:00,P10-2024
P&V,MYDDLETON HSE HERITAGE CENTRE,SUPPLIES AND SERVICES,NET CATERING PURCHASES,4777,"TESCO-SALAD, FRUITS, BREAD",15/01/2024 00:00,281385,14.77,FI0001,DIRECTOR OF FINANCE - CASH,01/01/2024 00:00,28/01/2024 00:00,P10-2024
P&V,MYDDLETON HSE HERITAGE CENTRE,SUPPLIES AND SERVICES,NET CATERING PURCHASES,4777,"TESCO-YOGHUTY, PASTRY",15/01/2024 00:00,281385,15.75,FI0001,DIRECTOR OF FINANCE - CASH,01/01/2024 00:00,28/01/2024 00:00,P10-2024
P&V,MYDDLETON HSE HERITAGE CENTRE,SUPPLIES AND SERVICES,NET CATERING PURCHASES,4777,BTR-food/drinks,22/01/2024 00:00,281597,-674.25,360001,BIDFOOD,01/01/2024 00:00,28/01/2024 00:00,P10-2024
P&V,MYDDLETON HSE HERITAGE CENTRE,SUPPLIES AND SERVICES,NET CATERING PURCHASES,4777,BTR-food/drinks,22/01/2024 00:00,281597,512.58,360001,BIDFOOD,01/01/2024 00:00,28/01/2024 00:00,P10-2024
P&V,MYDDLETON HSE HERITAGE CENTRE,SUPPLIES AND SERVICES,NET CATERING PURCHASES,4777,BTR-food/drinks,22/01/2024 00:00,281597,161.67,360001,BIDFOOD,01/01/2024 00:00,28/01/2024 00:00,P10-2024
P&V,MYDDLETON HSE HERITAGE CENTRE,SUPPLIES AND SERVICES,NET CATERING PURCHASES,4777,P124612-SERVICE-catering goods,22/01/2024 00:00,281597,674.25,360001,BIDFOOD,01/01/2024 00:00,28/01/2024 00:00,P10-2024
P&V,MYDDLETON HSE HERITAGE CENTRE,SUPPLIES AND SERVICES,NET CATERING PURCHASES,4777,P124612-SERVICE-catering goods,28/01/2024 00:00,281799,210.41,360001,BIDFOOD,01/01/2024 00:00,28/01/2024 00:00,P10-2024
P&V,MYDDLETON HSE HERITAGE CENTRE,SUPPLIES AND SERVICES,NET CATERING PURCHASES,4777,BTR - food/drinks,28/01/2024 00:00,281902,-658.43,360001,BIDFOOD,01/01/2024 00:00,28/01/2024 00:00,P10-2024
P&V,MYDDLETON HSE HERITAGE CENTRE,SUPPLIES AND SERVICES,NET CATERING PURCHASES,4777,BTR - food/drinks,28/01/2024 00:00,281902,506.41,360001,BIDFOOD,01/01/2024 00:00,28/01/2024 00:00,P10-2024
P&V,MYDDLETON HSE HERITAGE CENTRE,SUPPLIES AND SERVICES,NET CATERING PURCHASES,4777,P124612-SERVICE-catering goods,28/01/2024 00:00,281902,38.98,360001,BIDFOOD,01/01/2024 00:00,28/01/2024 00:00,P10-2024
P&V,MYDDLETON HSE HERITAGE CENTRE,SUPPLIES AND SERVICES,NET CATERING PURCHASES,4777,P124715-SERVICE-catering goods,28/01/2024 00:00,281902,658.43,360001,BIDFOOD,01/01/2024 00:00,28/01/2024 00:00,P10-2024
P&V,MYDDLETON HSE HERITAGE CENTRE,SUPPLIES AND SERVICES,NET CATERING PURCHASES,4777,BTR - food/drinks,28/01/2024 00:00,281902,152.02,360001,BIDFOOD,01/01/2024 00:00,28/01/2024 00:00,P10-2024
P&V,MYDDELTON HOUSE,SUPPLIES AND SERVICES,TRADING AC - EXTERNAL PURCHASE,4875,P124640-SERVICE-meeting room supplies,17/01/2024 00:00,281592,131.85,AM0406,AMAZON PAYMENTS UK LIMITED,01/01/2024 00:00,28/01/2024 00:00,P10-2024
,LEE VALLEY MARINA SPRINGFIELD,SUPPLIES AND SERVICES,TRADING AC - EXTERNAL PURCHASE,4875,P124513-SERVICE-Chandlery Stock,08/01/2024 00:00,281234,318.85,MI0200,MIDLAND CHANDLERS LIMITED,01/01/2024 00:00,28/01/2024 00:00,P10-2024
,LEE VALLEY MARINA SPRINGFIELD,SUPPLIES AND SERVICES,TRADING AC - EXTERNAL PURCHASE,4875,"P124524-SERVICE-Fenders, cable and gas fittings",15/01/2024 00:00,281295,290.65,AQ0033,LKQ AQUAFAX LIMITED,01/01/2024 00:00,28/01/2024 00:00,P10-2024
,LEE VALLEY MARINA SPRINGFIELD,SUPPLIES AND SERVICES,TRADING AC - EXTERNAL PURCHASE,4875,P124553-SERVICE-Chandlery Stock,15/01/2024 00:00,281363,225.8,MI0200,MIDLAND CHANDLERS LIMITED,01/01/2024 00:00,28/01/2024 00:00,P10-2024
,LEE VALLEY MARINA SPRINGFIELD,SUPPLIES AND SERVICES,TRADING AC - EXTERNAL PURCHASE,4875,"P124524-SERVICE-Fenders, cable and gas fittings",15/01/2024 00:00,281364,52.36,AQ0033,LKQ AQUAFAX LIMITED,01/01/2024 00:00,28/01/2024 00:00,P10-2024
,LEE VALLEY MARINA SPRINGFIELD,SUPPLIES AND SERVICES,TRADING AC - EXTERNAL PURCHASE,4875,P124606-SERVICE-Chandlery Stock,16/01/2024 00:00,281546,405.23,MI0200,MIDLAND CHANDLERS LIMITED,01/01/2024 00:00,28/01/2024 00:00,P10-2024
,LEE VALLEY MARINA SPRINGFIELD,SUPPLIES AND SERVICES,TRADING AC - EXTERNAL PURCHASE,4875,P121901-SERVICE-To supply items as requested,15/01/2024 00:00,281548,71.21,BQ0164,TRADE UK ACCOUNT,01/01/2024 00:00,28/01/2024 00:00,P10-2024
,LEE VALLEY MARINA SPRINGFIELD,SUPPLIES AND SERVICES,TRADING AC - EXTERNAL PURCHASE,4875,P124598-SERVICE-Stove glass for customer,16/01/2024 00:00,281566,25.41,CA0660,CALFIRE SPARELINE LIMITED,01/01/2024 00:00,28/01/2024 00:00,P10-2024
,LEE VALLEY MARINA SPRINGFIELD,SUPPLIES AND SERVICES,TRADING AC - EXTERNAL PURCHASE,4875,P124566-SERVICE-Fire accessories,16/01/2024 00:00,281567,354.31,CA0660,CALFIRE SPARELINE LIMITED,01/01/2024 00:00,28/01/2024 00:00,P10-2024
,LEE VALLEY MARINA SPRINGFIELD,SUPPLIES AND SERVICES,TRADING AC - EXTERNAL PURCHASE,4875,P124627-SERVICE-Firelighters,17/01/2024 00:00,281609,216,MI0200,MIDLAND CHANDLERS LIMITED,01/01/2024 00:00,28/01/2024 00:00,P10-2024
,LEE VALLEY MARINA SPRINGFIELD,SUPPLIES AND SERVICES,TRADING AC - EXTERNAL PURCHASE,4875,P124652-SERVICE-Gas fittings and fenders,22/01/2024 00:00,281656,125.17,AQ0033,LKQ AQUAFAX LIMITED,01/01/2024 00:00,28/01/2024 00:00,P10-2024
,LEE VALLEY MARINA SPRINGFIELD,SUPPLIES AND SERVICES,TRADING AC - EXTERNAL PURCHASE,4875,P124652-SERVICE-Gas fittings and fenders,28/01/2024 00:00,281741,9.98,AQ0033,LKQ AQUAFAX LIMITED,01/01/2024 00:00,28/01/2024 00:00,P10-2024
,LEE VALLEY MARINA SPRINGFIELD,SUPPLIES AND SERVICES,TRADING AC - EXTERNAL PURCHASE,4875,P124652-SERVICE-Gas fittings and fenders,28/01/2024 00:00,281742,2.5,AQ0033,LKQ AQUAFAX LIMITED,01/01/2024 00:00,28/01/2024 00:00,P10-2024
,LEE VALLEY MARINA SPRINGFIELD,SUPPLIES AND SERVICES,TRADING AC - EXTERNAL PURCHASE,4875,P124652-SERVICE-Gas fittings and fenders,28/01/2024 00:00,281764,1.34,AQ0033,LKQ AQUAFAX LIMITED,01/01/2024 00:00,28/01/2024 00:00,P10-2024
,LEE VALLEY MARINA SPRINGFIELD,SUPPLIES AND SERVICES,TRADING AC - EXTERNAL PURCHASE,4875,P124652-SERVICE-Gas fittings and fenders,28/01/2024 00:00,281765,7.68,AQ0033,LKQ AQUAFAX LIMITED,01/01/2024 00:00,28/01/2024 00:00,P10-2024
,LEE VALLEY MARINA SPRINGFIELD,SUPPLIES AND SERVICES,TRADING AC - EXTERNAL PURCHASE,4875,P124689-SERVICE-Logs,24/01/2024 00:00,281766,960,HA0371,HARTS OF OAK,01/01/2024 00:00,28/01/2024 00:00,P10-2024
,LEE VALLEY MARINA SPRINGFIELD,SUPPLIES AND SERVICES,TRADING AC - EXTERNAL PURCHASE,4875,P124680-SERVICE-Tools and sundry supplies,24/01/2024 00:00,281769,100.84,CE0510,CENTURION EUROPE LIMITED,01/01/2024 00:00,28/01/2024 00:00,P10-2024
,LEE VALLEY MARINA SPRINGFIELD,SUPPLIES AND SERVICES,TRADING AC - EXTERNAL PURCHASE,4875,P124699-SERVICE-Chandlery Stock,28/01/2024 00:00,281789,354.25,MI0200,MIDLAND CHANDLERS LIMITED,01/01/2024 00:00,28/01/2024 00:00,P10-2024
,LEE VALLEY MARINA SPRINGFIELD,SUPPLIES AND SERVICES,TRADING AC - EXTERNAL PURCHASE,4875,P124699-SERVICE-Chandlery Stock,28/01/2024 00:00,281824,0.89,MI0200,MIDLAND CHANDLERS LIMITED,01/01/2024 00:00,28/01/2024 00:00,P10-2024
,LEE VALLEY MARINA SPRINGFIELD,SUPPLIES AND SERVICES,TRADING AC - EXTERNAL PURCHASE,4875,P124737-SERVICE-Chandlery Stock,28/01/2024 00:00,281825,428.92,MI0200,MIDLAND CHANDLERS LIMITED,01/01/2024 00:00,28/01/2024 00:00,P10-2024
,LEE VALLEY MARINA SPRINGFIELD,SUPPLIES AND SERVICES,TRADING AC - EXTERNAL PURCHASE,4875,P124699-SERVICE-Chandlery Stock,28/01/2024 00:00,281826,-0.89,MI0200,MIDLAND CHANDLERS LIMITED,01/01/2024 00:00,28/01/2024 00:00,P10-2024
,LEE VALLEY MARINA SPRINGFIELD,SUPPLIES AND SERVICES,TRADING AC - EXTERNAL PURCHASE,4875,"P124769-SERVICE-Electrical, plumbing and gas fittings",28/01/2024 00:00,281910,384.01,AQ0033,LKQ AQUAFAX LIMITED,01/01/2024 00:00,28/01/2024 00:00,P10-2024
,LEE VALLEY MARINA SPRINGFIELD,SUPPLIES AND SERVICES,TRADING AC - EXTERNAL PURCHASE,4875,"P124769-SERVICE-Electrical, plumbing and gas fittings",28/01/2024 00:00,281911,10.84,AQ0033,LKQ AQUAFAX LIMITED,01/01/2024 00:00,28/01/2024 00:00,P10-2024
,LEE VALLEY MARINA SPRINGFIELD,SUPPLIES AND SERVICES,TRADING AC - EXTERNAL PURCHASE,4875,"P124638-SERVICE-Coal, kindling and heatlogs",28/01/2024 00:00,281947,2317,SM0664,KG SMITH & SON,01/01/2024 00:00,28/01/2024 00:00,P10-2024
,LEE VALLEY MARINA SPRINGFIELD,SUPPLIES AND SERVICES,TRADING AC - EXTERNAL PURCHASE,4875,P124777-SERVICE-Chandlery Stock,28/01/2024 00:00,281948,444.01,MI0200,MIDLAND CHANDLERS LIMITED,01/01/2024 00:00,28/01/2024 00:00,P10-2024
,LEE VALLEY MARINA SPRINGFIELD,SUPPLIES AND SERVICES,TRADING AC - EXTERNAL PURCHASE,4875,"P124769-SERVICE-Electrical, plumbing and gas fittings",28/01/2024 00:00,281952,75.44,AQ0033,LKQ AQUAFAX LIMITED,01/01/2024 00:00,28/01/2024 00:00,P10-2024
,STANSTEAD RECHARGEABLE WORKS,SUPPLIES AND SERVICES,TRADING AC - EXTERNAL PURCHASE,4875,P124497-SERVICE-chandlery stock,08/01/2024 00:00,281123,345.72,AQ0033,LKQ AQUAFAX LIMITED,01/01/2024 00:00,28/01/2024 00:00,P10-2024
,STANSTEAD RECHARGEABLE WORKS,SUPPLIES AND SERVICES,TRADING AC - EXTERNAL PURCHASE,4875,P124497-SERVICE-chandlery stock,08/01/2024 00:00,281204,8.06,AQ0033,LKQ AQUAFAX LIMITED,01/01/2024 00:00,28/01/2024 00:00,P10-2024
,STANSTEAD RECHARGEABLE WORKS,SUPPLIES AND SERVICES,TRADING AC - EXTERNAL PURCHASE,4875,P124497-SERVICE-chandlery stock,08/01/2024 00:00,281205,43.03,AQ0033,LKQ AQUAFAX LIMITED,01/01/2024 00:00,28/01/2024 00:00,P10-2024
,STANSTEAD RECHARGEABLE WORKS,SUPPLIES AND SERVICES,TRADING AC - EXTERNAL PURCHASE,4875,P124495-SERVICE-chandlery stock,08/01/2024 00:00,281233,969.83,MI0200,MIDLAND CHANDLERS LIMITED,01/01/2024 00:00,28/01/2024 00:00,P10-2024
,STANSTEAD RECHARGEABLE WORKS,SUPPLIES AND SERVICES,TRADING AC - EXTERNAL PURCHASE,4875,P124425-SERVICE-solid fuels,08/01/2024 00:00,281243,2583,SM0664,KG SMITH & SON,01/01/2024 00:00,28/01/2024 00:00,P10-2024
,STANSTEAD RECHARGEABLE WORKS,SUPPLIES AND SERVICES,TRADING AC - EXTERNAL PURCHASE,4875,P124495-SERVICE-chandlery stock,08/01/2024 00:00,281247,134.29,MI0200,MIDLAND CHANDLERS LIMITED,01/01/2024 00:00,28/01/2024 00:00,P10-2024
,STANSTEAD RECHARGEABLE WORKS,SUPPLIES AND SERVICES,TRADING AC - EXTERNAL PURCHASE,4875,P124523-SERVICE-gas hob customer order,22/01/2024 00:00,281294,177.22,AQ0033,LKQ AQUAFAX LIMITED,01/01/2024 00:00,28/01/2024 00:00,P10-2024
,STANSTEAD RECHARGEABLE WORKS,SUPPLIES AND SERVICES,TRADING AC - EXTERNAL PURCHASE,4875,P124497-SERVICE-chandlery stock,22/01/2024 00:00,281308,13.21,AQ0033,LKQ AQUAFAX LIMITED,01/01/2024 00:00,28/01/2024 00:00,P10-2024
,STANSTEAD RECHARGEABLE WORKS,SUPPLIES AND SERVICES,TRADING AC - EXTERNAL PURCHASE,4875,P124495-SERVICE-chandlery stock,22/01/2024 00:00,281309,64.37,MI0200,MIDLAND CHANDLERS LIMITED,01/01/2024 00:00,28/01/2024 00:00,P10-2024
,STANSTEAD RECHARGEABLE WORKS,SUPPLIES AND SERVICES,TRADING AC - EXTERNAL PURCHASE,4875,P124496-SERVICE-chandlery stock,22/01/2024 00:00,281337,351.98,CA0660,CALFIRE SPARELINE LIMITED,01/01/2024 00:00,28/01/2024 00:00,P10-2024
,STANSTEAD RECHARGEABLE WORKS,SUPPLIES AND SERVICES,TRADING AC - EXTERNAL PURCHASE,4875,Stanstead- Chandlery stock,22/01/2024 00:00,281397,12.9,MI0200,MIDLAND CHANDLERS LIMITED,01/01/2024 00:00,28/01/2024 00:00,P10-2024
,STANSTEAD RECHARGEABLE WORKS,SUPPLIES AND SERVICES,TRADING AC - EXTERNAL PURCHASE,4875,Stanstead- Chandlery stock,22/01/2024 00:00,281397,-1768.83,MI0200,MIDLAND CHANDLERS LIMITED,01/01/2024 00:00,28/01/2024 00:00,P10-2024
,STANSTEAD RECHARGEABLE WORKS,SUPPLIES AND SERVICES,TRADING AC - EXTERNAL PURCHASE,4875,P124578-SERVICE-chandlery stock,22/01/2024 00:00,281397,1768.83,MI0200,MIDLAND CHANDLERS LIMITED,01/01/2024 00:00,28/01/2024 00:00,P10-2024
,STANSTEAD RECHARGEABLE WORKS,SUPPLIES AND SERVICES,TRADING AC - EXTERNAL PURCHASE,4875,Stanstead- Chandlery stock,22/01/2024 00:00,281397,1755.93,MI0200,MIDLAND CHANDLERS LIMITED,01/01/2024 00:00,28/01/2024 00:00,P10-2024
,STANSTEAD RECHARGEABLE WORKS,SUPPLIES AND SERVICES,TRADING AC - EXTERNAL PURCHASE,4875,P124578-SERVICE-extra for back orders,22/01/2024 00:00,281406,31.65,MI0200,MIDLAND CHANDLERS LIMITED,01/01/2024 00:00,28/01/2024 00:00,P10-2024
,STANSTEAD RECHARGEABLE WORKS,SUPPLIES AND SERVICES,TRADING AC - EXTERNAL PURCHASE,4875,P124578-SERVICE-extra for back orders,22/01/2024 00:00,281407,7.84,MI0200,MIDLAND CHANDLERS LIMITED,01/01/2024 00:00,28/01/2024 00:00,P10-2024
,STANSTEAD RECHARGEABLE WORKS,SUPPLIES AND SERVICES,TRADING AC - EXTERNAL PURCHASE,4875,P124320-SERVICE-chandlery stock,10/01/2024 00:00,281421,-403.99,AQ0033,LKQ AQUAFAX LIMITED,01/01/2024 00:00,28/01/2024 00:00,P10-2024
,STANSTEAD RECHARGEABLE WORKS,SUPPLIES AND SERVICES,TRADING AC - EXTERNAL PURCHASE,4875,P124320-SERVICE-chandlery stock,10/01/2024 00:00,281422,403.98,AQ0033,LKQ AQUAFAX LIMITED,01/01/2024 00:00,28/01/2024 00:00,P10-2024
,STANSTEAD RECHARGEABLE WORKS,SUPPLIES AND SERVICES,TRADING AC - EXTERNAL PURCHASE,4875,P124685-SERVICE-chandlery stock,28/01/2024 00:00,281511,21.44,AQ0033,LKQ AQUAFAX LIMITED,01/01/2024 00:00,28/01/2024 00:00,P10-2024
,STANSTEAD RECHARGEABLE WORKS,SUPPLIES AND SERVICES,TRADING AC - EXTERNAL PURCHASE,4875,P124577-SERVICE-red diesel 2200 ltrs,22/01/2024 00:00,281556,1689.6,SP0543,SPEEDY FUELS LIMITED,01/01/2024 00:00,28/01/2024 00:00,P10-2024
,STANSTEAD RECHARGEABLE WORKS,SUPPLIES AND SERVICES,TRADING AC - EXTERNAL PURCHASE,4875,P124631-SERVICE-logs,22/01/2024 00:00,281562,400,HA0371,HARTS OF OAK,01/01/2024 00:00,28/01/2024 00:00,P10-2024
,STANSTEAD RECHARGEABLE WORKS,SUPPLIES AND SERVICES,TRADING AC - EXTERNAL PURCHASE,4875,P124578-SERVICE-extra for back orders,22/01/2024 00:00,281610,13.97,MI0200,MIDLAND CHANDLERS LIMITED,01/01/2024 00:00,28/01/2024 00:00,P10-2024
,STANSTEAD RECHARGEABLE WORKS,SUPPLIES AND SERVICES,TRADING AC - EXTERNAL PURCHASE,4875,P124600-SERVICE-chandlery stock LOGS,22/01/2024 00:00,281657,1035,SM0664,KG SMITH & SON,01/01/2024 00:00,28/01/2024 00:00,P10-2024
,STANSTEAD RECHARGEABLE WORKS,SUPPLIES AND SERVICES,TRADING AC - EXTERNAL PURCHASE,4875,P124681-SERVICE-Chandlery items Jan 24,22/01/2024 00:00,281735,606.65,MI0200,MIDLAND CHANDLERS LIMITED,01/01/2024 00:00,28/01/2024 00:00,P10-2024
,STANSTEAD RECHARGEABLE WORKS,SUPPLIES AND SERVICES,TRADING AC - EXTERNAL PURCHASE,4875,P124668-SERVICE-2200ltrs red diesel,23/01/2024 00:00,281770,1739.1,SP0543,SPEEDY FUELS LIMITED,01/01/2024 00:00,28/01/2024 00:00,P10-2024
,STANSTEAD RECHARGEABLE WORKS,SUPPLIES AND SERVICES,TRADING AC - EXTERNAL PURCHASE,4875,P124681-SERVICE-Chandlery items Jan 24,28/01/2024 00:00,281795,-30.6,MI0200,MIDLAND CHANDLERS LIMITED,01/01/2024 00:00,28/01/2024 00:00,P10-2024
,STANSTEAD RECHARGEABLE WORKS,SUPPLIES AND SERVICES,TRADING AC - EXTERNAL PURCHASE,4875,P124497-SERVICE-chandlery stock,24/01/2024 00:00,281811,4.03,AQ0033,LKQ AQUAFAX LIMITED,01/01/2024 00:00,28/01/2024 00:00,P10-2024
,STANSTEAD RECHARGEABLE WORKS,SUPPLIES AND SERVICES,TRADING AC - EXTERNAL PURCHASE,4875,P124692-SERVICE-chandlery stock,28/01/2024 00:00,281827,170.76,CE0510,CENTURION EUROPE LIMITED,01/01/2024 00:00,28/01/2024 00:00,P10-2024
,STANSTEAD RECHARGEABLE WORKS,SUPPLIES AND SERVICES,TRADING AC - EXTERNAL PURCHASE,4875,P124730-SERVICE-chandlery stock,28/01/2024 00:00,281921,84.39,CA0660,CALFIRE SPARELINE LIMITED,01/01/2024 00:00,28/01/2024 00:00,P10-2024
,STANSTEAD RECHARGEABLE WORKS,SUPPLIES AND SERVICES,TRADING AC - EXTERNAL PURCHASE,4875,P124773-SERVICE-chandlery stock,28/01/2024 00:00,281949,334.45,MI0200,MIDLAND CHANDLERS LIMITED,01/01/2024 00:00,28/01/2024 00:00,P10-2024
,LV LEISURE CENTRE CAMPSITE,SUPPLIES AND SERVICES,TRADING AC - EXTERNAL PURCHASE,4875,P124667-SERVICE-coffee cups,22/01/2024 00:00,281627,67.5,RI0176,RIJO 42 INGREDIENTS LIMITED,01/01/2024 00:00,28/01/2024 00:00,P10-2024
,LV LEISURE CENTRE CAMPSITE,SUPPLIES AND SERVICES,TRADING AC - EXTERNAL PURCHASE,4875,P124684-SERVICE-10 mph signs,23/01/2024 00:00,281740,124.98,FI0215,VALUE PRODUCTS LTD,01/01/2024 00:00,28/01/2024 00:00,P10-2024
,LV LEISURE CENTRE CAMPSITE,SUPPLIES AND SERVICES,TRADING AC - EXTERNAL PURCHASE,4875,P124676-SERVICE-assembly signage,28/01/2024 00:00,281934,575,SI0024,SIGNS EXPRESS (HARLOW),01/01/2024 00:00,28/01/2024 00:00,P10-2024
,LV LEISURE CENTRE CAMPSITE,SUPPLIES AND SERVICES,TRADING AC - EXTERNAL PURCHASE,4875,P124802-SERVICE-sign post,28/01/2024 00:00,281984,65,FI0215,VALUE PRODUCTS LTD,01/01/2024 00:00,28/01/2024 00:00,P10-2024
,LV LEISURE CENTRE CAMPSITE,SUPPLIES AND SERVICES,TRADING AC - EXTERNAL PURCHASE,4875,P124803-SERVICE-Fire Marshall Hi Vis Vest,28/01/2024 00:00,281985,41.7,FI0215,VALUE PRODUCTS LTD,01/01/2024 00:00,28/01/2024 00:00,P10-2024
,LEE VALLEY CAMPSITE,SUPPLIES AND SERVICES,BOTTLED GAS,4877,P124614-SERVICE-Site gas stock,15/01/2024 00:00,281087,393.31,CA0006,CALOR GAS LIMITED,01/01/2024 00:00,28/01/2024 00:00,P10-2024
,LEE VALLEY CAMPSITE,SUPPLIES AND SERVICES,BOTTLED GAS,4877,P124615-SERVICE-Stock - 47kg Cannisters x20 extra,15/01/2024 00:00,281088,1449.6,FL0147,FLOGAS BRITAIN LIMITED,01/01/2024 00:00,28/01/2024 00:00,P10-2024
CEO,CHIEF EXECUTIVE,SUPPLIES AND SERVICES,UNRECONCILED COMPANY CARD EXP,4880,P ANDREWS - JANUARY 2024 CREDIT CARD STATEMENT,08/01/2024 00:00,281223,254.05,NA0007,NATWEST CARD CENTRE,01/01/2024 00:00,28/01/2024 00:00,P10-2024
P&V,MYDDELTON HOUSE,SUPPLIES AND SERVICES,UNRECONCILED COMPANY CARD EXP,4880,G FLAVIE  - JANUARY 2024 CREDIT CARD STATEMENT,08/01/2024 00:00,281223,228.16,NA0007,NATWEST CARD CENTRE,01/01/2024 00:00,28/01/2024 00:00,P10-2024
CEO,PR/COMMUNICATIONS,SUPPLIES AND SERVICES,UNRECONCILED COMPANY CARD EXP,4880,S BROMBERG  - JANUARY 2024 CREDIT CARD STATEMENT,08/01/2024 00:00,281223,53.52,NA0007,NATWEST CARD CENTRE,01/01/2024 00:00,28/01/2024 00:00,P10-2024
R&B,DEMOCRATIC REPRESENTATION & MA,SUPPLIES AND SERVICES,UNRECONCILED COMPANY CARD EXP,4880,S BERTSCHI  - JANUARY 2024 CREDIT CARD STATEMENT,08/01/2024 00:00,281223,403.56,NA0007,NATWEST CARD CENTRE,01/01/2024 00:00,28/01/2024 00:00,P10-2024
R&B,FINANCE & RESOURCES MANAGEMENT,SUPPLIES AND SERVICES,UNRECONCILED COMPANY CARD EXP,4880,L READ  - JANUARY 2024 CREDIT CARD STATEMENT,08/01/2024 00:00,281223,645,NA0007,NATWEST CARD CENTRE,01/01/2024 00:00,28/01/2024 00:00,P10-2024
R&B,INFORMATION TECHNOLOGY,SUPPLIES AND SERVICES,UNRECONCILED COMPANY CARD EXP,4880,S CLARK  - JANUARY 2024 CREDIT CARD STATEMENT,08/01/2024 00:00,281223,12.99,NA0007,NATWEST CARD CENTRE,01/01/2024 00:00,28/01/2024 00:00,P10-2024
R&B,INFORMATION TECHNOLOGY,SUPPLIES AND SERVICES,UNRECONCILED COMPANY CARD EXP,4880,L BLUNDELL  - JANUARY 2024 CREDIT CARD STATEMENT,08/01/2024 00:00,281223,479.98,NA0007,NATWEST CARD CENTRE,01/01/2024 00:00,28/01/2024 00:00,P10-2024
,LEE VALLEY MARINA SPRINGFIELD,SUPPLIES AND SERVICES,UNRECONCILED COMPANY CARD EXP,4880,T BEAN  - JANUARY 2024 CREDIT CARD STATEMENT,08/01/2024 00:00,281223,43.2,NA0007,NATWEST CARD CENTRE,01/01/2024 00:00,28/01/2024 00:00,P10-2024
,LEE VALLEY MARINA STANSTEAD,SUPPLIES AND SERVICES,UNRECONCILED COMPANY CARD EXP,4880,J MANT0N  - JANUARY 2024 CREDIT CARD STATEMENT,08/01/2024 00:00,281223,93.5,NA0007,NATWEST CARD CENTRE,01/01/2024 00:00,28/01/2024 00:00,P10-2024
P&V,LEE VALLEY FARM HOLYFIELDHALL,SUPPLIES AND SERVICES,UNRECONCILED COMPANY CARD EXP,4880,J PAINTER  - JANUARY 2024 CREDIT CARD STATEMENT,08/01/2024 00:00,281223,669.48,NA0007,NATWEST CARD CENTRE,01/01/2024 00:00,28/01/2024 00:00,P10-2024
,LEE VALLEY CARAVAN PARK,SUPPLIES AND SERVICES,UNRECONCILED COMPANY CARD EXP,4880,I RUSSELL  - JANUARY 2024 CREDIT CARD STATEMENT,08/01/2024 00:00,281223,1611.06,NA0007,NATWEST CARD CENTRE,01/01/2024 00:00,28/01/2024 00:00,P10-2024
P&V,BIODIVERSITY ACTION PLAN,SUPPLIES AND SERVICES,UNRECONCILED COMPANY CARD EXP,4880,C PATRICK  - JANUARY 2024 CREDIT CARD STATEMENT,08/01/2024 00:00,281223,173.48,NA0007,NATWEST CARD CENTRE,01/01/2024 00:00,28/01/2024 00:00,P10-2024
P&V,OPERATIONAL MANAGEMENT (L&E),SUPPLIES AND SERVICES,UNRECONCILED COMPANY CARD EXP,4880,J HETHERINGTON  - JANUARY 2024 CREDIT CARD STATEMENT,08/01/2024 00:00,281223,263.53,NA0007,NATWEST CARD CENTRE,01/01/2024 00:00,28/01/2024 00:00,P10-2024
P&V,SPORT AND LEISURE,SUPPLIES AND SERVICES,UNRECONCILED COMPANY CARD EXP,4880,A SACKETT  - JANUARY 2024 CREDIT CARD STATEMENT,08/01/2024 00:00,281223,118.59,NA0007,NATWEST CARD CENTRE,01/01/2024 00:00,28/01/2024 00:00,P10-2024
P&V,EVENTS MANAGEMENT (PR),SUPPLIES AND SERVICES,UNRECONCILED COMPANY CARD EXP,4880,S STONE  - JANUARY 2024 CREDIT CARD STATEMENT,08/01/2024 00:00,281223,-2010,NA0007,NATWEST CARD CENTRE,01/01/2024 00:00,28/01/2024 00:00,P10-2024
,LV LEISURE CENTRE CAMPSITE,SUPPLIES AND SERVICES,UNRECONCILED COMPANY CARD EXP,4880,L SMITH  - JANUARY 2024 CREDIT CARD STATEMENT,08/01/2024 00:00,281223,507.08,NA0007,NATWEST CARD CENTRE,01/01/2024 00:00,28/01/2024 00:00,P10-2024
CEO,COMMERCIAL ACCOMMODATION,SUPPLIES AND SERVICES,OTHER EXPENSES,4899,P121556-SERVICE-Land Registry Fees,28/01/2024 00:00,281903,33,HM0032,HM LAND REGISTRY,01/01/2024 00:00,28/01/2024 00:00,P10-2024
CEO,LEGAL SERVICES,SUPPLIES AND SERVICES,OTHER EXPENSES,4899,V888/2A-requested by R Mistry,15/01/2024 00:00,281527,2.5,DV0327,"DVRE TEAM, DVLA SWANSEA",01/01/2024 00:00,28/01/2024 00:00,P10-2024
CEO,MAJOR EVENTS,SUPPLIES AND SERVICES,OTHER EXPENSES,4899,P124666-SERVICE-TCL 2023 damages,22/01/2024 00:00,281739,550,GR0097,GREENWICH LEISURE LTD,01/01/2024 00:00,28/01/2024 00:00,P10-2024
P&V,LEE VALLEY FARM HOLYFIELDHALL,SUPPLIES AND SERVICES,OTHER EXPENSES,4899,P124509-SERVICE-WWC - Disconnect portacabin,22/01/2024 00:00,280817,250,BR0018,BRADSHAW ELECTRICAL LIMITED,01/01/2024 00:00,28/01/2024 00:00,P10-2024
P&V,LEE VALLEY FARM HOLYFIELDHALL,SUPPLIES AND SERVICES,OTHER EXPENSES,4899,P124547-SERVICE-Emergency Lighting & PAT,08/01/2024 00:00,281244,651,BR0018,BRADSHAW ELECTRICAL LIMITED,01/01/2024 00:00,28/01/2024 00:00,P10-2024
P&V,LEE VALLEY FARM HOLYFIELDHALL,SUPPLIES AND SERVICES,OTHER EXPENSES,4899,P124548-SERVICE-Portacabin Rewiring,08/01/2024 00:00,281269,380,BR0018,BRADSHAW ELECTRICAL LIMITED,01/01/2024 00:00,28/01/2024 00:00,P10-2024
P&V,LEE VALLEY FARM HOLYFIELDHALL,SUPPLIES AND SERVICES,OTHER EXPENSES,4899,P124549-SERVICE-Windbreaks,09/01/2024 00:00,281278,464,SI0695,SILOSTOP AGRI LTD,01/01/2024 00:00,28/01/2024 00:00,P10-2024
P&V,LEE VALLEY FARM HOLYFIELDHALL,SUPPLIES AND SERVICES,OTHER EXPENSES,4899,P124755-SERVICE-Engineer to Attend Site and Service Fire Exti,28/01/2024 00:00,282015,531.82,TJ0009,T.J.FIRE & SECURITY,01/01/2024 00:00,28/01/2024 00:00,P10-2024
,LEE VALLEY CAMPSITE,SUPPLIES AND SERVICES,OTHER EXPENSES,4899,HH45 VERMIN DAMAGE PAYMENT,09/01/2024 00:00,281028,160.2,30249,MISS JULIE DISBREY,01/01/2024 00:00,28/01/2024 00:00,P10-2024
P&V,MYDDELTON HOUSE GARDENS,SUPPLIES AND SERVICES,OTHER EXPENSES,4899,TESCO-CHOC YULE LOG,15/01/2024 00:00,281417,8.33,FI0001,DIRECTOR OF FINANCE - CASH,01/01/2024 00:00,28/01/2024 00:00,P10-2024
P&V,MYDDELTON HOUSE GARDENS,SUPPLIES AND SERVICES,OTHER EXPENSES,4899,TESCO-DAIRY/CHOC DRINKS),15/01/2024 00:00,281417,7.55,FI0001,DIRECTOR OF FINANCE - CASH,01/01/2024 00:00,28/01/2024 00:00,P10-2024
P&V,MYDDELTON HOUSE GARDENS,SUPPLIES AND SERVICES,OTHER EXPENSES,4899,TESCO (MINCE PIES/MILK),15/01/2024 00:00,281417,13.75,FI0001,DIRECTOR OF FINANCE - CASH,01/01/2024 00:00,28/01/2024 00:00,P10-2024
P&V,COMMUNITY ACCESS FUND,SUPPLIES AND SERVICES,OTHER EXPENSES,4899,P124686-SERVICE-Q3 CAF WWC,28/01/2024 00:00,280357,640,GR0097,GREENWICH LEISURE LTD,01/01/2024 00:00,28/01/2024 00:00,P10-2024
P&V,COMMUNITY ACCESS FUND,SUPPLIES AND SERVICES,OTHER EXPENSES,4899,P124585-SERVICE-Q3 Ice centre community committment,16/01/2024 00:00,281509,3788,GR0097,GREENWICH LEISURE LTD,01/01/2024 00:00,28/01/2024 00:00,P10-2024
P&V,COMMUNITY ACCESS FUND,SUPPLIES AND SERVICES,OTHER EXPENSES,4899,P124674-SERVICE-Ice Centre CAF Q3,22/01/2024 00:00,281570,190,GR0097,GREENWICH LEISURE LTD,01/01/2024 00:00,28/01/2024 00:00,P10-2024
P&V,COMMUNITY ACCESS FUND,SUPPLIES AND SERVICES,OTHER EXPENSES,4899,P124601-SERVICE-Q� CAF Velo,22/01/2024 00:00,281669,640,GR0097,GREENWICH LEISURE LTD,01/01/2024 00:00,28/01/2024 00:00,P10-2024
P&V,SPORT AND LEISURE,SUPPLIES AND SERVICES,OTHER EXPENSES,4899,P124537-SERVICE-Logit popper wallets A4,10/01/2024 00:00,281277,6.46,AM0406,AMAZON PAYMENTS UK LIMITED,01/01/2024 00:00,28/01/2024 00:00,P10-2024
P&V,SPORT AND LEISURE,SUPPLIES AND SERVICES,OTHER EXPENSES,4899,P124537-SERVICE-White tack,10/01/2024 00:00,281315,4.16,AM0406,AMAZON PAYMENTS UK LIMITED,01/01/2024 00:00,28/01/2024 00:00,P10-2024
P&V,SPORT AND LEISURE,SUPPLIES AND SERVICES,OTHER EXPENSES,4899,"P124537-SERVICE-Iphone 11 case, screen protector and earphone",10/01/2024 00:00,281316,3.24,AM0406,AMAZON PAYMENTS UK LIMITED,01/01/2024 00:00,28/01/2024 00:00,P10-2024
P&V,SPORT AND LEISURE,SUPPLIES AND SERVICES,OTHER EXPENSES,4899,"P124537-SERVICE-Iphone 11 case, screen protector and earphone",10/01/2024 00:00,281317,8.99,AM0406,AMAZON PAYMENTS UK LIMITED,01/01/2024 00:00,28/01/2024 00:00,P10-2024
P&V,SPORT AND LEISURE,SUPPLIES AND SERVICES,OTHER EXPENSES,4899,"P124537-SERVICE-Iphone 11 case, screen protector and earphone",10/01/2024 00:00,281318,6.66,AM0406,AMAZON PAYMENTS UK LIMITED,01/01/2024 00:00,28/01/2024 00:00,P10-2024
,LV LEISURE CENTRE CAMPSITE,SUPPLIES AND SERVICES,OTHER EXPENSES,4899,P124414-SERVICE-LPG unit signs,10/01/2024 00:00,281299,45,SI0434,SIGNS & IMAGING ( SOUTHEAST) LIMITED,01/01/2024 00:00,28/01/2024 00:00,P10-2024
,LV LEISURE CENTRE GOLF COURSE,SUPPLIES AND SERVICES,OTHER EXPENSES,4899,P124583-SERVICE-Emergency Horn Hand Pump,15/01/2024 00:00,280524,14.58,SC0057,SCREWFIX DIRECT LTD,01/01/2024 00:00,28/01/2024 00:00,P10-2024
P&V,AWARDS AND ACCREDITATIONS,SUPPLIES AND SERVICES,OTHER EXPENSES,4899,P124507-SERVICE-Q3 Venue quality audits,08/01/2024 00:00,280741,1830,RI0053,RIGHT DIRECTIONS (MANAGEMENT) LTD,01/01/2024 00:00,28/01/2024 00:00,P10-2024
P&V,S106 PROJECTS,S106 EXPENDITURE (REVENUE),S106 EXPENDITURE (REVENUE),4985,P124080-SERVICE-To Lay 100m of Hedgeline at Hall Marsh Scrape,24/01/2024 00:00,281818,1216.5,RO0359,ROBERT COLE T/A SEPTIMUS WORKS,01/01/2024 00:00,28/01/2024 00:00,P10-2024
P&V,"ASSET PROTECTION, MAINT, DEVEL",CAPITAL EXPENDITURE,CAPITAL EXPENDITURE,4990,P124528-SERVICE-Holyfield farm Lighting,28/01/2024 00:00,281069,1632,BR0018,BRADSHAW ELECTRICAL LIMITED,01/01/2024 00:00,28/01/2024 00:00,P10-2024
P&V,"ASSET PROTECTION, MAINT, DEVEL",CAPITAL EXPENDITURE,CAPITAL EXPENDITURE,4990,P124591-SERVICE-CCTV rental equipment VeloPark,10/01/2024 00:00,281202,13084.32,ST0642,SECURITAS TECHNOLOGY LIMITED(frmly Stanley S),01/01/2024 00:00,28/01/2024 00:00,P10-2024
P&V,"ASSET PROTECTION, MAINT, DEVEL",CAPITAL EXPENDITURE,CAPITAL EXPENDITURE,4990,P123567-SERVICE-Additional Charges,16/01/2024 00:00,281288,1033,AP0492,APSE,01/01/2024 00:00,28/01/2024 00:00,P10-2024
P&V,"ASSET PROTECTION, MAINT, DEVEL",CAPITAL EXPENDITURE,CAPITAL EXPENDITURE,4990,P124143-SERVICE-LVAC - Combination Vacuum Tanker,15/01/2024 00:00,281386,1882,CO0550,CONVERT WATER LTD,01/01/2024 00:00,28/01/2024 00:00,P10-2024
P&V,"ASSET PROTECTION, MAINT, DEVEL",CAPITAL EXPENDITURE,CAPITAL EXPENDITURE,4990,P124277-SERVICE-Springfield Marina � Ranger Containers,22/01/2024 00:00,281625,900,MO0041,CAPSER,01/01/2024 00:00,28/01/2024 00:00,P10-2024
P&V,"ASSET PROTECTION, MAINT, DEVEL",CAPITAL EXPENDITURE,CAPITAL EXPENDITURE,4990,Springfield-ground preparation,22/01/2024 00:00,281625,-900,MO0041,CAPSER,01/01/2024 00:00,28/01/2024 00:00,P10-2024
P&V,"ASSET PROTECTION, MAINT, DEVEL",CAPITAL EXPENDITURE,CAPITAL EXPENDITURE,4990,Springfield-ground preparation,22/01/2024 00:00,281625,600,MO0041,CAPSER,01/01/2024 00:00,28/01/2024 00:00,P10-2024
P&V,"ASSET PROTECTION, MAINT, DEVEL",CAPITAL EXPENDITURE,CAPITAL EXPENDITURE,4990,Springfield-ground preparation,22/01/2024 00:00,281625,300,MO0041,CAPSER,01/01/2024 00:00,28/01/2024 00:00,P10-2024
P&V,"ASSET PROTECTION, MAINT, DEVEL",CAPITAL EXPENDITURE,CAPITAL EXPENDITURE,4990,"P124193-SERVICE-Edmonton Campsite- Small facilities block, sh",22/01/2024 00:00,281664,410,SO0400,SOUTHERN GREEN SERVICES LIMITED,01/01/2024 00:00,28/01/2024 00:00,P10-2024
P&V,"ASSET PROTECTION, MAINT, DEVEL",CAPITAL EXPENDITURE,CAPITAL EXPENDITURE,4990,P124191-SERVICE-Edmonton Campsite- Staff office hot water,22/01/2024 00:00,281666,725,SO0400,SOUTHERN GREEN SERVICES LIMITED,01/01/2024 00:00,28/01/2024 00:00,P10-2024
P&V,"ASSET PROTECTION, MAINT, DEVEL",CAPITAL EXPENDITURE,CAPITAL EXPENDITURE,4990,P124069-SERVICE--CCTV Upgrade Waterworks works labour & mater,22/01/2024 00:00,281747,2400,DE0318,DESIGN AND MANAGEMENT SYSTEMS LTD,01/01/2024 00:00,28/01/2024 00:00,P10-2024
P&V,"ASSET PROTECTION, MAINT, DEVEL",CAPITAL EXPENDITURE,CAPITAL EXPENDITURE,4990,P124651-SERVICE-Dobbs Weir campsite,28/01/2024 00:00,281803,870,SO0400,SOUTHERN GREEN SERVICES LIMITED,01/01/2024 00:00,28/01/2024 00:00,P10-2024
P&V,"ASSET PROTECTION, MAINT, DEVEL",CAPITAL EXPENDITURE,CAPITAL EXPENDITURE,4990,P124556-SERVICE-LV Farm Removal and disposal of unsafe,24/01/2024 00:00,281834,850,LT0482,LTM CONSTRUCTION LTD,01/01/2024 00:00,28/01/2024 00:00,P10-2024
P&V,"ASSET PROTECTION, MAINT, DEVEL",CAPITAL EXPENDITURE,CAPITAL EXPENDITURE,4990,P124196-SERVICE-Asbestos  Reinspections at,28/01/2024 00:00,281912,185,LI0432,LIFE ENVIRONMENTAL SERVICES LTD,01/01/2024 00:00,28/01/2024 00:00,P10-2024
P&V,"ASSET PROTECTION, MAINT, DEVEL",CAPITAL EXPENDITURE,CAPITAL EXPENDITURE,4990,P123829-SERVICE-To attend site with two men and a tower scaff,28/01/2024 00:00,281935,1500,RE0094,REACT 2 IT (BUILDING & REFURBISHMENT) LTD,01/01/2024 00:00,28/01/2024 00:00,P10-2024
P&V,"ASSET PROTECTION, MAINT, DEVEL",CAPITAL EXPENDITURE,CAPITAL EXPENDITURE,4990,P124650-SERVICE-LVAC - float switch and labour,28/01/2024 00:00,281941,575,CO0550,CONVERT WATER LTD,01/01/2024 00:00,28/01/2024 00:00,P10-2024
P&V,"ASSET PROTECTION, MAINT, DEVEL",CAPITAL EXPENDITURE,CAPITAL EXPENDITURE,4990,P124415-SERVICE-Springfield Marina - EV charge point and anci,28/01/2024 00:00,281987,4875,BR0018,BRADSHAW ELECTRICAL LIMITED,01/01/2024 00:00,28/01/2024 00:00,P10-2024
R&B,INFORMATION TECHNOLOGY,CAPITAL EXPENDITURE,CAPITAL EXPENDITURE,4990,P122945-SERVICE-OptiPlex All-in-One (7410 35-Watt CPU),15/01/2024 00:00,281544,1240,DE0011,DELL CORPORATION LIMITED,01/01/2024 00:00,28/01/2024 00:00,P10-2024
R&B,INFORMATION TECHNOLOGY,CAPITAL EXPENDITURE,CAPITAL EXPENDITURE,4990,P122945-SERVICE-XPS 15 (9530),15/01/2024 00:00,281545,1985,DE0011,DELL CORPORATION LIMITED,01/01/2024 00:00,28/01/2024 00:00,P10-2024
R&B,INFORMATION TECHNOLOGY,CAPITAL EXPENDITURE,CAPITAL EXPENDITURE,4990,P124493-SERVICE-Annual Sub 2024,22/01/2024 00:00,281777,4500,AC0443,ACTIVEXCHANGE LTD,01/01/2024 00:00,28/01/2024 00:00,P10-2024
R&B,INFORMATION TECHNOLOGY,CAPITAL EXPENDITURE,CAPITAL EXPENDITURE,4990,P124493-SERVICE-Data Intelligence Agreement 2024,22/01/2024 00:00,281777,1500,AC0443,ACTIVEXCHANGE LTD,01/01/2024 00:00,28/01/2024 00:00,P10-2024
P&V,NORTH AREA RANGERS,CAPITAL EXPENDITURE,CAPITAL EXPENDITURE,4990,P124421-SERVICE-Statutory Record Drawings,10/01/2024 00:00,280822,250,SU0628,SURVEY SOLUTIONS,01/01/2024 00:00,28/01/2024 00:00,P10-2024
P&V,NORTH AREA RANGERS,CAPITAL EXPENDITURE,CAPITAL EXPENDITURE,4990,"P123157-SERVICE-St Pauls Field Badger Survey, NE Licence Appl",08/01/2024 00:00,281118,400,MI0489,MIDDLEMARCH ENVIRONMENTAL LTD,01/01/2024 00:00,28/01/2024 00:00,P10-2024
P&V,NORTH AREA RANGERS,CAPITAL EXPENDITURE,CAPITAL EXPENDITURE,4990,"P123157-SERVICE-St Pauls Field Badger Survey, NE Licence Appl",08/01/2024 00:00,281119,-400,MI0489,MIDDLEMARCH ENVIRONMENTAL LTD,01/01/2024 00:00,28/01/2024 00:00,P10-2024
P&V,NORTH AREA RANGERS,CAPITAL EXPENDITURE,CAPITAL EXPENDITURE,4990,P123464-SERVICE-Architect Brief for St Paul�s Filed Footpath,09/01/2024 00:00,281306,600,LA0471,LANPRO SERVICES LIMITED,01/01/2024 00:00,28/01/2024 00:00,P10-2024
P&V,NORTH AREA RANGERS,CAPITAL EXPENDITURE,CAPITAL EXPENDITURE,4990,P124711-SERVICE-St Paul's Field Walkover Survey,22/01/2024 00:00,281776,385,WR0369,WESSON ENVIRONMENTAL LTD,01/01/2024 00:00,28/01/2024 00:00,P10-2024
P&V,NORTH AREA RANGERS,CAPITAL EXPENDITURE,CAPITAL EXPENDITURE,4990,P124711-SERVICE-St Paul's Field Desktop Study,22/01/2024 00:00,281776,600,WR0369,WESSON ENVIRONMENTAL LTD,01/01/2024 00:00,28/01/2024 00:00,P10-2024
P&V,NORTH AREA RANGERS,CAPITAL EXPENDITURE,CAPITAL EXPENDITURE,4990,P124412-SERVICE-Tree Works at St Paul's Field,28/01/2024 00:00,281814,14950,VE0004,PRINCIPAL TREES LTD,01/01/2024 00:00,28/01/2024 00:00,P10-2024
P&V,SOUTH AREA RANGERS,CAPITAL EXPENDITURE,CAPITAL EXPENDITURE,4990,P123463-SERVICE-Consultation Brief for North Wall Road Develo,28/01/2024 00:00,282000,3570,LA0212,LAND USE CONSULTANTS LIMITED,01/01/2024 00:00,28/01/2024 00:00,P10-2024
P&V,BIODIVERSITY ACTION PLAN,CAPITAL EXPENDITURE,CAPITAL EXPENDITURE,4990,P121919-SERVICE-Invertebrate Survey on Rammey Marsh (Areas 1,09/01/2024 00:00,281289,5250,HA0054,PETER HARVEY,01/01/2024 00:00,28/01/2024 00:00,P10-2024
P&V,BIODIVERSITY ACTION PLAN,CAPITAL EXPENDITURE,CAPITAL EXPENDITURE,4990,P121920-SERVICE-Invertebrate Survey on Gunpowder Park (Areas,09/01/2024 00:00,281290,5250,HA0054,PETER HARVEY,01/01/2024 00:00,28/01/2024 00:00,P10-2024
,LEE VALLEY ICE CENTRE,CAPITAL EXPENDITURE,CAPITAL EXPENDITURE,4990,P124517-SERVICE-Agrement number 23755,08/01/2024 00:00,280062,12409.49,BR0036,CANAL & RIVER TRUST,01/01/2024 00:00,28/01/2024 00:00,P10-2024
,LEE VALLEY ICE CENTRE,CAPITAL EXPENDITURE,CAPITAL EXPENDITURE,4990,P124381-SERVICE-LVIC Additional bench,11/01/2024 00:00,280994,2796.22,ST0487,STREETLIFE BV,01/01/2024 00:00,28/01/2024 00:00,P10-2024
,LEE VALLEY ICE CENTRE,CAPITAL EXPENDITURE,CAPITAL EXPENDITURE,4990,P123552-SERVICE-Ice centre planting as per schedule provided,10/01/2024 00:00,281200,4110.84,GL0214,GLENDALE GROUNDS MANAGEMENT LIMITED,01/01/2024 00:00,28/01/2024 00:00,P10-2024
,LEE VALLEY ICE CENTRE,CAPITAL EXPENDITURE,CAPITAL EXPENDITURE,4990,P124465-SERVICE-To attend site to install new GSM intercom sy,15/01/2024 00:00,281333,1144.2,DE0013,DENNIS SECURITY CENTRE,01/01/2024 00:00,28/01/2024 00:00,P10-2024
,LEE VALLEY ICE CENTRE,CAPITAL EXPENDITURE,CAPITAL EXPENDITURE,4990,P124376-SERVICE-Ref defect 6.12 leaks to GF corridor,10/01/2024 00:00,281374,685,RE0094,REACT 2 IT (BUILDING & REFURBISHMENT) LTD,01/01/2024 00:00,28/01/2024 00:00,P10-2024
,LEE VALLEY ICE CENTRE,CAPITAL EXPENDITURE,CAPITAL EXPENDITURE,4990,P124605-SERVICE-Project management December 2023,16/01/2024 00:00,281510,16990.61,WR0199,WRENBRIDGE LAND LTD,01/01/2024 00:00,28/01/2024 00:00,P10-2024
CEO,PR/COMMUNICATIONS,THIRD PARTY PAYMENTS,CONSULTANTS (GENERAL),5110,P121681-SERVICE-Communications Support - LVRPA Corporate,15/01/2024 00:00,281291,3000,LO0024,LONDON COMMUNICATIONS AGENCY LTD,01/01/2024 00:00,28/01/2024 00:00,P10-2024
CEO,PROPERTY,THIRD PARTY PAYMENTS,CONSULTANTS (GENERAL),5110,P124758-SERVICE-WWC Item 4 on Agreed Scope of Work,28/01/2024 00:00,281560,5000,MO0036,MONTAGU EVANS LLP,01/01/2024 00:00,28/01/2024 00:00,P10-2024
P&V,"ASSET PROTECTION, MAINT, DEVEL",THIRD PARTY PAYMENTS,CONSULTANTS (GENERAL),5110,P123567-SERVICE-Decarbonisation of WWC,16/01/2024 00:00,281288,10450,AP0492,APSE,01/01/2024 00:00,28/01/2024 00:00,P10-2024
P&V,"ASSET PROTECTION, MAINT, DEVEL",THIRD PARTY PAYMENTS,CONSULTANTS (GENERAL),5110,P124655-SERVICE-Middlesex Filter beds/sluice design job no 19,28/01/2024 00:00,281551,2150,PE0379,PERFECT CIRCLE JV LTD,01/01/2024 00:00,28/01/2024 00:00,P10-2024
P&V,"ASSET PROTECTION, MAINT, DEVEL",THIRD PARTY PAYMENTS,CONSULTANTS (GENERAL),5110,P124675-SERVICE-Velodrome External Works December 2023,22/01/2024 00:00,281569,18855.2,EX0288,USEFUL SIMPLE GROUP LTD,01/01/2024 00:00,28/01/2024 00:00,P10-2024
R&B,FINANCE & RESOURCES MANAGEMENT,THIRD PARTY PAYMENTS,CONSULTANTS (GENERAL),5110,P124656-SERVICE-Helpline fee for period 1/1/24 - 31/3/24,16/01/2024 00:00,281528,800,KP0010,KPMG TAX ADVISERS,01/01/2024 00:00,28/01/2024 00:00,P10-2024
R&B,INTERNAL AUDIT/HEALTH & SAFETY,THIRD PARTY PAYMENTS,CONSULTANTS (GENERAL),5110,P124511-SERVICE-2023 - 24 Audit plan,08/01/2024 00:00,280775,3320,CR0543,CROYDON CORPORATE DEBT RECOVERY SERVICE,01/01/2024 00:00,28/01/2024 00:00,P10-2024
P&V,NORTH AREA RANGERS,THIRD PARTY PAYMENTS,CONSULTANTS (GENERAL),5110,P123528-SERVICE-Carry out visual tree assessment of trees aro,15/01/2024 00:00,281412,840,VE0004,PRINCIPAL TREES LTD,01/01/2024 00:00,28/01/2024 00:00,P10-2024
CEO,PROPERTY,THIRD PARTY PAYMENTS,CONSULTANTS (LEGAL SERVICES),5120,P124408-SERVICE-Professional Fees for Sale of Hawe Lane,10/01/2024 00:00,281085,300,WA0009,PAUL WALLACE PROFESSIONAL,01/01/2024 00:00,28/01/2024 00:00,P10-2024
CEO,PROPERTY,THIRD PARTY PAYMENTS,CONSULTANTS (LEGAL SERVICES),5120,P124480-SERVICE-Rammey Marsh Project Work - Attending Project,28/01/2024 00:00,281559,4000,MO0036,MONTAGU EVANS LLP,01/01/2024 00:00,28/01/2024 00:00,P10-2024
R&B,INTERNAL AUDIT/HEALTH & SAFETY,THIRD PARTY PAYMENTS,CONSULTANTS (HEALTH & SAFETY),5123,P121430-SERVICE-Annual H&S Contract November - March 2024,22/01/2024 00:00,281756,11673.33,RI0053,RIGHT DIRECTIONS (MANAGEMENT) LTD,01/01/2024 00:00,28/01/2024 00:00,P10-2024
P&V,ACTIVE COMMUNTIES PROJECTS,THIRD PARTY PAYMENTS,ICE TRANSITION FUND (GRANTS),5144,P124059-SERVICE-Lee Valley ice Skating Club,16/01/2024 00:00,281572,600,GR0097,GREENWICH LEISURE LTD,01/01/2024 00:00,28/01/2024 00:00,P10-2024
P&V,ACTIVE COMMUNTIES PROJECTS,THIRD PARTY PAYMENTS,ICE TRANSITION FUND (GRANTS),5144,P124059-SERVICE-Lee Valley ice Skating Club,16/01/2024 00:00,281573,1560,GR0097,GREENWICH LEISURE LTD,01/01/2024 00:00,28/01/2024 00:00,P10-2024
P&V,ACTIVE COMMUNTIES PROJECTS,THIRD PARTY PAYMENTS,ICE TRANSITION FUND (GRANTS),5144,P124059-SERVICE-Lee Valley ice Skating Club,16/01/2024 00:00,281574,1410,GR0097,GREENWICH LEISURE LTD,01/01/2024 00:00,28/01/2024 00:00,P10-2024
P&V,ACTIVE COMMUNTIES PROJECTS,THIRD PARTY PAYMENTS,ICE TRANSITION FUND (GRANTS),5144,P124059-SERVICE-Lee Valley ice Skating Club,16/01/2024 00:00,281575,1380,GR0097,GREENWICH LEISURE LTD,01/01/2024 00:00,28/01/2024 00:00,P10-2024
P&V,ACTIVE COMMUNTIES PROJECTS,THIRD PARTY PAYMENTS,ICE TRANSITION FUND (GRANTS),5144,P124059-SERVICE-Lee Valley ice Skating Club,16/01/2024 00:00,281576,1500,GR0097,GREENWICH LEISURE LTD,01/01/2024 00:00,28/01/2024 00:00,P10-2024
P&V,ACTIVE COMMUNTIES PROJECTS,THIRD PARTY PAYMENTS,ICE TRANSITION FUND (GRANTS),5144,P123843-SERVICE-Lee Valley ice Hockey Club June - Oct 2023,16/01/2024 00:00,281578,1140,GR0097,GREENWICH LEISURE LTD,01/01/2024 00:00,28/01/2024 00:00,P10-2024
R&B,BALANCE SHEET (AUTHORITY),CREDITORS,EMPLOYEES INCOME TAX,6701,PAYE,15/01/2024 00:00,281400,63345.19,HM0368,HMRC,01/01/2024 00:00,28/01/2024 00:00,P10-2024
R&B,BALANCE SHEET (AUTHORITY),CREDITORS,EMPLOYEES NATIONAL INSURANCE,6702,PAYE,15/01/2024 00:00,281400,24384.4,HM0368,HMRC,01/01/2024 00:00,28/01/2024 00:00,P10-2024
R&B,BALANCE SHEET (AUTHORITY),CREDITORS,EMPLOYERS NATIONAL INSURANCE,6704,PAYE,15/01/2024 00:00,281400,45408.44,HM0368,HMRC,01/01/2024 00:00,28/01/2024 00:00,P10-2024
R&B,BALANCE SHEET (AUTHORITY),CREDITORS,EMPLOYEES PENSION LGPS,6706,AVC CONTRIBUTIONS,15/01/2024 00:00,281398,200,LO0455,LOCAL GOVERNMENT AVC DEPARTMENT,01/01/2024 00:00,28/01/2024 00:00,P10-2024
R&B,BALANCE SHEET (AUTHORITY),CREDITORS,EMPLOYEES PENSION LGPS,6706,EMPLOYEE CONTRIBUTIONS,15/01/2024 00:00,281399,29769.56,LO0334,LONDON PENSION FUND OPERATIONAL ACCOUNT,01/01/2024 00:00,28/01/2024 00:00,P10-2024
R&B,BALANCE SHEET (AUTHORITY),CREDITORS,EMPLOYERS PENSION LGPS,6707,EMPLOYER CONTRIBUTIONS,15/01/2024 00:00,281399,55602.64,LO0334,LONDON PENSION FUND OPERATIONAL ACCOUNT,01/01/2024 00:00,28/01/2024 00:00,P10-2024
R&B,BALANCE SHEET (AUTHORITY),CREDITORS,EMPLOYEES STUDENT LOANS,6709,PAYE,15/01/2024 00:00,281400,1480,HM0368,HMRC,01/01/2024 00:00,28/01/2024 00:00,P10-2024
R&B,BALANCE SHEET (AUTHORITY),CREDITORS,EMPLOYEES AEO/DEO,6710,ATTACHMENT OF EARNINGS,15/01/2024 00:00,281402,368.91,DE0325,DEPARTMENT FOR WORKS AND PENSIONS,01/01/2024 00:00,28/01/2024 00:00,P10-2024
R&B,BALANCE SHEET (AUTHORITY),CREDITORS,EMPLOYEES UNION SUBSCRIPTIONS,6711,MEMBERSGIP FEES,15/01/2024 00:00,281403,67.5,UN0002,UNISON Greater London Region,01/01/2024 00:00,28/01/2024 00:00,P10-2024
R&B,BALANCE SHEET (AUTHORITY),CREDITORS,EMPLOYEES SMP/SSP,6712,PAYE,15/01/2024 00:00,281400,-2088.4,HM0368,HMRC,01/01/2024 00:00,28/01/2024 00:00,P10-2024
R&B,BALANCE SHEET (AUTHORITY),CREDITORS,CONSTRUCTION INDUSTRY SCHEME,6721,CAPSER,03/01/2024 00:00,281173,-741,MO0041,CAPSER,01/01/2024 00:00,28/01/2024 00:00,P10-2024
R&B,BALANCE SHEET (AUTHORITY),CREDITORS,CONSTRUCTION INDUSTRY SCHEME,6721,KENDALL & SONS LIMITED,10/01/2024 00:00,281461,-367,KE0023,KENDALL & SONS LIMITED,01/01/2024 00:00,28/01/2024 00:00,P10-2024
R&B,BALANCE SHEET (AUTHORITY),CREDITORS,CONSTRUCTION INDUSTRY SCHEME,6721,CAPSER,10/01/2024 00:00,281471,-400,MO0041,CAPSER,01/01/2024 00:00,28/01/2024 00:00,P10-2024
R&B,BALANCE SHEET (AUTHORITY),CREDITORS,CONSTRUCTION INDUSTRY SCHEME,6721,JOYCE 06/12/23-05/01/24,15/01/2024 00:00,281506,150,IN0016,INLAND REVENUE ONLY 948/L1005,01/01/2024 00:00,28/01/2024 00:00,P10-2024
R&B,BALANCE SHEET (AUTHORITY),CREDITORS,CONSTRUCTION INDUSTRY SCHEME,6721,KENDALLS 06/12/23-05/01/24,15/01/2024 00:00,281506,2210.4,IN0016,INLAND REVENUE ONLY 948/L1005,01/01/2024 00:00,28/01/2024 00:00,P10-2024
R&B,BALANCE SHEET (AUTHORITY),CREDITORS,CONSTRUCTION INDUSTRY SCHEME,6721,CASPER 06/12/23-05/01/24,15/01/2024 00:00,281506,1021,IN0016,INLAND REVENUE ONLY 948/L1005,01/01/2024 00:00,28/01/2024 00:00,P10-2024
R&B,BALANCE SHEET (AUTHORITY),CREDITORS,CONSTRUCTION INDUSTRY SCHEME,6721,R G JOYCE,17/01/2024 00:00,281704,-66,JO0019,R G JOYCE,01/01/2024 00:00,28/01/2024 00:00,P10-2024
R&B,BALANCE SHEET (AUTHORITY),CREDITORS,CONSTRUCTION INDUSTRY SCHEME,6721,CAPSER,17/01/2024 00:00,281714,-100,MO0041,CAPSER,01/01/2024 00:00,28/01/2024 00:00,P10-2024
R&B,BALANCE SHEET (AUTHORITY),CREDITORS,CONSTRUCTION INDUSTRY SCHEME,6721,CAPSER,24/01/2024 00:00,281880,-60,MO0041,CAPSER,01/01/2024 00:00,28/01/2024 00:00,P10-2024
R&B,BALANCE SHEET (AUTHORITY),CREDITORS,ADVANCED INCOME (LSC/GLL),6727,WWC-g/v sold prior to transfer,10/01/2024 00:00,281304,7155,GR0097,GREENWICH LEISURE LTD,01/01/2024 00:00,28/01/2024 00:00,P10-2024
R&B,BALANCE SHEET (AUTHORITY),CA SUSPENSE,RECEIPT/PAYMENT PSEUDO BANK AC,6884,HARLING SECURITY SOLUTIONS LTD,17/01/2024 00:00,281728,388.8,HA0466,HARLING SECURITY SOLUTIONS LTD,01/01/2024 00:00,28/01/2024 00:00,P10-2024
P&V,CAR PARK INCOME,INCOME,CAR PARKING INCOME,9730,P124533-SERVICE-Credit Call Recharge CMM - Dec 2023,08/01/2024 00:00,281086,3.78,PA0372,PARKINGEYE LIMITED,01/01/2024 00:00,28/01/2024 00:00,P10-2024
P&V,CAR PARK INCOME,INCOME,CAR PARKING INCOME,9730,P124533-SERVICE-Credit Call Recharge FG - Dec 2023,08/01/2024 00:00,281086,21.48,PA0372,PARKINGEYE LIMITED,01/01/2024 00:00,28/01/2024 00:00,P10-2024
P&V,CAR PARK INCOME,INCOME,CAR PARKING INCOME,9730,P124533-SERVICE-Credit Call Recharge OM&M - Dec 2023,08/01/2024 00:00,281086,0.12,PA0372,PARKINGEYE LIMITED,01/01/2024 00:00,28/01/2024 00:00,P10-2024
P&V,CAR PARK INCOME,INCOME,CAR PARKING INCOME,9730,P124533-SERVICE-Credit Call Recharge GPP - Dec 2023,08/01/2024 00:00,281086,38.16,PA0372,PARKINGEYE LIMITED,01/01/2024 00:00,28/01/2024 00:00,P10-2024
P&V,CAR PARK INCOME,INCOME,CAR PARKING INCOME,9730,P124533-SERVICE-Credit Call Recharge Pindar - Dec 2023,08/01/2024 00:00,281086,18.96,PA0372,PARKINGEYE LIMITED,01/01/2024 00:00,28/01/2024 00:00,P10-2024
P&V,CAR PARK INCOME,INCOME,CAR PARKING INCOME,9730,P124533-SERVICE-Credit Call Recharge CA110656 - Dec 2023,08/01/2024 00:00,281086,10.68,PA0372,PARKINGEYE LIMITED,01/01/2024 00:00,28/01/2024 00:00,P10-2024
P&V,CAR PARK INCOME,INCOME,CAR PARKING INCOME,9730,P124533-SERVICE-Credit Call Recharge WAG - Dec 2023,08/01/2024 00:00,281086,8.22,PA0372,PARKINGEYE LIMITED,01/01/2024 00:00,28/01/2024 00:00,P10-2024
P&V,CAR PARK INCOME,INCOME,CAR PARKING INCOME,9730,P124533-SERVICE-Paid Parking Tickets Used - Clayton- Dec 2023,08/01/2024 00:00,281208,0.15,PA0372,PARKINGEYE LIMITED,01/01/2024 00:00,28/01/2024 00:00,P10-2024
P&V,CAR PARK INCOME,INCOME,CAR PARKING INCOME,9730,P124533-SERVICE-Paid Parking Tickets Used - OM&M - Dec 2023,08/01/2024 00:00,281208,2.53,PA0372,PARKINGEYE LIMITED,01/01/2024 00:00,28/01/2024 00:00,P10-2024
P&V,CAR PARK INCOME,INCOME,CAR PARKING INCOME,9730,P124533-SERVICE-Paid Parking Tickets Used - GPP - Dec 2023,08/01/2024 00:00,281208,3.94,PA0372,PARKINGEYE LIMITED,01/01/2024 00:00,28/01/2024 00:00,P10-2024
P&V,CAR PARK INCOME,INCOME,CAR PARKING INCOME,9730,P124533-SERVICE-Paid Parking Tickets Used - WAG - Dec 2023,08/01/2024 00:00,281208,0.88,PA0372,PARKINGEYE LIMITED,01/01/2024 00:00,28/01/2024 00:00,P10-2024
P&V,CAR PARK INCOME,INCOME,CAR PARKING INCOME,9730,P124533-SERVICE-Paid Parking Tickets Used - CMM - Dec 2023,08/01/2024 00:00,281208,0.38,PA0372,PARKINGEYE LIMITED,01/01/2024 00:00,28/01/2024 00:00,P10-2024
P&V,CAR PARK INCOME,INCOME,CAR PARKING INCOME,9730,P124533-SERVICE-Paid Parking Tickets Used - Pindar - Dec 2023,08/01/2024 00:00,281208,2.02,PA0372,PARKINGEYE LIMITED,01/01/2024 00:00,28/01/2024 00:00,P10-2024
P&V,CAR PARK INCOME,INCOME,CAR PARKING INCOME,9730,P124533-SERVICE-Paid Parking Tickets Used - FG - Dec 2023,08/01/2024 00:00,281208,2.2,PA0372,PARKINGEYE LIMITED,01/01/2024 00:00,28/01/2024 00:00,P10-2024
P&V,CAR PARK INCOME,INCOME,CAR PARKING INCOME,9730,Various-Pay by Phone-Dec23,08/01/2024 00:00,281235,251.57,PA0372,PARKINGEYE LIMITED,01/01/2024 00:00,28/01/2024 00:00,P10-2024
P&V,CAR PARK INCOME,INCOME,CAR PARKING INCOME,9730,Various-Pay by Phone-Dec23,08/01/2024 00:00,281235,-4401.61,PA0372,PARKINGEYE LIMITED,01/01/2024 00:00,28/01/2024 00:00,P10-2024
P&V,CAR PARK INCOME,INCOME,CAR PARKING INCOME,9730,Fishers Green-parking Charges-Dec23,08/01/2024 00:00,281236,-32,PA0372,PARKINGEYE LIMITED,01/01/2024 00:00,28/01/2024 00:00,P10-2024
P&V,CAR PARK INCOME,INCOME,CAR PARKING INCOME,9730,Waltham Abbey-parking chges- Dec23,08/01/2024 00:00,281237,-102.77,PA0372,PARKINGEYE LIMITED,01/01/2024 00:00,28/01/2024 00:00,P10-2024
P&V,CAR PARK INCOME,INCOME,CAR PARKING INCOME,9730,Brox Old Mill-parking ches Dec23,08/01/2024 00:00,281238,-35.5,PA0372,PARKINGEYE LIMITED,01/01/2024 00:00,28/01/2024 00:00,P10-2024
P&V,CAR PARK INCOME,INCOME,CAR PARKING INCOME,9730,Clayton Hill-parking chges- Dec23,08/01/2024 00:00,281239,-15,PA0372,PARKINGEYE LIMITED,01/01/2024 00:00,28/01/2024 00:00,P10-2024
P&V,CAR PARK INCOME,INCOME,CAR PARKING INCOME,9730,Cornmill Meadows-parking chg-Dec23,08/01/2024 00:00,281240,-12,PA0372,PARKINGEYE LIMITED,01/01/2024 00:00,28/01/2024 00:00,P10-2024
P&V,CAR PARK INCOME,INCOME,CAR PARKING INCOME,9730,Gunpowder-parking chges-Dec23,08/01/2024 00:00,281241,-39,PA0372,PARKINGEYE LIMITED,01/01/2024 00:00,28/01/2024 00:00,P10-2024
P&V,CAR PARK INCOME,INCOME,CAR PARKING INCOME,9730,Pindar-parking chges-Dec23,08/01/2024 00:00,281242,-38,PA0372,PARKINGEYE LIMITED,01/01/2024 00:00,28/01/2024 00:00,P10-2024
P&V,ACTIVE COMMUNTIES PROJECTS,INCOME,OTHER INCOME,9950,WWC-facility hire,15/01/2024 00:00,281413,-300,GR0097,GREENWICH LEISURE LTD,01/01/2024 00:00,28/01/2024 00:00,P10-2024
P&V,ACTIVE COMMUNTIES PROJECTS,INCOME,OTHER INCOME,9950,WWC-facility hire,15/01/2024 00:00,281413,50,GR0097,GREENWICH LEISURE LTD,01/01/2024 00:00,28/01/2024 00:00,P10-2024
P&V,ACTIVE COMMUNTIES PROJECTS,INCOME,OTHER INCOME,9950,WWC-facility hire,15/01/2024 00:00,281413,250,GR0097,GREENWICH LEISURE LTD,01/01/2024 00:00,28/01/2024 00:00,P10-2024
P&V,ACTIVE COMMUNTIES PROJECTS,INCOME,OTHER INCOME,9950,P124586-SERVICE-Room hire and refreshments WWC,15/01/2024 00:00,281413,300,GR0097,GREENWICH LEISURE LTD,01/01/2024 00:00,28/01/2024 00:00,P10-2024
P&V,ACTIVE COMMUNTIES PROJECTS,INCOME,OTHER INCOME,9950,P124654-SERVICE-Lifewalks,17/01/2024 00:00,281579,286.6,GR0097,GREENWICH LEISURE LTD,01/01/2024 00:00,28/01/2024 00:00,P10-2024
